Service Area,Service Division,Expense Type,Expense Code,Detailed Expense Type,Payment Date,Transaction Number,Amount Exc Vat,Supplier Name
Fire and Rescue Service,Community Protection Directorate,Premises,108301,Service Repairs and Maintenance,01-Jul-2014,2016506-28536,"2,784.00",AYCLIFFE FABRICATIONS LTD.
Fire and Rescue Service,Management and Support Services,Vehicles Equipment Furniture and Fittings,912541,Purchase-vehicles,01-Jul-2014,2016507-111959,"29,812.00",BELL TRUCK SALES LTD.
Fire and Rescue Service,Management and Support Services,Supplies and Services,304259,Equipment and Materials,01-Jul-2014,2016511-18373,"2,661.00",CYBERLYNE COMMUNICATIONS LTD.
Fire and Rescue Service,OD Directorate,Employees,040149,Recruitment Instruction and Training,01-Jul-2014,2016513-919438a,"4,625.00",DURADIAMOND HEALTHCARE LTD.
Fire and Rescue Service,OD Directorate,Employees,040149,Recruitment Instruction and Training,01-Jul-2014,2016513-919440,"4,625.00",DURADIAMOND HEALTHCARE LTD.
Fire and Rescue Service,Community Protection Directorate,Supplies and Services,384999,Miscellaneous Expenses,01-Jul-2014,2016516-8945,710.81,GO OUTDOORS LTD.
Fire and Rescue Service,Management and Support Services,Transport,215995,Running Costs of Vehicles,01-Jul-2014,2016518-687922,"2,679.71",HARVEST ENERGY LTD.
Fire and Rescue Service,Management and Support Services,Transport,215995,Running Costs of Vehicles,01-Jul-2014,2016518-687923,"1,627.35",HARVEST ENERGY LTD.
Fire and Rescue Service,Management and Support Services,Transport,215995,Running Costs of Vehicles,01-Jul-2014,2016518-687924,"2,687.25",HARVEST ENERGY LTD.
Fire and Rescue Service,Management and Support Services,Transport,215995,Running Costs of Vehicles,01-Jul-2014,2016518-688672,"2,687.25",HARVEST ENERGY LTD.
Fire and Rescue Service,Management and Support Services,Employees,079004,Other Employee Expenses,01-Jul-2014,2016519-465PY001497411413,"23,136.79",HMRC..
Fire and Rescue Service,OD Directorate,Employees,040149,Recruitment Instruction and Training,01-Jul-2014,2016522-493368,800.00,LYON EQUIPMENT LTD.
Fire and Rescue Service,OD Directorate,Supplies and Services,304252,Equipment and Materials,01-Jul-2014,2016526-913214078,915.00,NORTHUMBRIAN WATER LTD.
Fire and Rescue Service,OD Directorate,Supplies and Services,304252,Equipment and Materials,01-Jul-2014,2016526-913214124,915.00,NORTHUMBRIAN WATER LTD.
Fire and Rescue Service,OD Directorate,Supplies and Services,304252,Equipment and Materials,01-Jul-2014,2016526-913214132,735.00,NORTHUMBRIAN WATER LTD.
Fire and Rescue Service,OD Directorate,Supplies and Services,304252,Equipment and Materials,01-Jul-2014,2016526-913214191,502.00,NORTHUMBRIAN WATER LTD.
Fire and Rescue Service,OD Directorate,Supplies and Services,304252,Equipment and Materials,01-Jul-2014,2016526-913214221,502.00,NORTHUMBRIAN WATER LTD.
Fire and Rescue Service,Management and Support Services,Stock,926900,Stock in hand-Inventory system,01-Jul-2014,2016530-6614094,659.82,SUPPLIES TEAM LTD.
Fire and Rescue Service,OD Directorate,Supplies and Services,332047,Printing Stationery and Gen Off Exps,01-Jul-2014,2016530-6711548,583.60,SUPPLIES TEAM LTD.
Fire and Rescue Service,Community Protection Directorate,Premises,145015,Cleaning and Domestic Supplies,01-Jul-2014,2016531-7853,590.98,T & J CLEANING EQUIPMENT.
Fire and Rescue Service,Management and Support Services,Stock,926900,Stock in hand-Inventory system,01-Jul-2014,2016533-TK107513,970.50,THOMAS KNEALE & CO LTD.
Fire and Rescue Service,Management and Support Services,Stock,926900,Stock in hand-Inventory system,01-Jul-2014,2016533-TK107514,536.20,THOMAS KNEALE & CO LTD.
Fire and Rescue Service,Management and Support Services,Stock,926900,Stock in hand-Inventory system,01-Jul-2014,2016534-214449,"3,630.00",TURNER VIRR & CO LTD.
Fire and Rescue Service,OD Directorate,Employees,040149,Recruitment Instruction and Training,01-Jul-2014,2016537-14-1214,"1,033.00",XACT CONSULTANCY & TRAINING LTD.
Children and Adult Services,Childrens Services,Third Party Payments,440016,Other Third Party Payments,01-Jul-2014,2764506-958774,"2,339.33",REDACTED - PAYMENT TO INDIVIDUAL
Children and Adult Services,Childrens Services,Third Party Payments,440031,Other Third Party Payments,01-Jul-2014,2764587-959090,662.07,REDACTED - PAYMENT TO INDIVIDUAL
Children and Adult Services,Childrens Services,Third Party Payments,440036,Other Third Party Payments,01-Jul-2014,2764622-959061,586.40,REDACTED - PAYMENT TO INDIVIDUAL
Children and Adult Services,Childrens Services,Third Party Payments,440016,Other Third Party Payments,01-Jul-2014,2764645-959451,670.21,REDACTED - PAYMENT TO INDIVIDUAL
Children and Adult Services,Childrens Services,Third Party Payments,440016,Other Third Party Payments,01-Jul-2014,2764645-959452,670.21,REDACTED - PAYMENT TO INDIVIDUAL
Children and Adult Services,Childrens Services,Third Party Payments,440001,Other Third Party Payments,01-Jul-2014,2764803-958438,679.77,REDACTED - PAYMENT TO INDIVIDUAL
Children and Adult Services,Childrens Services,Transport,235073,Public Transport,01-Jul-2014,2765027-74-30/05/2014,"1,185.00",ABLE NOVAK TAXIS.
Children and Adult Services,Head of Adults,Transfer Payments,515201,Social Services Clients,01-Jul-2014,2765029-CAS-06-2014-207,"1,725.20",REDACTED - PAYMENT TO INDIVIDUAL
RED HRA,HRA Capital,Construction Work,908105,Construction work,01-Jul-2014,2765030-13430,"2,085.00",ACREBROAD LTD T/A DOBERMANS FLOORING.
RED HRA,HRA Capital,Construction Work,908105,Construction work,01-Jul-2014,2765030-13450,695.00,ACREBROAD LTD T/A DOBERMANS FLOORING.
RED HRA,HRA Capital,Construction Work,908105,Construction work,01-Jul-2014,2765030-13606,"7,861.00",ACREBROAD LTD T/A DOBERMANS FLOORING.
RED HRA,HRA Capital,Construction Work,908105,Construction work,01-Jul-2014,2765030-13612,"1,960.00",ACREBROAD LTD T/A DOBERMANS FLOORING.
Neighbourhood Services,Technical Services,Supplies and Services,304221,Equipment and Materials,01-Jul-2014,2765031-19854275,924.06,AGGREGATE INDUSTRIES UK LTD.
Neighbourhood Services,Technical Services,Supplies and Services,304221,Equipment and Materials,01-Jul-2014,2765031-19860575,"1,633.86",AGGREGATE INDUSTRIES UK LTD.
Neighbourhood Services,Technical Services,Supplies and Services,304221,Equipment and Materials,01-Jul-2014,2765032-19854277,"2,588.76",AGGREGATE INDUSTRIES UK LTD.
Neighbourhood Services,Technical Services,Supplies and Services,304221,Equipment and Materials,01-Jul-2014,2765032-19903369,855.92,AGGREGATE INDUSTRIES UK LTD.
Neighbourhood Services,Technical Services,Supplies and Services,304221,Equipment and Materials,01-Jul-2014,2765032-19903374,672.32,AGGREGATE INDUSTRIES UK LTD.
Neighbourhood Services,Technical Services,Supplies and Services,304221,Equipment and Materials,01-Jul-2014,2765032-19903376,"1,384.78",AGGREGATE INDUSTRIES UK LTD.
Corporate Resources,I.C.T. Services,Construction Work,908105,Construction work,01-Jul-2014,2765071-D13770,"42,000.00",BRADLEY HALL CHARTERED SURVEYORS CLIENT ACCOUNT.
Neighbourhood Services,Projects and Business services,Third Party Payments,430103,Rendered by Private Contractors,01-Jul-2014,2765078-NEI-EXP-06-2014-038,896.11,BRITISH HEART FOUNDATION.
Neighbourhood Services,Direct Services,Supplies and Services,304221,Equipment and Materials,01-Jul-2014,2765082-1650/0403334,"1,807.95",BSS GROUP PLC.
Neighbourhood Services,Direct Services,Supplies and Services,304221,Equipment and Materials,01-Jul-2014,2765082-1650/0427523,661.76,BSS GROUP PLC.
Neighbourhood Services,Technical Services,Supplies and Services,304221,Equipment and Materials,01-Jul-2014,2765083-CRM/319743,"13,940.00",BUILDBASE LTD.
Neighbourhood Services,Technical Services,Third Party Payments,460350,Contract Payments,01-Jul-2014,2765091-1326,"2,778.75",CARRICK CONTRACTORS LTD.
Neighbourhood Services,Direct Services,Supplies and Services,304221,Equipment and Materials,01-Jul-2014,2765092-450501,565.00,CARRS BILLINGTON AGRICULTURE.
Children and Adult Services,Education,Supplies and Services,338027,Services,01-Jul-2014,2765094-SI-184,"1,596.00",CASA SAFETY TRAINING SERVICES LTD.
Assistant Chief Executive,Partnerships & Community Engagement Div.,Cap Exp on Grants & Other Financial Assistance (REFCUS),918004,Contributions to other bodies,01-Jul-2014,2765095-VOUCHER14NB-DVLY005,"4,740.00",CASTLESIDE PAROCHIAL CHURCH COUNCIL.
Children and Adult Services,Education,Supplies and Services,384199,Miscellaneous Expenses,01-Jul-2014,2765096-CFSI28,"17,911.94",CATCOTE ACADEMY.
Children and Adult Services,Education,Supplies and Services,384199,Miscellaneous Expenses,01-Jul-2014,2765096-CFSI35,"17,911.94",CATCOTE ACADEMY.
Children and Adult Services,Education,Transfer Payments,510026,School Children,01-Jul-2014,2765103-EDS/EY/JL/ASHTON/15HPW/SUMMER,757.20,CHILDS PLAY PRIVATE NURSERY.
Children and Adult Services,Public Health,Third Party Payments,460802,Contract Payments,01-Jul-2014,2765110-A83011/Q3/2013,"1,810.00",CLAYPATH & UNIVERSITY MEDICAL GROUP.
Corporate Resources,I.C.T. Services,Supplies and Services,304639,Equipment and Materials,01-Jul-2014,2765136-7402106878,"1,058.34",DELL COMPUTER CORPORATION LTD.
Corporate Resources,Legal & Democratic Services,Supplies and Services,338057,Services,01-Jul-2014,2765144-JUNE14D,968.00,DR SREE MUSSUNOOR.
Corporate Resources,Legal & Democratic Services,Supplies and Services,338057,Services,01-Jul-2014,2765144-MAY-14D,677.60,DR SREE MUSSUNOOR.
Corporate Resources,Legal & Democratic Services,Supplies and Services,338057,Services,01-Jul-2014,2765145-MAY-14U,580.80,DR SREE MUSSUNOOR.
Assistant Chief Executive,Partnerships & Community Engagement Div.,Transfer Payments,525030,Other,01-Jul-2014,2765150-VOUCHER13AB-CHES012/14AB-CHES001,"5,000.37",DURHAM POLICE & CRIME COMMISSIONER.
Regeneration & Economic Development,Economic Development and Housing,Cap Exp on Grants & Other Financial Assistance (REFCUS),918401,Capital grants,01-Jul-2014,2765155-RED-06-2014-194,"8,000.00",DW JEFFERSON & SONS.
Neighbourhood Services,Direct Services,Supplies and Services,304221,Equipment and Materials,01-Jul-2014,2765157-059-143509,875.94,EDMUNDSON ELECTRICAL LTD.
Neighbourhood Services,Direct Services,Supplies and Services,304221,Equipment and Materials,01-Jul-2014,2765157-059-143711,592.50,EDMUNDSON ELECTRICAL LTD.
Corporate Resources,Centrally Administered Costs,Supplies and Services,338099,Services,01-Jul-2014,2765166-RES-06-2014-088,"3,442.00",ENVIRONMENT AGENCY.
Corporate Resources,Centrally Administered Costs,Supplies and Services,378002,Levies,01-Jul-2014,2765166-RES-06-2014-089,"102,168.75",ENVIRONMENT AGENCY.
Children and Adult Services,Childrens Services,Supplies and Services,364352,Grants to Voluntary Organisations,01-Jul-2014,2765173-01/SR/14,650.12,FABRICK HOUSING GROUP LTD.
Assistant Chief Executive,Partnerships & Community Engagement Div.,Supplies and Services,384086,Miscellaneous Expenses,01-Jul-2014,2765175-VOUCHER14NB-CHES004,"6,000.00",FENCE HOUSES COMMUNITY ASSOCIATION.
Children and Adult Services,Childrens Services,Third Party Payments,425040,Rendered by Voluntary Organisations,01-Jul-2014,2765178-0000051545,"3,232.86",FIVE RIVERS CHILD CARE LTD.
Children and Adult Services,Childrens Services,Third Party Payments,425040,Rendered by Voluntary Organisations,01-Jul-2014,2765178-0000051548,"3,232.99",FIVE RIVERS CHILD CARE LTD.
Children and Adult Services,Childrens Services,Third Party Payments,425040,Rendered by Voluntary Organisations,01-Jul-2014,2765183-630120636,"4,180.58",FOSTERING PEOPLE LTD.
Children and Adult Services,Childrens Services,Third Party Payments,425040,Rendered by Voluntary Organisations,01-Jul-2014,2765183-630120809,"4,292.69",FOSTERING PEOPLE LTD.
Children and Adult Services,Childrens Services,Third Party Payments,425040,Rendered by Voluntary Organisations,01-Jul-2014,2765183-630120830,"4,079.43",FOSTERING PEOPLE LTD.
Children and Adult Services,Childrens Services,Third Party Payments,425040,Rendered by Voluntary Organisations,01-Jul-2014,2765183-630120991,"4,079.43",FOSTERING PEOPLE LTD.
Children and Adult Services,Childrens Services,Third Party Payments,425040,Rendered by Voluntary Organisations,01-Jul-2014,2765183-630121027,"4,079.43",FOSTERING PEOPLE LTD.
Children and Adult Services,Childrens Services,Third Party Payments,425040,Rendered by Voluntary Organisations,01-Jul-2014,2765183-630121134,"4,079.43",FOSTERING PEOPLE LTD.
Children and Adult Services,Childrens Services,Third Party Payments,425040,Rendered by Voluntary Organisations,01-Jul-2014,2765183-630121138,"4,079.43",FOSTERING PEOPLE LTD.
Children and Adult Services,Childrens Services,Third Party Payments,425040,Rendered by Voluntary Organisations,01-Jul-2014,2765183-630121391,"4,079.43",FOSTERING PEOPLE LTD.
Children and Adult Services,Childrens Services,Third Party Payments,425040,Rendered by Voluntary Organisations,01-Jul-2014,2765183-630121447,"4,079.43",FOSTERING PEOPLE LTD.
Children and Adult Services,Childrens Services,Third Party Payments,425040,Rendered by Voluntary Organisations,01-Jul-2014,2765183-630121512,"4,079.43",FOSTERING PEOPLE LTD.
Children and Adult Services,Childrens Services,Third Party Payments,425040,Rendered by Voluntary Organisations,01-Jul-2014,2765183-630121635,"4,079.43",FOSTERING PEOPLE LTD.
Children and Adult Services,Childrens Services,Third Party Payments,425040,Rendered by Voluntary Organisations,01-Jul-2014,2765183-630121700,"4,079.43",FOSTERING PEOPLE LTD.
Children and Adult Services,Childrens Services,Third Party Payments,425040,Rendered by Voluntary Organisations,01-Jul-2014,2765183-630121758,"3,538.34",FOSTERING PEOPLE LTD.
Children and Adult Services,Childrens Services,Third Party Payments,425040,Rendered by Voluntary Organisations,01-Jul-2014,2765184-122852,"2,063.88",FOSTERING SOLUTIONS LTD.
Children and Adult Services,Childrens Services,Supplies and Services,384199,Miscellaneous Expenses,01-Jul-2014,2765223-8218,560.00,INGRAMS REMOVERS & STORERS.
Neighbourhood Services,Technical Services,Supplies and Services,304358,Equipment and Materials,01-Jul-2014,2765239-21566,"1,054.00",JOHN R BUTTERFIELD LTD.
Neighbourhood Services,Technical Services,Supplies and Services,304358,Equipment and Materials,01-Jul-2014,2765239-21611,"1,061.50",JOHN R BUTTERFIELD LTD.
Neighbourhood Services,Technical Services,Supplies and Services,304221,Equipment and Materials,01-Jul-2014,2765245-BI1131274,589.22,JT DOVE LTD.
Neighbourhood Services,Technical Services,Supplies and Services,304221,Equipment and Materials,01-Jul-2014,2765253-9031008741,"1,855.00",LAFARGE TARMAC TRADING LTD.
Neighbourhood Services,Direct Services,Third Party Payments,430100,Rendered by Private Contractors,01-Jul-2014,2765265-1943,"1,539.00",LMC ELECTRICAL SERVICES T/A LMC ELECTRICAL & STAIRLIFT SERVICES LTD.
Children and Adult Services,Childrens Services,Supplies and Services,304259,Equipment and Materials,01-Jul-2014,2765283-SIN89448,550.42,MAUDESPORT LTD.
Corporate Resources,Legal & Democratic Services,Supplies and Services,384927,Miscellaneous Expenses,01-Jul-2014,2765297-JUROREXPENSES,502.19,REDACTED - PAYMENT TO INDIVIDUAL
Regeneration & Economic Development,Spatial Policy Planning Assets & Environment,Supplies and Services,338027,Services,01-Jul-2014,2765305-NE22371/01,"2,375.00",NATHANIEL LICHFIELD & PARTNERS LTD.
Neighbourhood Services,Technical Services,Premises,135005,Water Services,01-Jul-2014,2765325-314882460018003,"7,883.60",NORTHUMBRIAN WATER LTD.
Children and Adult Services,Childrens Services,Third Party Payments,425020,Rendered by Voluntary Organisations,01-Jul-2014,2765343-20580,"14,682.45",PERCY HEDLEY FOUNDATION.
Children and Adult Services,Childrens Services,Third Party Payments,425020,Rendered by Voluntary Organisations,01-Jul-2014,2765343-20785,"18,188.52",PERCY HEDLEY FOUNDATION.
Neighbourhood Services,Direct Services,Supplies and Services,304357,Equipment and Materials,01-Jul-2014,2765354-129101,"1,330.00",PREMIER TRAFFIC MANAGEMENT LTD.
Corporate Resources,I.C.T. Services,Supplies and Services,340001,Postages,01-Jul-2014,2765373-9047470040,"20,475.05",ROYAL MAIL GROUP PLC.
Regeneration & Economic Development,Economic Development and Housing,Supplies and Services,384700,Miscellaneous Expenses,01-Jul-2014,2765377-RED-06-2014-162,"1,000.00",RS TOTAL FITNESS..
Regeneration & Economic Development,Transport and Contracted Services,Third Party Payments,430106,Rendered by Private Contractors,01-Jul-2014,2765383-90,645.64,SB TRAVEL.
Assistant Chief Executive,Partnerships & Community Engagement Div.,Supplies and Services,384085,Miscellaneous Expenses,01-Jul-2014,2765400-TODR01-14HUNE01-14,"1,000.00",SHOTTON & DISTRICT COMMUNITY ASSOCIATION.
Regeneration & Economic Development,Economic Development and Housing,Supplies and Services,384700,Miscellaneous Expenses,01-Jul-2014,2765414-RED-05-2014-163,"1,000.00",SONNET43 BREW HOUSE.
Neighbourhood Services,Culture & Sport,Supplies and Services,384199,Miscellaneous Expenses,01-Jul-2014,2765416-0500,"8,333.33",SPACECADETS AIR DESIGN LTD.
Neighbourhood Services,Technical Services,Supplies and Services,304221,Equipment and Materials,01-Jul-2014,2765425-063490,"1,188.00",STONEGRAVE AGGREGATES LTD.
Children and Adult Services,Commissioning inc Supporting People,Third Party Payments,479111,Purchase of Care,01-Jul-2014,2765427-CRM5357,"50,027.00",STROKE ASSOCIATION.
Neighbourhood Services,Technical Services,Stock,926900,Stock in hand-Inventory system,01-Jul-2014,2765433-1201516,546.27,T CROSSLING & CO LTD.
Neighbourhood Services,Direct Services,Third Party Payments,430100,Rendered by Private Contractors,01-Jul-2014,2765444-6444,"1,377.07",TEAMS ROOFING LTD.
Neighbourhood Services,Culture & Sport,Supplies and Services,336005,Advertising,01-Jul-2014,2765464-S18149,"5,000.00",TRINITY MIRROR PUBLISHING LTD.
Neighbourhood Services,Technical Services,Supplies and Services,304221,Equipment and Materials,01-Jul-2014,2765469-135849,990.22,TYNEDALE ROADSTONE LTD.
Neighbourhood Services,Technical Services,Supplies and Services,304221,Equipment and Materials,01-Jul-2014,2765469-135897,998.30,TYNEDALE ROADSTONE LTD.
Neighbourhood Services,Technical Services,Supplies and Services,304221,Equipment and Materials,01-Jul-2014,2765469-135915,"1,001.33",TYNEDALE ROADSTONE LTD.
Neighbourhood Services,Technical Services,Supplies and Services,304221,Equipment and Materials,01-Jul-2014,2765469-136719,991.23,TYNEDALE ROADSTONE LTD.
Neighbourhood Services,Culture & Sport,Supplies and Services,312013,Newspapers Books and Periodicals,01-Jul-2014,2765471-1573834,620.85,ULVERSCROFT LARGE PRINT BOOKS LTD.
Neighbourhood Services,Direct Services,Supplies and Services,304221,Equipment and Materials,01-Jul-2014,2765483-37389,"1,500.00",W MARLEY AGRICULTURAL CONTRACTORS LTD.
Neighbourhood Services,Technical Services,Supplies and Services,304221,Equipment and Materials,01-Jul-2014,2765489-184,"2,892.00",WILF HUSBAND PLANT HIRE.
Neighbourhood Services,Technical Services,Supplies and Services,304221,Equipment and Materials,01-Jul-2014,2765489-252-2014,"2,016.00",WILF HUSBAND PLANT HIRE.
Neighbourhood Services,Technical Services,Supplies and Services,304221,Equipment and Materials,01-Jul-2014,2765489-256-6/6/14,600.00,WILF HUSBAND PLANT HIRE.
Assistant Chief Executive,Partnerships & Community Engagement Div.,Transfer Payments,525030,Other,01-Jul-2014,2765490-VOUCHER14AB-3TWN001,"5,000.00",WILLINGTON COMMUNITY ACTION.
Contributing Authorities,Darlington Borough Council,Pensions Expenditure,801201,Pensions Expenditure,02-Jul-2014,2009415-101364,"25,833.87",LANCASHIRE COUNTY COUNCIL.
Contributing Authorities,Durham County Council,Pensions Expenditure,801031,Pensions Expenditure,02-Jul-2014,2009416-DEATHGRANT,"29,800.08",REDACTED - PAYMENT TO INDIVIDUAL
Contributing Authorities,Durham County Council,Pensions Expenditure,801031,Pensions Expenditure,02-Jul-2014,2009417-DEATHGRANT,"29,800.08",REDACTED - PAYMENT TO INDIVIDUAL
Contributing Authorities,Morrison Facility Service Ltd-EDH,Pensions Expenditure,801011,Pensions Expenditure,02-Jul-2014,2009418-LUMPSUM,"50,924.28",REDACTED - PAYMENT TO INDIVIDUAL
Contributing Authorities,Easington DC,Pensions Expenditure,801031,Pensions Expenditure,02-Jul-2014,2009421-DEATHGRANT,"6,374.04",REDACTED - PAYMENT TO INDIVIDUAL
Contributing Authorities,Durham County Council,Pensions Expenditure,801011,Pensions Expenditure,02-Jul-2014,2009422-LUMPSUM,"29,332.61",REDACTED - PAYMENT TO INDIVIDUAL
Contributing Authorities,Durham County Council,Pensions Expenditure,801011,Pensions Expenditure,02-Jul-2014,2009423-LUMPSUM,"4,233.89",REDACTED - PAYMENT TO INDIVIDUAL
Contributing Authorities,Durham County Council,Pensions Expenditure,801011,Pensions Expenditure,02-Jul-2014,2009424-LUMPSUM,945.71,REDACTED - PAYMENT TO INDIVIDUAL
Contributing Authorities,Durham County Council,Pensions Expenditure,801011,Pensions Expenditure,02-Jul-2014,2009426-LUMPSUM,"1,522.86",REDACTED - PAYMENT TO INDIVIDUAL
Contributing Authorities,Durham County Council,Pensions Expenditure,801011,Pensions Expenditure,02-Jul-2014,2009430-LUMPSUM,"22,134.41",REDACTED - PAYMENT TO INDIVIDUAL
Children and Adult Services,Head of Adults,Premises,108037,Service Repairs and Maintenance,02-Jul-2014,232627-CAS-06-2014-185,628.00,REDACTED - PAYMENT TO INDIVIDUAL
Children and Adult Services,Head of Adults,Premises,108037,Service Repairs and Maintenance,02-Jul-2014,232628-CAS-06-2014-186,711.00,REDACTED - PAYMENT TO INDIVIDUAL
Children and Adult Services,Head of Adults,Premises,108037,Service Repairs and Maintenance,02-Jul-2014,232630-CAS-06-2014-187,737.50,REDACTED - PAYMENT TO INDIVIDUAL
Children and Adult Services,Head of Adults,Premises,108037,Service Repairs and Maintenance,02-Jul-2014,232632-CAS-06-2014-196,638.00,REDACTED - PAYMENT TO INDIVIDUAL
Children and Adult Services,Head of Adults,Premises,108037,Service Repairs and Maintenance,02-Jul-2014,232634-CAS-06-2014-181,553.00,REDACTED - PAYMENT TO INDIVIDUAL
Children and Adult Services,Head of Adults,Premises,108037,Service Repairs and Maintenance,02-Jul-2014,232635-CAS-06-2014-188,619.50,REDACTED - PAYMENT TO INDIVIDUAL
Children and Adult Services,Head of Adults,Premises,108037,Service Repairs and Maintenance,02-Jul-2014,232636-CAS-06-2014-189,536.00,REDACTED - PAYMENT TO INDIVIDUAL
Children and Adult Services,Head of Adults,Premises,108037,Service Repairs and Maintenance,02-Jul-2014,232638-CAS-06-2014-191,909.00,REDACTED - PAYMENT TO INDIVIDUAL
Neighbourhood Services,Culture & Sport,Supplies and Services,384199,Miscellaneous Expenses,02-Jul-2014,232650-865287,"2,250.00",BONHAM`S 1793 LTD.
Neighbourhood Services,Technical Services,Supplies and Services,304358,Equipment and Materials,02-Jul-2014,232653-1608,"11,642.38",CG SIMPSON & SON.
Children and Adult Services,Head of Adults,Premises,108037,Service Repairs and Maintenance,02-Jul-2014,232679-CAS-06-2014-194,536.00,REDACTED - PAYMENT TO INDIVIDUAL
Corporate Resources,Legal & Democratic Services,Supplies and Services,384927,Miscellaneous Expenses,02-Jul-2014,232697-JUROREXPENSES,512.54,REDACTED - PAYMENT TO INDIVIDUAL
Neighbourhood Services,Culture & Sport,Premises,108135,Service Repairs and Maintenance,02-Jul-2014,232702-20526800,585.00,HOVAL LTD.
Children and Adult Services,Head of Adults,Premises,108037,Service Repairs and Maintenance,02-Jul-2014,232730-CAS-06-2014-199,645.00,REDACTED - PAYMENT TO INDIVIDUAL
RED HRA,HRA Centrally Managed,Supplies and Services,384999,Miscellaneous Expenses,02-Jul-2014,232754-RENTREFUND,"1,397.63",REDACTED - PAYMENT TO INDIVIDUAL
RED HRA,HRA Centrally Managed,Creditors,952191,Creditor-HRA-rents-refunds,02-Jul-2014,232763-RENTREFUND25/6/14,"1,000.00",REDACTED - PAYMENT TO INDIVIDUAL
Children and Adult Services,Education,Supplies and Services,338027,Services,02-Jul-2014,232785-INVOSUMMER1HALFTERM2014,997.94,ROSSMERE PRIMARY SCHOOL.
Children and Adult Services,Head of Adults,Premises,108037,Service Repairs and Maintenance,02-Jul-2014,232788-CAS-06-2014-183,510.00,REDACTED - PAYMENT TO INDIVIDUAL
Neighbourhood Services,Culture & Sport,Supplies and Services,312013,Newspapers Books and Periodicals,02-Jul-2014,232790-41671,"2,230.40",SPECTRUM PLASTICS.
Assistant Chief Executive,Partnerships & Community Engagement Div.,Supplies and Services,384085,Miscellaneous Expenses,02-Jul-2014,232799-DEAK03-14,500.00,STANLEY EVENTS LTD.
Neighbourhood Services,Projects and Business services,Premises,108251,Service Repairs and Maintenance,02-Jul-2014,232800-12788,580.00,STEADFAST SECURITY SYSTEMS LTD.
Regeneration & Economic Development,Spatial Policy Planning Assets & Environment,Income,720190,Fees and Charges,02-Jul-2014,232824-RED-06-2014-182,670.00,WK WILKINSON & SONS.
Neighbourhood Services,Technical Services,Stock,926900,Stock in hand-Inventory system,02-Jul-2014,2765497-141187,666.90,(PASS) PORTABLE APPLIANCE SAFETY SERVICES LTD.
Regeneration & Economic Development,Economic Development and Housing,Supplies and Services,324117,Provisions,02-Jul-2014,2765498-55358858,520.61,3663.
RED HRA,HRA Capital,Construction Work,908105,Construction work,02-Jul-2014,2765504-13624,"1,960.00",ACREBROAD LTD T/A DOBERMANS FLOORING.
Neighbourhood Services,Technical Services,Employees,080025,Agency Staff,02-Jul-2014,2765505-28192890,"7,293.08",AECOM LTD.
Neighbourhood Services,Technical Services,Supplies and Services,304221,Equipment and Materials,02-Jul-2014,2765506-19913367,"2,466.36",AGGREGATE INDUSTRIES UK LTD.
Neighbourhood Services,Technical Services,Supplies and Services,304221,Equipment and Materials,02-Jul-2014,2765506-19926458,950.96,AGGREGATE INDUSTRIES UK LTD.
Neighbourhood Services,Technical Services,Supplies and Services,304221,Equipment and Materials,02-Jul-2014,2765506-19926461,666.90,AGGREGATE INDUSTRIES UK LTD.
Neighbourhood Services,Technical Services,Supplies and Services,304221,Equipment and Materials,02-Jul-2014,2765506-19933144,"2,183.95",AGGREGATE INDUSTRIES UK LTD.
Neighbourhood Services,Technical Services,Supplies and Services,304221,Equipment and Materials,02-Jul-2014,2765506-19933145,553.58,AGGREGATE INDUSTRIES UK LTD.
Neighbourhood Services,Technical Services,Supplies and Services,304221,Equipment and Materials,02-Jul-2014,2765506-19939497,"1,235.04",AGGREGATE INDUSTRIES UK LTD.
Neighbourhood Services,Technical Services,Supplies and Services,304221,Equipment and Materials,02-Jul-2014,2765507-19913364,"2,439.20",AGGREGATE INDUSTRIES UK LTD.
Neighbourhood Services,Technical Services,Supplies and Services,304221,Equipment and Materials,02-Jul-2014,2765507-19913365,"1,149.48",AGGREGATE INDUSTRIES UK LTD.
Neighbourhood Services,Technical Services,Supplies and Services,304221,Equipment and Materials,02-Jul-2014,2765507-19913368,552.72,AGGREGATE INDUSTRIES UK LTD.
Neighbourhood Services,Technical Services,Supplies and Services,304221,Equipment and Materials,02-Jul-2014,2765507-19920064,"1,005.64",AGGREGATE INDUSTRIES UK LTD.
Neighbourhood Services,Technical Services,Supplies and Services,304221,Equipment and Materials,02-Jul-2014,2765507-19920065,"1,253.64",AGGREGATE INDUSTRIES UK LTD.
Neighbourhood Services,Technical Services,Supplies and Services,304221,Equipment and Materials,02-Jul-2014,2765507-19926457,"1,355.32",AGGREGATE INDUSTRIES UK LTD.
Neighbourhood Services,Technical Services,Supplies and Services,304221,Equipment and Materials,02-Jul-2014,2765507-19926460,"1,254.88",AGGREGATE INDUSTRIES UK LTD.
Neighbourhood Services,Technical Services,Supplies and Services,304221,Equipment and Materials,02-Jul-2014,2765507-19933140,939.08,AGGREGATE INDUSTRIES UK LTD.
Neighbourhood Services,Technical Services,Supplies and Services,304221,Equipment and Materials,02-Jul-2014,2765507-19933143,554.60,AGGREGATE INDUSTRIES UK LTD.
Neighbourhood Services,Technical Services,Supplies and Services,304221,Equipment and Materials,02-Jul-2014,2765507-19939494,"1,858.76",AGGREGATE INDUSTRIES UK LTD.
Neighbourhood Services,Technical Services,Supplies and Services,304221,Equipment and Materials,02-Jul-2014,2765507-19939495,960.68,AGGREGATE INDUSTRIES UK LTD.
Neighbourhood Services,Technical Services,Supplies and Services,304221,Equipment and Materials,02-Jul-2014,2765507-19939498,563.10,AGGREGATE INDUSTRIES UK LTD.
Neighbourhood Services,Technical Services,Supplies and Services,304221,Equipment and Materials,02-Jul-2014,2765507-19945364,952.32,AGGREGATE INDUSTRIES UK LTD.
Children and Adult Services,Childrens Services,Transport,235073,Public Transport,02-Jul-2014,2765517-107177,570.00,ARRIVA DURHAM COUNTY LTD.
Neighbourhood Services,Technical Services,Stock,926900,Stock in hand-Inventory system,02-Jul-2014,2765520-SIN220596,"1,137.50",ATF SUPPLIES LTD.
Neighbourhood Services,Projects and Business services,Fees,901002,Consultants fees,02-Jul-2014,2765521-14006592,"13,820.00",ATKINS GLOBAL.
Neighbourhood Services,Sport & Leisure,Fees,901002,Consultants fees,02-Jul-2014,2765521-14011161,"1,686.00",ATKINS GLOBAL.
Neighbourhood Services,Technical Services,Supplies and Services,338027,Services,02-Jul-2014,2765521-14011196,"1,180.00",ATKINS GLOBAL.
Neighbourhood Services,Technical Services,Supplies and Services,338027,Services,02-Jul-2014,2765521-18JUNE2014,"1,747.40",ATKINS GLOBAL.
Neighbourhood Services,Technical Services,Supplies and Services,304221,Equipment and Materials,02-Jul-2014,2765525-1325/008,"13,735.61",BCE NORTHERN LTD.
Regeneration & Economic Development,Economic Development and Housing,Supplies and Services,384071,Miscellaneous Expenses,02-Jul-2014,2765527-SIN005164,583.00,BIRMINGHAM SCIENCE PARK ASTON LTD.
Neighbourhood Services,Direct Services,Supplies and Services,304259,Equipment and Materials,02-Jul-2014,2765533-80715,"21,560.43",BOVERTON NURSERIES LTD.
Neighbourhood Services,Direct Services,Supplies and Services,304259,Equipment and Materials,02-Jul-2014,2765535-140554,580.00,BRAMBLEDOWN LANDSCAPE SERVICES LTD.
Regeneration & Economic Development,Transport and Contracted Services,Supplies and Services,384899,Miscellaneous Expenses,02-Jul-2014,2765536-RED-06-2014-183,963.00,BRANDON & BYSHOTTLES PARISH COUNCIL.
Children and Adult Services,Childrens Services,Supplies and Services,344033,Telephones,02-Jul-2014,2765538-NE19493805Q0438E,875.29,BRITISH TELECOMMUNICATIONS PLC.
Neighbourhood Services,Direct Services,Supplies and Services,304221,Equipment and Materials,02-Jul-2014,2765539-1650/0451236,885.18,BSS GROUP PLC.
Neighbourhood Services,Direct Services,Supplies and Services,304221,Equipment and Materials,02-Jul-2014,2765540-1650/0427525,"1,007.12",BSS GROUP PLC.
Regeneration & Economic Development,Transport and Contracted Services,Construction Work,908105,Construction work,02-Jul-2014,2765544-02131,"2,804.01",BUS SHELTERS LTD.
Regeneration & Economic Development,Transport and Contracted Services,Construction Work,908105,Construction work,02-Jul-2014,2765544-02132,"2,489.08",BUS SHELTERS LTD.
Regeneration & Economic Development,Transport and Contracted Services,Construction Work,908105,Construction work,02-Jul-2014,2765544-02147,"2,839.08",BUS SHELTERS LTD.
Regeneration & Economic Development,Transport and Contracted Services,Construction Work,908105,Construction work,02-Jul-2014,2765544-21472,"3,154.01",BUS SHELTERS LTD.
Regeneration & Economic Development,Transport and Contracted Services,Construction Work,908105,Construction work,02-Jul-2014,2765544-21477,"2,804.01",BUS SHELTERS LTD.
Neighbourhood Services,Direct Services,Third Party Payments,430100,Rendered by Private Contractors,02-Jul-2014,2765546-15211,900.00,C & C HORSE TRANSPORT LTD.
Regeneration & Economic Development,Economic Development and Housing,Supplies and Services,384700,Miscellaneous Expenses,02-Jul-2014,2765549-RED-07-2014-004,"1,000.00",CAFE VENTURE LTD
Regeneration & Economic Development,Economic Development and Housing,Supplies and Services,384700,Miscellaneous Expenses,02-Jul-2014,2765550-RED-07-2014-002,"2,000.00",CARD TEAM LTD.
Neighbourhood Services,Culture & Sport,Supplies and Services,324117,Provisions,02-Jul-2014,2765551-840376634,542.44,CARLSBERG UK LTD.
Neighbourhood Services,Technical Services,Supplies and Services,304221,Equipment and Materials,02-Jul-2014,2765552-34870,"7,964.25",CARPETTIME LTD.
Children and Adult Services,Childrens Services,Employees,080025,Agency Staff,02-Jul-2014,2765558-2288746,"1,756.00",CELSIAN.
Children and Adult Services,Childrens Services,Employees,080025,Agency Staff,02-Jul-2014,2765558-2289087,590.00,CELSIAN.
Children and Adult Services,Childrens Services,Employees,080025,Agency Staff,02-Jul-2014,2765558-2289334,"1,929.50",CELSIAN.
Neighbourhood Services,Technical Services,Stock,926900,Stock in hand-Inventory system,02-Jul-2014,2765559-0353165,"1,400.00",CHAMBERLAIN DOORS LTD.
Regeneration & Economic Development,Spatial Policy Planning Assets & Environment,Supplies and Services,384199,Miscellaneous Expenses,02-Jul-2014,2765561-BURSARY2JUN14,502.90,CHRISTOPHER JAMES GOODIER.
Children and Adult Services,Planning & Service Strategy,Supplies and Services,338089,Services,02-Jul-2014,2765568-EPDPROGRAMMEDEC13-FEB14,573.60,CLAIRE DALE.
Children and Adult Services,Central Charges (CYPS),Supplies and Services,372009,Subscriptions,02-Jul-2014,2765570-SUBS005149,"7,233.98",CLEAPSS.
Neighbourhood Services,Technical Services,Stock,926900,Stock in hand-Inventory system,02-Jul-2014,2765575-152903,612.00,COLAS LTD.
Neighbourhood Services,Technical Services,Stock,926900,Stock in hand-Inventory system,02-Jul-2014,2765575-152904,552.52,COLAS LTD.
Children and Adult Services,Childrens Services,Employees,080025,Agency Staff,02-Jul-2014,2765576-538916,"86,624.52",COMENSURA LTD.
Children and Adult Services,Childrens Services,Supplies and Services,324500,Provisions,02-Jul-2014,2765583-12732,"13,939.85",CREATIVE MANAGEMENT SERVICES LTD.
Neighbourhood Services,Culture & Sport,Supplies and Services,304259,Equipment and Materials,02-Jul-2014,2765585-38620,758.32,D & P TROPHIES.
Neighbourhood Services,Technical Services,Stock,926900,Stock in hand-Inventory system,02-Jul-2014,2765587-279182,804.90,DACRYLATE PAINTS LTD.
Corporate Resources,Legal & Democratic Services,Employees,040149,Recruitment Instruction and Training,02-Jul-2014,2765590-JUNE2014TRAINING,940.00,DAVID BANKS.
Corporate Resources,I.C.T. Services,Stock,926900,Stock in hand-Inventory system,02-Jul-2014,2765591-7402127014,"2,518.53",DELL COMPUTER CORPORATION LTD.
Corporate Resources,I.C.T. Services,Stock,926900,Stock in hand-Inventory system,02-Jul-2014,2765591-7402128392,"6,420.00",DELL COMPUTER CORPORATION LTD.
Corporate Resources,I.C.T. Services,Stock,926900,Stock in hand-Inventory system,02-Jul-2014,2765592-7402128526,"1,645.00",DELL COMPUTER CORPORATION LTD.
Corporate Resources,I.C.T. Services,Stock,926900,Stock in hand-Inventory system,02-Jul-2014,2765592-7402129494,"1,710.00",DELL COMPUTER CORPORATION LTD.
RED HRA,HRA Capital,Construction Work,908105,Construction work,02-Jul-2014,2765593-200609,"1,633.43",DELTA ELECTRICAL & MECHANICAL SERVICES.
RED HRA,HRA Capital,Construction Work,908105,Construction work,02-Jul-2014,2765593-200610,"3,181.91",DELTA ELECTRICAL & MECHANICAL SERVICES.
RED HRA,HRA Capital,Construction Work,908105,Construction work,02-Jul-2014,2765593-201463,"8,282.30",DELTA ELECTRICAL & MECHANICAL SERVICES.
RED HRA,HRA Capital,Construction Work,908105,Construction work,02-Jul-2014,2765593-201464,"6,976.79",DELTA ELECTRICAL & MECHANICAL SERVICES.
Corporate Resources,Legal & Democratic Services,Supplies and Services,338025,Services,02-Jul-2014,2765597-LC/003A,"1,200.00",DERWENTSIDE FUNERAL SERVICE.
Regeneration & Economic Development,Spatial Policy Planning Assets & Environment,Supplies and Services,384199,Miscellaneous Expenses,02-Jul-2014,2765608-268251,"4,980.00",DURHAM UNIVERSITY.
Regeneration & Economic Development,Economic Development and Housing,Cap Exp on Grants & Other Financial Assistance (REFCUS),918401,Capital grants,02-Jul-2014,2765610-RED-06-2014-140,"2,551.23",EASIBATHE LTD.
RED HRA,HRA Capital,Construction Work,908105,Construction work,02-Jul-2014,2765613-200599,"4,636.37",EDMUNDSON ELECTRICAL LTD.
RED HRA,HRA Capital,Construction Work,908105,Construction work,02-Jul-2014,2765614-199314,"4,623.62",EDMUNDSON ELECTRICAL LTD.
Neighbourhood Services,EnvironmentHealth & Consumer Protection,Supplies and Services,304259,Equipment and Materials,02-Jul-2014,2765616-SI12129,875.10,ELECTROMASTER TELECOMMUNICATIONS LTD.
Corporate Resources,I.C.T. Services,Supplies and Services,332029,Printing Stationery and Gen Off Exps,02-Jul-2014,2765620-118712,"2,809.50",ENCORE ENVELOPES LTD.
Neighbourhood Services,EnvironmentHealth & Consumer Protection,Third Party Payments,430100,Rendered by Private Contractors,02-Jul-2014,2765622-116577,"8,523.33",ESH CONSTRUCTION LTD FORMERLY LUMSDEN & CARROLL CONSTRUCTION LTD.
Neighbourhood Services,EnvironmentHealth & Consumer Protection,Third Party Payments,430100,Rendered by Private Contractors,02-Jul-2014,2765622-116611,"5,560.83",ESH CONSTRUCTION LTD FORMERLY LUMSDEN & CARROLL CONSTRUCTION LTD.
RED HRA,HRA Capital,Construction Work,908105,Construction work,02-Jul-2014,2765622-B50375-7,"80,044.85",ESH CONSTRUCTION LTD FORMERLY LUMSDEN & CARROLL CONSTRUCTION LTD.
Neighbourhood Services,Direct Services,Third Party Payments,430100,Rendered by Private Contractors,02-Jul-2014,2765623-54504,"2,326.30",EVANS HALSHAW.
Regeneration & Economic Development,Spatial Policy Planning Assets & Environment,Supplies and Services,304337,Equipment and Materials,02-Jul-2014,2765624-46158,611.00,FIELD STUDIES COUNCIL.
Neighbourhood Services,Direct Services,Supplies and Services,304259,Equipment and Materials,02-Jul-2014,2765627-SI147621,"1,230.24",FLEET (LINE MARKERS) LTD.
Neighbourhood Services,Technical Services,Stock,926900,Stock in hand-Inventory system,02-Jul-2014,2765628-OP/I279987,"1,098.62",FLEMING & CO (MACHINERY) LTD.
Neighbourhood Services,Technical Services,Stock,926900,Stock in hand-Inventory system,02-Jul-2014,2765628-OP/I280115,822.54,FLEMING & CO (MACHINERY) LTD.
Children and Adult Services,Childrens Services,Third Party Payments,425040,Rendered by Voluntary Organisations,02-Jul-2014,2765631-3216-1/7/14,"3,232.68",FOSTER CARE SOLUTIONS LTD.
Children and Adult Services,Childrens Services,Third Party Payments,425040,Rendered by Voluntary Organisations,02-Jul-2014,2765631-3217-01/07/2014,"3,232.68",FOSTER CARE SOLUTIONS LTD.
Children and Adult Services,Childrens Services,Third Party Payments,425040,Rendered by Voluntary Organisations,02-Jul-2014,2765631-3218-01/07/2014,"3,631.34",FOSTER CARE SOLUTIONS LTD.
Children and Adult Services,Childrens Services,Third Party Payments,425040,Rendered by Voluntary Organisations,02-Jul-2014,2765631-3219-01/04/2014,"3,232.68",FOSTER CARE SOLUTIONS LTD.
Children and Adult Services,Childrens Services,Third Party Payments,425040,Rendered by Voluntary Organisations,02-Jul-2014,2765631-3220,"3,232.68",FOSTER CARE SOLUTIONS LTD.
Children and Adult Services,Childrens Services,Third Party Payments,425040,Rendered by Voluntary Organisations,02-Jul-2014,2765631-3221,"3,100.00",FOSTER CARE SOLUTIONS LTD.
Children and Adult Services,Childrens Services,Third Party Payments,425040,Rendered by Voluntary Organisations,02-Jul-2014,2765631-3222,"3,365.67",FOSTER CARE SOLUTIONS LTD.
Children and Adult Services,Childrens Services,Third Party Payments,425040,Rendered by Voluntary Organisations,02-Jul-2014,2765631-3223,"3,232.68",FOSTER CARE SOLUTIONS LTD.
Children and Adult Services,Childrens Services,Third Party Payments,425040,Rendered by Voluntary Organisations,02-Jul-2014,2765631-3224,"3,232.68",FOSTER CARE SOLUTIONS LTD.
Children and Adult Services,Childrens Services,Third Party Payments,425040,Rendered by Voluntary Organisations,02-Jul-2014,2765632-10367,"1,180.00",FOSTER CARES LTD.
Children and Adult Services,Childrens Services,Third Party Payments,425040,Rendered by Voluntary Organisations,02-Jul-2014,2765632-10385,820.00,FOSTER CARES LTD.
Children and Adult Services,Childrens Services,Third Party Payments,425040,Rendered by Voluntary Organisations,02-Jul-2014,2765632-10393,700.00,FOSTER CARES LTD.
Neighbourhood Services,Projects and Business services,Construction Work,908105,Construction work,02-Jul-2014,2765634-DVU04080,"1,293.96",FUSION PROVIDA LTD.
Neighbourhood Services,Technical Services,Supplies and Services,304357,Equipment and Materials,02-Jul-2014,2765638-DCC220614,"13,130.08",GAP GROUP LTD.
Neighbourhood Services,Direct Services,Stock,926004,Stock,02-Jul-2014,2765640-B95309,"1,272.52",GEESINK NORBA LTD.
Regeneration & Economic Development,Transport and Contracted Services,Construction Work,908105,Construction work,02-Jul-2014,2765644-42703,"3,922.00",GO GATESHEAD LTD.
Regeneration & Economic Development,Spatial Policy Planning Assets & Environment,Supplies and Services,384199,Miscellaneous Expenses,02-Jul-2014,2765647-SUMMERGRAZING2014,"1,190.70",GORDON SEDGEWICK.
Neighbourhood Services,Technical Services,Stock,926900,Stock in hand-Inventory system,02-Jul-2014,2765649-06/515810,"1,179.99",GREENHAM TRADING LTD.
Regeneration & Economic Development,Economic Development and Housing,Employees,040001,Recruitment Instruction and Training,02-Jul-2014,2765652-913510,"2,025.00",GUARDIAN NEWS & MEDIA LTD.
Neighbourhood Services,Direct Services,Supplies and Services,304221,Equipment and Materials,02-Jul-2014,2765653-105187,744.12,GUSTHARTS.
Neighbourhood Services,Direct Services,Supplies and Services,304221,Equipment and Materials,02-Jul-2014,2765653-105296,525.00,GUSTHARTS.
Corporate Resources,I.C.T. Services,Stock,926900,Stock in hand-Inventory system,02-Jul-2014,2765654-INV0154373,867.06,GV MULTI MEDIA LTD.
Neighbourhood Services,Technical Services,Third Party Payments,430100,Rendered by Private Contractors,02-Jul-2014,2765655-SC5168,"30,222.76",HALL CONSTRUCTION SERVICES LTD.
Neighbourhood Services,Direct Services,Supplies and Services,304259,Equipment and Materials,02-Jul-2014,2765657-SI-2081,800.00,HARELAW SAWMILL LTD.
Neighbourhood Services,Direct Services,Stock,926004,Stock,02-Jul-2014,2765659-687007,"19,308.35",HARVEST ENERGY LTD.
Neighbourhood Services,Direct Services,Stock,926004,Stock,02-Jul-2014,2765659-687008,684.86,HARVEST ENERGY LTD.
Neighbourhood Services,Direct Services,Stock,926004,Stock,02-Jul-2014,2765659-688096,"38,230.52",HARVEST ENERGY LTD.
Neighbourhood Services,Direct Services,Stock,926004,Stock,02-Jul-2014,2765659-688201,"1,832.40",HARVEST ENERGY LTD.
Neighbourhood Services,Direct Services,Stock,926004,Stock,02-Jul-2014,2765659-688202,"19,294.20",HARVEST ENERGY LTD.
Neighbourhood Services,Direct Services,Stock,926004,Stock,02-Jul-2014,2765659-688203,"12,862.80",HARVEST ENERGY LTD.
Neighbourhood Services,Direct Services,Third Party Payments,430101,Rendered by Private Contractors,02-Jul-2014,2765664-5067107688,"1,202.37",HI Q TYRESERVICES.
Neighbourhood Services,Direct Services,Third Party Payments,430101,Rendered by Private Contractors,02-Jul-2014,2765664-5067110793,664.20,HI Q TYRESERVICES.
Neighbourhood Services,Direct Services,Third Party Payments,430101,Rendered by Private Contractors,02-Jul-2014,2765664-5067116133,900.00,HI Q TYRESERVICES.
Corporate Resources,I.C.T. Services,Supplies and Services,304303,Equipment and Materials,02-Jul-2014,2765665-1053747,"4,803.00",HIGHLANDER COMPUTING SOLUTIONS LTD.
Children and Adult Services,Education,Transport,230007,Contract Hire,02-Jul-2014,2765668-010089,960.00,HODGSONS COACH OPERATORS LTD.
Neighbourhood Services,Direct Services,Third Party Payments,430100,Rendered by Private Contractors,02-Jul-2014,2765669-54403,665.60,HOGARTH COACHWORKS LTD.
Neighbourhood Services,Direct Services,Third Party Payments,430100,Rendered by Private Contractors,02-Jul-2014,2765669-54620,840.00,HOGARTH COACHWORKS LTD.
Neighbourhood Services,Direct Services,Supplies and Services,304040,Equipment and Materials,02-Jul-2014,2765670-INV10653,"2,065.00",HORTISYSTEMS UK LTD.
Neighbourhood Services,Direct Services,Premises,115125,Repairs to Grounds,02-Jul-2014,2765672-B33/0068723,721.96,HOWDENS JOINERY LTD.
Neighbourhood Services,Direct Services,Premises,115125,Repairs to Grounds,02-Jul-2014,2765672-B33/0068808,828.48,HOWDENS JOINERY LTD.
Neighbourhood Services,Direct Services,Premises,115125,Repairs to Grounds,02-Jul-2014,2765672-B33/0068809,749.35,HOWDENS JOINERY LTD.
Neighbourhood Services,Direct Services,Premises,115125,Repairs to Grounds,02-Jul-2014,2765672-B33/0068810,844.22,HOWDENS JOINERY LTD.
Neighbourhood Services,Direct Services,Premises,115125,Repairs to Grounds,02-Jul-2014,2765672-B33/0068815,904.75,HOWDENS JOINERY LTD.
Neighbourhood Services,Direct Services,Premises,115125,Repairs to Grounds,02-Jul-2014,2765672-B33/0068904,940.12,HOWDENS JOINERY LTD.
Neighbourhood Services,Technical Services,Employees,040149,Recruitment Instruction and Training,02-Jul-2014,2765674-1181,500.00,HSF TRAINING LTD.
Neighbourhood Services,Technical Services,Stock,926900,Stock in hand-Inventory system,02-Jul-2014,2765675-32135,910.20,HUGH LOGAN ENGINEERING.
Neighbourhood Services,Culture & Sport,Premises,115125,Repairs to Grounds,02-Jul-2014,2765677-13945,"2,317.00",HUSSEY SEATWAY LTD.
Neighbourhood Services,Projects and Business services,Third Party Payments,430113,Rendered by Private Contractors,02-Jul-2014,2765678-W142014,"262,159.08",HW MARTIN WASTE LTD.
Neighbourhood Services,Technical Services,Stock,926900,Stock in hand-Inventory system,02-Jul-2014,2765679-083443,"1,587.15",HYDRAM ENGINEERING LTD.
Neighbourhood Services,Technical Services,Stock,926900,Stock in hand-Inventory system,02-Jul-2014,2765679-084235,"3,168.00",HYDRAM ENGINEERING LTD.
Neighbourhood Services,Technical Services,Stock,926900,Stock in hand-Inventory system,02-Jul-2014,2765679-084242,"3,231.36",HYDRAM ENGINEERING LTD.
Neighbourhood Services,Direct Services,Third Party Payments,430100,Rendered by Private Contractors,02-Jul-2014,2765680-12097,550.00,IAN BRADLEY RECOVERY LTD.
Regeneration & Economic Development,Spatial Policy Planning Assets & Environment,Vehicles Equipment Furniture and Fittings,912701,Computer equipment,02-Jul-2014,2765682-7002760,"5,110.00",IDOX SOFTWARE LTD.
Children and Adult Services,Planning & Service Strategy,Supplies and Services,384540,Miscellaneous Expenses,02-Jul-2014,2765684-8242,740.00,INGRAMS REMOVERS & STORERS.
Corporate Resources,I.C.T. Services,Supplies and Services,304245,Equipment and Materials,02-Jul-2014,2765685-SIN023248,503.78,INKLAND LTD.
Corporate Resources,I.C.T. Services,Supplies and Services,304252,Equipment and Materials,02-Jul-2014,2765685-SIN023294,"3,862.50",INKLAND LTD.
Children and Adult Services,Childrens Services,Supplies and Services,342033,Computers and Communications,02-Jul-2014,2765686-1899509,"2,488.10",INSIGHT DIRECT (UK) LTD.
Children and Adult Services,Education,Supplies and Services,375001,Private Finance Initiative,02-Jul-2014,2765687-ISD0091,"634,359.70",INSPIREDSPACES DURHAM (PROJECTCO1) LTD.
Neighbourhood Services,Technical Services,Stock,926900,Stock in hand-Inventory system,02-Jul-2014,2765688-452638,"2,546.88",INSTARMAC GROUP PLC.
Assistant Chief Executive,Planning & Performance Division,Supplies and Services,384197,Miscellaneous Expenses,02-Jul-2014,2765691-RM84085-RM84105,557.88,IRON MOUNTAIN (UK) LTD.
Neighbourhood Services,Technical Services,Supplies and Services,304357,Equipment and Materials,02-Jul-2014,2765693-5304676,"1,401.34",JA GILSON (AGRICULTURAL CONTRACTORS) LTD.
Neighbourhood Services,Technical Services,Supplies and Services,304357,Equipment and Materials,02-Jul-2014,2765693-5304679,"1,127.17",JA GILSON (AGRICULTURAL CONTRACTORS) LTD.
Neighbourhood Services,Direct Services,Third Party Payments,430100,Rendered by Private Contractors,02-Jul-2014,2765696-16180,"4,862.13",JDP CONTRACTING SERVICES LTD.
Children and Adult Services,Planning & Service Strategy,Supplies and Services,338026,Services,02-Jul-2014,2765697-10FINAL,"2,310.00",JEANETTE CALLAGHAN.
Neighbourhood Services,Direct Services,Supplies and Services,304221,Equipment and Materials,02-Jul-2014,2765698-3307/0151832,"1,040.73",JEWSON LTD.
Neighbourhood Services,Direct Services,Third Party Payments,430100,Rendered by Private Contractors,02-Jul-2014,2765703-15749,"15,592.98",JOHN FLOWERS LTD.
Neighbourhood Services,Direct Services,Supplies and Services,304357,Equipment and Materials,02-Jul-2014,2765705-1276646,752.00,JOHN NIXON LTD.
Neighbourhood Services,Technical Services,Supplies and Services,304358,Equipment and Materials,02-Jul-2014,2765707-16082,709.25,JOHN R BUTTERFIELD LTD.
Neighbourhood Services,Technical Services,Supplies and Services,304358,Equipment and Materials,02-Jul-2014,2765707-21401,747.40,JOHN R BUTTERFIELD LTD.
Neighbourhood Services,Technical Services,Supplies and Services,304358,Equipment and Materials,02-Jul-2014,2765707-21412,868.00,JOHN R BUTTERFIELD LTD.
Neighbourhood Services,Technical Services,Supplies and Services,304358,Equipment and Materials,02-Jul-2014,2765707-21441,"1,117.80",JOHN R BUTTERFIELD LTD.
Neighbourhood Services,Technical Services,Supplies and Services,304358,Equipment and Materials,02-Jul-2014,2765707-21447,540.50,JOHN R BUTTERFIELD LTD.
Neighbourhood Services,Technical Services,Supplies and Services,304358,Equipment and Materials,02-Jul-2014,2765707-21452,594.00,JOHN R BUTTERFIELD LTD.
Neighbourhood Services,Technical Services,Supplies and Services,304358,Equipment and Materials,02-Jul-2014,2765707-21471,975.00,JOHN R BUTTERFIELD LTD.
Neighbourhood Services,Technical Services,Supplies and Services,304358,Equipment and Materials,02-Jul-2014,2765707-21473,689.00,JOHN R BUTTERFIELD LTD.
Neighbourhood Services,Technical Services,Supplies and Services,304358,Equipment and Materials,02-Jul-2014,2765707-21478,715.80,JOHN R BUTTERFIELD LTD.
Neighbourhood Services,Technical Services,Supplies and Services,304358,Equipment and Materials,02-Jul-2014,2765707-21480,740.40,JOHN R BUTTERFIELD LTD.
Neighbourhood Services,Technical Services,Supplies and Services,304358,Equipment and Materials,02-Jul-2014,2765707-21486,856.00,JOHN R BUTTERFIELD LTD.
Neighbourhood Services,Technical Services,Supplies and Services,304358,Equipment and Materials,02-Jul-2014,2765707-21519,"1,015.00",JOHN R BUTTERFIELD LTD.
Neighbourhood Services,Technical Services,Supplies and Services,304358,Equipment and Materials,02-Jul-2014,2765707-21520,515.00,JOHN R BUTTERFIELD LTD.
Neighbourhood Services,Technical Services,Supplies and Services,304358,Equipment and Materials,02-Jul-2014,2765707-21522,701.50,JOHN R BUTTERFIELD LTD.
Neighbourhood Services,Technical Services,Supplies and Services,304358,Equipment and Materials,02-Jul-2014,2765707-21526,678.50,JOHN R BUTTERFIELD LTD.
Neighbourhood Services,Technical Services,Supplies and Services,304358,Equipment and Materials,02-Jul-2014,2765707-21528,617.20,JOHN R BUTTERFIELD LTD.
Neighbourhood Services,Technical Services,Supplies and Services,304358,Equipment and Materials,02-Jul-2014,2765707-21559,"1,215.00",JOHN R BUTTERFIELD LTD.
Neighbourhood Services,Technical Services,Supplies and Services,304358,Equipment and Materials,02-Jul-2014,2765707-21561,"1,156.00",JOHN R BUTTERFIELD LTD.
Neighbourhood Services,Technical Services,Supplies and Services,304358,Equipment and Materials,02-Jul-2014,2765707-21562,"1,120.00",JOHN R BUTTERFIELD LTD.
Neighbourhood Services,Technical Services,Supplies and Services,304358,Equipment and Materials,02-Jul-2014,2765707-21563,985.00,JOHN R BUTTERFIELD LTD.
Neighbourhood Services,Technical Services,Supplies and Services,304358,Equipment and Materials,02-Jul-2014,2765707-21564,603.00,JOHN R BUTTERFIELD LTD.
Neighbourhood Services,Technical Services,Supplies and Services,304358,Equipment and Materials,02-Jul-2014,2765707-21567,851.00,JOHN R BUTTERFIELD LTD.
Neighbourhood Services,Technical Services,Supplies and Services,304358,Equipment and Materials,02-Jul-2014,2765707-21569,733.20,JOHN R BUTTERFIELD LTD.
Neighbourhood Services,Technical Services,Supplies and Services,304358,Equipment and Materials,02-Jul-2014,2765707-21570,723.50,JOHN R BUTTERFIELD LTD.
Neighbourhood Services,Technical Services,Supplies and Services,304358,Equipment and Materials,02-Jul-2014,2765707-21606,"1,120.00",JOHN R BUTTERFIELD LTD.
Neighbourhood Services,Technical Services,Supplies and Services,304358,Equipment and Materials,02-Jul-2014,2765707-21607,"1,165.00",JOHN R BUTTERFIELD LTD.
Neighbourhood Services,Technical Services,Supplies and Services,304358,Equipment and Materials,02-Jul-2014,2765707-21610,754.00,JOHN R BUTTERFIELD LTD.
Neighbourhood Services,Technical Services,Supplies and Services,304358,Equipment and Materials,02-Jul-2014,2765707-21612,851.00,JOHN R BUTTERFIELD LTD.
Neighbourhood Services,Technical Services,Supplies and Services,304358,Equipment and Materials,02-Jul-2014,2765707-21614,741.00,JOHN R BUTTERFIELD LTD.
Neighbourhood Services,Technical Services,Supplies and Services,304358,Equipment and Materials,02-Jul-2014,2765707-21615,714.00,JOHN R BUTTERFIELD LTD.
Neighbourhood Services,Technical Services,Supplies and Services,304358,Equipment and Materials,02-Jul-2014,2765707-21617,703.20,JOHN R BUTTERFIELD LTD.
Neighbourhood Services,Technical Services,Supplies and Services,304358,Equipment and Materials,02-Jul-2014,2765707-21619,517.00,JOHN R BUTTERFIELD LTD.
Regeneration & Economic Development,Economic Development and Housing,Supplies and Services,384540,Miscellaneous Expenses,02-Jul-2014,2765708-1917422,"1,314.60",JOHNSTON PUBLISHING LTD.
RED HRA,HRA Capital,Construction Work,908105,Construction work,02-Jul-2014,2765709-200601,808.04,JOINERY & TIMBER CREATIONS (65) LTD.
RED HRA,HRA Capital,Construction Work,908105,Construction work,02-Jul-2014,2765709-337306,778.89,JOINERY & TIMBER CREATIONS (65) LTD.
RED HRA,HRA Capital,Construction Work,908105,Construction work,02-Jul-2014,2765710-200602,"10,818.29",JOINERY & TIMBER CREATIONS (65) LTD.
RED HRA,HRA Capital,Construction Work,908105,Construction work,02-Jul-2014,2765710-201411,"8,150.62",JOINERY & TIMBER CREATIONS (65) LTD.
Neighbourhood Services,Technical Services,Third Party Payments,430100,Rendered by Private Contractors,02-Jul-2014,2765711-0059,"14,414.40",JOSHUA THOMAS CONSTRUCTION LTD.
Neighbourhood Services,Technical Services,Third Party Payments,430100,Rendered by Private Contractors,02-Jul-2014,2765711-0060,"14,929.20",JOSHUA THOMAS CONSTRUCTION LTD.
Neighbourhood Services,Technical Services,Stock,926900,Stock in hand-Inventory system,02-Jul-2014,2765715-STI403599,"1,186.87",JT DOVE LTD.
Neighbourhood Services,Direct Services,Supplies and Services,304259,Equipment and Materials,02-Jul-2014,2765717-SOH01071401,"2,346.30",KANE INTERNATIONAL LTD.
Corporate Resources,I.C.T. Services,Supplies and Services,304303,Equipment and Materials,02-Jul-2014,2765719-36581,"2,495.00",KBR IT & NETWORKING SOLUTIONS.
Corporate Resources,Corporate Services Financing,Debtors,930031,Debtor-outstand insur claims,02-Jul-2014,2765720-01-14-0016474/1/DUR108,777.00,KENNEDYS LAW LLP.
Neighbourhood Services,Technical Services,Supplies and Services,304358,Equipment and Materials,02-Jul-2014,2765722-913,550.00,KEVIN SNOWDON GROUNDWORKS LTD.
Neighbourhood Services,Technical Services,Supplies and Services,332047,Printing Stationery and Gen Off Exps,02-Jul-2014,2765723-T/14/13449,540.00,KEYSOFT SOLUTIONS LTD.
Neighbourhood Services,Direct Services,Supplies and Services,304259,Equipment and Materials,02-Jul-2014,2765724-SI02-0027170,"1,727.04",KILLGERM CHEMICALS LTD.
Neighbourhood Services,Direct Services,Third Party Payments,430100,Rendered by Private Contractors,02-Jul-2014,2765729-INV00497352,535.00,LANES GROUP PLC.
Neighbourhood Services,Direct Services,Third Party Payments,430100,Rendered by Private Contractors,02-Jul-2014,2765733-LCPMF10036,"1,220.64",LEISURE CONNECTION LTD.
Neighbourhood Services,Direct Services,Third Party Payments,430100,Rendered by Private Contractors,02-Jul-2014,2765733-LCPMF10343,"1,500.00",LEISURE CONNECTION LTD.
Neighbourhood Services,Direct Services,Third Party Payments,430100,Rendered by Private Contractors,02-Jul-2014,2765733-LCPMF9798,"2,318.29",LEISURE CONNECTION LTD.
Assistant Chief Executive,Partnerships & Community Engagement Div.,Debtors,930200,Debtors-Capital Project Recharge holding account,02-Jul-2014,2765734-715,650.00,LEWIS SURVEYING ASSOCIATES LLP..
Neighbourhood Services,Technical Services,Stock,926900,Stock in hand-Inventory system,02-Jul-2014,2765736-700381,"6,000.00",LIGHTING & ILLUMINATION TECHNOLOGY EXPERIENCE LTD (LITE).
Neighbourhood Services,Technical Services,Stock,926900,Stock in hand-Inventory system,02-Jul-2014,2765736-700383,"4,875.00",LIGHTING & ILLUMINATION TECHNOLOGY EXPERIENCE LTD (LITE).
Regeneration & Economic Development,Spatial Policy Planning Assets & Environment,Supplies and Services,384540,Miscellaneous Expenses,02-Jul-2014,2765744-995,767.00,MARCUS BYRON.
RED HRA,HRA Centrally Managed,Creditors,952184,Creditor-tenants contents insurance,02-Jul-2014,2765747-6357935,"3,123.68",MARSH LTD UK.
Neighbourhood Services,Technical Services,Supplies and Services,304358,Equipment and Materials,02-Jul-2014,2765749-1694,760.00,MARTIN JEWITT PLANT HIRE.
Neighbourhood Services,Technical Services,Supplies and Services,304358,Equipment and Materials,02-Jul-2014,2765749-1695,564.00,MARTIN JEWITT PLANT HIRE.
Children and Adult Services,Childrens Services,Supplies and Services,304403,Equipment and Materials,02-Jul-2014,2765750-829436,770.00,MARWOOD GROUP LTD.
Children and Adult Services,Childrens Services,Premises,108301,Service Repairs and Maintenance,02-Jul-2014,2765751-SSOPF001MB,"3,165.00",MASON & BONE PAINTING CONTRACTORS LTD.
Regeneration & Economic Development,Spatial Policy Planning Assets & Environment,Supplies and Services,384199,Miscellaneous Expenses,02-Jul-2014,2765756-BURSARY2JUN14,553.34,MICHAEL NICHOL.
RED HRA,Housing Revenue Account,Premises,105003,HRA Repair & Maintenance,02-Jul-2014,2765760-201409,"3,795.44",MITIE PROPERTY SERVICES (UK) LTD.
Regeneration & Economic Development,Economic Development and Housing,Supplies and Services,384700,Miscellaneous Expenses,02-Jul-2014,2765763-RED-07-2014-001,"1,000.00",REDACTED - PAYMENT TO INDIVIDUAL
Regeneration & Economic Development,Spatial Policy Planning Assets & Environment,Supplies and Services,338027,Services,02-Jul-2014,2765772-84779,"2,375.00",NATHANIEL LICHFIELD & PARTNERS LTD.
Children and Adult Services,Education,Supplies and Services,384540,Miscellaneous Expenses,02-Jul-2014,2765773-272114,"2,793.30",NATIONAL LEAFLET CO LTD.
RED HRA,HRA Capital,Construction Work,908105,Construction work,02-Jul-2014,2765776-8111,"1,521.00",NELSONS OF DURHAM.
RED HRA,HRA Capital,Construction Work,908105,Construction work,02-Jul-2014,2765776-8112,931.50,NELSONS OF DURHAM.
Children and Adult Services,Childrens Services,Supplies and Services,340001,Postages,02-Jul-2014,2765778-251207-81,"1,000.00",NEOPOST LTD CREDIFON RCB ACCOUNT.
Neighbourhood Services,Direct Services,Supplies and Services,304259,Equipment and Materials,02-Jul-2014,2765779-062156,"1,270.40",NEW ROW FARM NURSERIES.
Corporate Resources,I.C.T. Services,Supplies and Services,312009,Newspapers Books and Periodicals,02-Jul-2014,2765780-001636,520.00,NEWSMARKET.
Corporate Resources,I.C.T. Services,Construction Work,908105,Construction work,02-Jul-2014,2765784-DI20191787,"3,569.00",NORTHERN POWERGRID (NORTHEAST) LTD.
Neighbourhood Services,Culture & Sport,Supplies and Services,384700,Miscellaneous Expenses,02-Jul-2014,2765791-NEI-EXP-06-2014-040,"1,258.00",NOUVEAU FITNESS CIC.
Regeneration & Economic Development,Economic Development and Housing,Premises,120009,Energy Costs,02-Jul-2014,2765792-NNO7K25N,"1,619.87",NPOWER.
Regeneration & Economic Development,Economic Development and Housing,Premises,120009,Energy Costs,02-Jul-2014,2765792-NNO7K26N,"1,531.66",NPOWER.
RED HRA,Housing Revenue Account,Supplies and Services,338027,Services,02-Jul-2014,2765797-1528,"3,488.31",OPEN COMMUNITIES LTD.
Regeneration & Economic Development,Economic Development and Housing,Supplies and Services,384700,Miscellaneous Expenses,02-Jul-2014,2765798-RED-06-2014-036,725.00,OPEN FIRE CENTRE.
Neighbourhood Services,Direct Services,Third Party Payments,430100,Rendered by Private Contractors,02-Jul-2014,2765801-261,"4,990.10",PARAMOUNT CEILINGS & PARTITIONS.
Neighbourhood Services,Direct Services,Third Party Payments,430100,Rendered by Private Contractors,02-Jul-2014,2765801-263,714.10,PARAMOUNT CEILINGS & PARTITIONS.
Neighbourhood Services,Direct Services,Third Party Payments,430100,Rendered by Private Contractors,02-Jul-2014,2765801-264,582.00,PARAMOUNT CEILINGS & PARTITIONS.
Neighbourhood Services,Technical Services,Stock,926900,Stock in hand-Inventory system,02-Jul-2014,2765802-XL116742,506.00,PARK ELECTRICAL DISTRIBUTORS LTD.
Neighbourhood Services,Technical Services,Stock,926900,Stock in hand-Inventory system,02-Jul-2014,2765802-XL117052,"2,077.65",PARK ELECTRICAL DISTRIBUTORS LTD.
Neighbourhood Services,Technical Services,Stock,926900,Stock in hand-Inventory system,02-Jul-2014,2765802-XL117100,823.50,PARK ELECTRICAL DISTRIBUTORS LTD.
Neighbourhood Services,Technical Services,Stock,926900,Stock in hand-Inventory system,02-Jul-2014,2765802-XL117280,"3,432.05",PARK ELECTRICAL DISTRIBUTORS LTD.
Neighbourhood Services,Technical Services,Stock,926900,Stock in hand-Inventory system,02-Jul-2014,2765802-XL117357,"1,543.78",PARK ELECTRICAL DISTRIBUTORS LTD.
Neighbourhood Services,Technical Services,Stock,926900,Stock in hand-Inventory system,02-Jul-2014,2765802-XL117358,740.00,PARK ELECTRICAL DISTRIBUTORS LTD.
Neighbourhood Services,Direct Services,Supplies and Services,304221,Equipment and Materials,02-Jul-2014,2765802-XL117461,"2,835.00",PARK ELECTRICAL DISTRIBUTORS LTD.
Neighbourhood Services,Technical Services,Stock,926900,Stock in hand-Inventory system,02-Jul-2014,2765802-XL117477,660.00,PARK ELECTRICAL DISTRIBUTORS LTD.
Neighbourhood Services,Technical Services,Stock,926900,Stock in hand-Inventory system,02-Jul-2014,2765802-XL117545,"1,543.59",PARK ELECTRICAL DISTRIBUTORS LTD.
Children and Adult Services,Childrens Services,Supplies and Services,304259,Equipment and Materials,02-Jul-2014,2765803-60007158,"1,960.00",PARK RETAIL LTD.
Assistant Chief Executive,Partnerships & Community Engagement Div.,Supplies and Services,384086,Miscellaneous Expenses,02-Jul-2014,2765804-VOUCHER12NB-CHES080,"5,000.00",PARK VIEW COMMUNITY ASSOCIATION.
Neighbourhood Services,Culture & Sport,Supplies and Services,384199,Miscellaneous Expenses,02-Jul-2014,2765805-51,500.00,PAUL GREGORY T/A LANTERNS ON THE LAKE.
Children and Adult Services,Education,Transport,230008,Contract Hire,02-Jul-2014,2765806-DDC11,"1,680.00",PAUL`S TAXIS..
Neighbourhood Services,Technical Services,Third Party Payments,430100,Rendered by Private Contractors,02-Jul-2014,2765807-C261/CS/VAT/001,"3,995.00",PBU (UK) LTD.
Neighbourhood Services,Technical Services,Third Party Payments,430100,Rendered by Private Contractors,02-Jul-2014,2765807-C262/CS/VAT/001,"2,999.00",PBU (UK) LTD.
Corporate Resources,I.C.T. Services,Construction Work,908105,Construction work,02-Jul-2014,2765807-C263/CS/VAT/001,"4,950.00",PBU (UK) LTD.
Dedicated Schools Grant,Dedicated Schools Grant,Third Party Payments,425005,Rendered by Voluntary Organisations,02-Jul-2014,2765808-250314,"14,048.40",PEARTREE PROJECTS LTD.
Regeneration & Economic Development,Economic Development and Housing,Cap Exp on Grants & Other Financial Assistance (REFCUS),918401,Capital grants,02-Jul-2014,2765809-RED-06-2014-188,"2,015.00",PETER JORDAN.
Regeneration & Economic Development,Economic Development and Housing,Cap Exp on Grants & Other Financial Assistance (REFCUS),918401,Capital grants,02-Jul-2014,2765809-RED-06-2014-189,"2,982.00",PETER JORDAN.
Children and Adult Services,Education,Transport,230008,Contract Hire,02-Jul-2014,2765810-438,"1,008.00",PETERLEE EXECUTIVE CARS.
Children and Adult Services,Childrens Services,Supplies and Services,384302,Miscellaneous Expenses,02-Jul-2014,2765812-TICKETS-BUS,975.00,PETERLEE YOUTH CENTRE.
RED HRA,HRA Capital,Construction Work,908105,Construction work,02-Jul-2014,2765815-200608,"1,611.72",PLUMBING TRADE SUPPLIES LTD.
Neighbourhood Services,Direct Services,Supplies and Services,304221,Equipment and Materials,02-Jul-2014,2765815-4120167116,"1,011.04",PLUMBING TRADE SUPPLIES LTD.
Neighbourhood Services,Direct Services,Supplies and Services,304221,Equipment and Materials,02-Jul-2014,2765815-4120167160,972.25,PLUMBING TRADE SUPPLIES LTD.
Neighbourhood Services,Direct Services,Supplies and Services,304221,Equipment and Materials,02-Jul-2014,2765815-4120167256,754.75,PLUMBING TRADE SUPPLIES LTD.
RED HRA,HRA Capital,Construction Work,908105,Construction work,02-Jul-2014,2765816-200607,"2,332.66",PLUMBING TRADE SUPPLIES LTD.
Neighbourhood Services,Direct Services,Supplies and Services,304221,Equipment and Materials,02-Jul-2014,2765816-201435,"1,158.92",PLUMBING TRADE SUPPLIES LTD.
Neighbourhood Services,Direct Services,Supplies and Services,304221,Equipment and Materials,02-Jul-2014,2765816-4120167408,"1,003.30",PLUMBING TRADE SUPPLIES LTD.
Neighbourhood Services,Direct Services,Supplies and Services,304357,Equipment and Materials,02-Jul-2014,2765821-129427,"1,280.00",PREMIER TRAFFIC MANAGEMENT LTD.
Neighbourhood Services,Technical Services,Third Party Payments,430100,Rendered by Private Contractors,02-Jul-2014,2765821-129642,"4,391.00",PREMIER TRAFFIC MANAGEMENT LTD.
Neighbourhood Services,Direct Services,Third Party Payments,430100,Rendered by Private Contractors,02-Jul-2014,2765824-67559,"2,292.18",PROTECTOR SECURITY GROUP LTD.
Neighbourhood Services,Direct Services,Third Party Payments,430100,Rendered by Private Contractors,02-Jul-2014,2765824-67591,"2,292.18",PROTECTOR SECURITY GROUP LTD.
Neighbourhood Services,Culture & Sport,Supplies and Services,384956,Miscellaneous Expenses,02-Jul-2014,2765825-4258241,794.28,PRS FOR MUSIC.
Regeneration & Economic Development,Economic Development and Housing,Other Expenses,914001,Other capital expenses,02-Jul-2014,2765827-RED-06-2014-174,"8,846.40",R TINDALE (BUILDER) LTD.
Neighbourhood Services,Technical Services,Third Party Payments,430100,Rendered by Private Contractors,02-Jul-2014,2765829-2580/140615,"8,616.53",RAINTON CONSTRUCTION LTD.
Neighbourhood Services,Direct Services,Supplies and Services,304357,Equipment and Materials,02-Jul-2014,2765830-8889,"1,262.00",RD KEARTON & SONS LTD.
Neighbourhood Services,Technical Services,Supplies and Services,304358,Equipment and Materials,02-Jul-2014,2765830-8903,"1,800.00",RD KEARTON & SONS LTD.
Neighbourhood Services,Direct Services,Third Party Payments,430100,Rendered by Private Contractors,02-Jul-2014,2765834-2988,700.00,RINGLAND SCAFFOLDING.
Neighbourhood Services,Direct Services,Third Party Payments,430100,Rendered by Private Contractors,02-Jul-2014,2765836-25028,"8,945.00",RJ UTILITY SERVICES LTD.
Children and Adult Services,Planning & Service Strategy,Supplies and Services,340001,Postages,02-Jul-2014,2765841-1801593288,"1,574.00",ROYAL MAIL GROUP PLC.
Neighbourhood Services,Direct Services,Third Party Payments,430100,Rendered by Private Contractors,02-Jul-2014,2765842-JUN02214,"3,189.40",RW CHICKEN (SCAFFOLDING) LTD.
Neighbourhood Services,Culture & Sport,Premises,115125,Repairs to Grounds,02-Jul-2014,2765844-7867,"1,137.10",SAFE SECURE LOCKER SERVICES LTD.
Neighbourhood Services,Direct Services,Transport,230005,Contract Hire,02-Jul-2014,2765848-27480,"1,540.00",SALFORD VAN HIRE LTD.
Children and Adult Services,Childrens Services,Supplies and Services,384302,Miscellaneous Expenses,02-Jul-2014,2765849-032,600.00,SARAH SEED T/A MINI MIXERS.
Neighbourhood Services,EnvironmentHealth & Consumer Protection,Supplies and Services,304999,Equipment and Materials,02-Jul-2014,2765850-3106028033,790.80,SARTORIUS MECHATRONICS UK LTD.
Children and Adult Services,Planning & Service Strategy,Supplies and Services,384956,Miscellaneous Expenses,02-Jul-2014,2765851-140510,"1,600.00",SCILS.
Assistant Chief Executive,Partnerships & Community Engagement Div.,Transfer Payments,525030,Other,02-Jul-2014,2765853-VOUCHER13AB-GAMP012,"5,000.00",SEDGEFIELD SCHOOL SPORT PARTNERSHIP CIC.
RED HRA,HRA Capital,Construction Work,908105,Construction work,02-Jul-2014,2765856-74976,"2,970.00",SGS MIS ENVIRONMENTAL LTD.
RED HRA,HRA Capital,Construction Work,908105,Construction work,02-Jul-2014,2765856-75023,630.00,SGS MIS ENVIRONMENTAL LTD.
RED HRA,HRA Capital,Construction Work,908105,Construction work,02-Jul-2014,2765856-75069,696.00,SGS MIS ENVIRONMENTAL LTD.
RED HRA,HRA Capital,Construction Work,908105,Construction work,02-Jul-2014,2765856-75156,"2,200.00",SGS MIS ENVIRONMENTAL LTD.
RED HRA,HRA Capital,Construction Work,908105,Construction work,02-Jul-2014,2765856-75244,700.00,SGS MIS ENVIRONMENTAL LTD.
Neighbourhood Services,Direct Services,Transport,230005,Contract Hire,02-Jul-2014,2765858-10493539,"1,785.00",SHB HIRE LTD.
Neighbourhood Services,Technical Services,Supplies and Services,304358,Equipment and Materials,02-Jul-2014,2765859-2014032,"1,239.00",SHIREHAVEN LTD.
Neighbourhood Services,Technical Services,Supplies and Services,304358,Equipment and Materials,02-Jul-2014,2765859-2014033,909.00,SHIREHAVEN LTD.
Neighbourhood Services,Technical Services,Supplies and Services,304358,Equipment and Materials,02-Jul-2014,2765859-2014034,"1,558.75",SHIREHAVEN LTD.
Neighbourhood Services,Technical Services,Supplies and Services,304358,Equipment and Materials,02-Jul-2014,2765859-2014035,"1,143.75",SHIREHAVEN LTD.
Neighbourhood Services,Technical Services,Stock,926900,Stock in hand-Inventory system,02-Jul-2014,2765861-S1-087740,835.00,SICAME ELECTRICAL DISTRIBUTION LTD.
Neighbourhood Services,Direct Services,Supplies and Services,304221,Equipment and Materials,02-Jul-2014,2765862-714516974103,839.20,SIG TRADING LTD.
Corporate Resources,I.C.T. Services,Supplies and Services,342051,Computers and Communications,02-Jul-2014,2765866-65515,595.00,SNAP SURVEYS.
Neighbourhood Services,Direct Services,Supplies and Services,304999,Equipment and Materials,02-Jul-2014,2765867-INV264081,999.95,SNOWBALLS LTD.
Regeneration & Economic Development,Economic Development and Housing,Supplies and Services,384700,Miscellaneous Expenses,02-Jul-2014,2765868-RED-07-2014-003,"5,000.00",SOCIAL HOUSING ENTERPRISE DURHAM.
Corporate Resources,I.C.T. Services,Construction Work,908105,Construction work,02-Jul-2014,2765870-INV00969191,"2,599.60",SOFTCAT LTD.
Corporate Resources,I.C.T. Services,Stock,926900,Stock in hand-Inventory system,02-Jul-2014,2765872-OP/L844840,"4,688.10",SPECIALIST COMPUTER CENTRES PLC.
Corporate Resources,I.C.T. Services,Stock,926900,Stock in hand-Inventory system,02-Jul-2014,2765872-OP/L847810,"4,817.70",SPECIALIST COMPUTER CENTRES PLC.
Corporate Resources,I.C.T. Services,Stock,926900,Stock in hand-Inventory system,02-Jul-2014,2765872-OP/L848496,"14,453.10",SPECIALIST COMPUTER CENTRES PLC.
Children and Adult Services,Childrens Services,Third Party Payments,425017,Rendered by Voluntary Organisations,02-Jul-2014,2765878-3761,"3,132.00",ST OSWALD`S HOSPICE.
Children and Adult Services,Commissioning inc Supporting People,Third Party Payments,479111,Purchase of Care,02-Jul-2014,2765884-CRM5316,"12,175.00",STROKE ASSOCIATION.
Corporate Resources,I.C.T. Services,Stock,926900,Stock in hand-Inventory system,02-Jul-2014,2765887-6761703,748.26,SUPPLIES TEAM LTD.
Neighbourhood Services,Technical Services,Stock,926900,Stock in hand-Inventory system,02-Jul-2014,2765888-46/842136,"1,160.00",SUPPLY UK.
Children and Adult Services,Childrens Services,Third Party Payments,425040,Rendered by Voluntary Organisations,02-Jul-2014,2765891-148211,910.00,SWIIS FOSTER CARE LTD.
Children and Adult Services,Childrens Services,Third Party Payments,425040,Rendered by Voluntary Organisations,02-Jul-2014,2765891-148212,"1,069.00",SWIIS FOSTER CARE LTD.
Children and Adult Services,Childrens Services,Third Party Payments,425040,Rendered by Voluntary Organisations,02-Jul-2014,2765891-148213,"1,075.00",SWIIS FOSTER CARE LTD.
Children and Adult Services,Childrens Services,Third Party Payments,425040,Rendered by Voluntary Organisations,02-Jul-2014,2765891-148471,891.90,SWIIS FOSTER CARE LTD.
Children and Adult Services,Childrens Services,Third Party Payments,425040,Rendered by Voluntary Organisations,02-Jul-2014,2765891-148472,"1,208.00",SWIIS FOSTER CARE LTD.
Children and Adult Services,Childrens Services,Third Party Payments,486044,Service Level Agreements,02-Jul-2014,2765896-4810002554,"3,560.67",TEES ESK & WEAR VALLEYS NHS FOUNDATION TRUST.
Neighbourhood Services,Projects and Business services,Third Party Payments,430103,Rendered by Private Contractors,02-Jul-2014,2765898-NEI-EXP-06-2014-037,"8,525.45",TEESDALE CONSERVATION VOLUNTEERS.
Children and Adult Services,Education,Premises,125009,Rents,02-Jul-2014,2765905-3115,"4,813.75",THE WORK PLACE (AYCLIFFE) LTD.
Children and Adult Services,Education,Premises,125009,Rents,02-Jul-2014,2765905-3116,"1,233.30",THE WORK PLACE (AYCLIFFE) LTD.
Neighbourhood Services,Technical Services,Stock,926900,Stock in hand-Inventory system,02-Jul-2014,2765906-N/IN124527,673.65,THOMAS OWEN & SONS (NEWCASTLE) LTD.
Neighbourhood Services,Direct Services,Supplies and Services,304221,Equipment and Materials,02-Jul-2014,2765909-001426006,919.15,THORLUX LIGHTING.
Regeneration & Economic Development,Economic Development and Housing,Cap Exp on Grants & Other Financial Assistance (REFCUS),918401,Capital grants,02-Jul-2014,2765910-RED-06-2014-186,655.00,THYSSENKRUPP ENCASA LTD.
Regeneration & Economic Development,Economic Development and Housing,Cap Exp on Grants & Other Financial Assistance (REFCUS),918401,Capital grants,02-Jul-2014,2765910-RED-06-2014-187,"3,860.00",THYSSENKRUPP ENCASA LTD.
Regeneration & Economic Development,Economic Development and Housing,Cap Exp on Grants & Other Financial Assistance (REFCUS),918401,Capital grants,02-Jul-2014,2765910-RED-06-2014-187A,"1,796.00",THYSSENKRUPP ENCASA LTD.
Corporate Resources,I.C.T. Services,Supplies and Services,304259,Equipment and Materials,02-Jul-2014,2765917-110634,912.50,TP ELECTRICAL SUPPLIES & FIXINGS LTD.
Regeneration & Economic Development,Spatial Policy Planning Assets & Environment,Supplies and Services,384199,Miscellaneous Expenses,02-Jul-2014,2765920-0000001325,"4,000.00",TULLIE HOUSE MUSEUM & ART GALLERY TRUST.
Neighbourhood Services,Technical Services,Supplies and Services,304221,Equipment and Materials,02-Jul-2014,2765924-138172,829.04,TYNEDALE ROADSTONE LTD.
Neighbourhood Services,Redundant Direct Services,Supplies and Services,384974,Miscellaneous Expenses,02-Jul-2014,2765925-NEI-EXP-07-2014-001,"50,000.00",VEHICLE & OPERATOR SERVICES AGENCY (VOSA).
Corporate Resources,I.C.T. Services,Construction Work,908105,Construction work,02-Jul-2014,2765928-2345152,"41,140.50",VIGLEN LTD.
Corporate Resources,I.C.T. Services,Stock,926900,Stock in hand-Inventory system,02-Jul-2014,2765928-2345173,"1,595.00",VIGLEN LTD.
Corporate Resources,I.C.T. Services,Stock,926900,Stock in hand-Inventory system,02-Jul-2014,2765928-2345353,"16,150.00",VIGLEN LTD.
Neighbourhood Services,Technical Services,Supplies and Services,304358,Equipment and Materials,02-Jul-2014,2765932-37427,616.00,W MARLEY AGRICULTURAL CONTRACTORS LTD.
Neighbourhood Services,Culture & Sport,Supplies and Services,304259,Equipment and Materials,02-Jul-2014,2765938-1121,832.00,WICKED TECHNICAL SERVICES.
Neighbourhood Services,Direct Services,Supplies and Services,304221,Equipment and Materials,02-Jul-2014,2765943-36078,"14,763.48",WILLOWCRETE MFG CO LTD.
Regeneration & Economic Development,Transport and Contracted Services,Other Expenses,914001,Other capital expenses,02-Jul-2014,2765945-302505,941.39,WM SMITH & SONS (BARNARD CASTLE) LTD.
Neighbourhood Services,Direct Services,Supplies and Services,304221,Equipment and Materials,02-Jul-2014,2765946-13225203,525.35,WOLSELEY UK LTD.
Regeneration & Economic Development,Economic Development and Housing,Supplies and Services,384899,Miscellaneous Expenses,02-Jul-2014,2765947-541,"1,500.00",WOMEN INTO THE NETWORK LTD.
RED HRA,Housing Revenue Account,Supplies and Services,342007,Computers and Communications,02-Jul-2014,2765949-DCC061,"1,475.00",WYNYARD IT & CONSULTANCY SERVICES LT.
Corporate Resources,I.C.T. Services,Stock,926900,Stock in hand-Inventory system,02-Jul-2014,2765950-V646358,746.03,XMA LTD.
Corporate Resources,I.C.T. Services,Stock,926900,Stock in hand-Inventory system,02-Jul-2014,2765950-V701436,"1,014.49",XMA LTD.
Neighbourhood Services,Culture & Sport,Vehicles Equipment Furniture and Fittings,912701,Computer equipment,02-Jul-2014,2765951-04001610,"1,300.00",XN LEISURE SYSTEMS LTD.
Regeneration & Economic Development,Spatial Policy Planning Assets & Environment,Supplies and Services,384899,Miscellaneous Expenses,02-Jul-2014,2765953-RED-06-2014-198,"7,000.00",YORKSHIRE WILDLIFE TRUST.
RED HRA,HRA Capital,Construction Work,908105,Construction work,02-Jul-2014,2765954-31382,"1,288.12",YWC GROUP LTD.
RED HRA,HRA Capital,Construction Work,908105,Construction work,02-Jul-2014,2765954-31383,"13,473.72",YWC GROUP LTD.
RED HRA,HRA Capital,Construction Work,908105,Construction work,02-Jul-2014,2765954-31384,"1,422.16",YWC GROUP LTD.
RED HRA,HRA Capital,Construction Work,908105,Construction work,02-Jul-2014,2765954-31509,"9,327.96",YWC GROUP LTD.
RED HRA,HRA Capital,Construction Work,908105,Construction work,02-Jul-2014,2765954-31510,"1,036.44",YWC GROUP LTD.
RED HRA,HRA Capital,Construction Work,908105,Construction work,02-Jul-2014,2765954-31511,"2,247.85",YWC GROUP LTD.
Dale and Valley Homes,Resources,Supplies and Services,342051,Computers and Communications,03-Jul-2014,2003056-93700232,"1,100.00",CAPITA BUSINESS SERVICES LTD.
Dale and Valley Homes,Property Services,Premises,105006,HRA Repair & Maintenance,03-Jul-2014,2003057-252301114,"37,000.00",DURHAM COUNTY COUNCIL.
Dale and Valley Homes,Resources,Employees,080025,Agency Staff,03-Jul-2014,2003060-7449152,618.55,MANPOWER UK LTD.
Dale and Valley Homes,Property Services,Premises,145015,Cleaning and Domestic Supplies,03-Jul-2014,2003061-6444,"1,279.45",MJF CLEANING SERVICES LTD.
Dale and Valley Homes,Resources,Employees,080025,Agency Staff,03-Jul-2014,2003064-153586,"2,250.00",NORTHERN RECRUITMENT GROUP PLC.
Dale and Valley Homes,Property Services,Premises,135005,Water Services,03-Jul-2014,2003066-311225450019021,627.17,NORTHUMBRIAN WATER LTD.
Dale and Valley Homes,Neighbourhood Operations,Supplies and Services,342051,Computers and Communications,03-Jul-2014,2003073-HA-DAL-0001-2022,"6,893.31",VERSEONE TECHNOLOGIES LTD.
Dale and Valley Homes,Neighbourhood Operations,Supplies and Services,342051,Computers and Communications,03-Jul-2014,2003073-HA-DAL-0001-2055,"4,297.90",VERSEONE TECHNOLOGIES LTD.
Fire and Rescue Service,Management and Support Services,Employees,080025,Agency Staff,03-Jul-2014,2016540-00269129,986.05,COREPEOPLE RECRUITMENT.
Fire and Rescue Service,Management and Support Services,Supplies and Services,384199,Miscellaneous Expenses,03-Jul-2014,2016541-201421,"3,106.00",DAWN PARKIN SOLUTIONS LTD.
Fire and Rescue Service,Community Protection Directorate,Construction Work,908105,Construction work,03-Jul-2014,2016542-75106095,"13,835.44",EC HARRIS LLP.
Fire and Rescue Service,OD Directorate,Construction Work,908105,Construction work,03-Jul-2014,2016542-75106096,"9,667.31",EC HARRIS LLP.
Fire and Rescue Service,Community Protection Directorate,Supplies and Services,338045,Services,03-Jul-2014,2016545-FSIN6753,"3,500.00",ESSEX FIRE AUTHORITY (EFA TRADING).
Fire and Rescue Service,Management and Support Services,Employees,080025,Agency Staff,03-Jul-2014,2016550-1004224678,580.56,HAYS OFFICE SUPPORT.
Fire and Rescue Service,Management and Support Services,Employees,080025,Agency Staff,03-Jul-2014,2016550-1004240183,625.31,HAYS OFFICE SUPPORT.
Fire and Rescue Service,Community Protection Directorate,Construction Work,908105,Construction work,03-Jul-2014,2016553-VNE67861,"1,500.00",INTERSERVE CONSTRUCTION LTD.
Fire and Rescue Service,OD Directorate,Supplies and Services,332029,Printing Stationery and Gen Off Exps,03-Jul-2014,2016554-1765,595.00,MIDAS CREATIVE SOLUTIONS.
Fire and Rescue Service,Management and Support Services,Supplies and Services,336005,Advertising,03-Jul-2014,2016555-5508895,683.80,NEWSQUEST (YORKSHIRE & NORTH EAST) LTD.
Fire and Rescue Service,Management and Support Services,Transport,210057,Repair and Maintenance of Vehicles,03-Jul-2014,2016556-SI1234391,575.88,NPA MOTOR FACTORS LTD.
Fire and Rescue Service,OD Directorate,Employees,040149,Recruitment Instruction and Training,03-Jul-2014,2016557-012,895.00,PHF TRAINING LTD.
Regeneration & Economic Development,Economic Development and Housing,Supplies and Services,384999,Miscellaneous Expenses,03-Jul-2014,2765961-LODGE/439,650.00,700 CLUB.
Children and Adult Services,Head of Adults,Transfer Payments,515201,Social Services Clients,03-Jul-2014,2765968-CAS-07-2014-001,621.04,REDACTED - PAYMENT TO INDIVIDUAL
Neighbourhood Services,Technical Services,Supplies and Services,304221,Equipment and Materials,03-Jul-2014,2765974-19699770,561.37,AGGREGATE INDUSTRIES UK LTD.
Neighbourhood Services,Technical Services,Supplies and Services,304221,Equipment and Materials,03-Jul-2014,2765974-19722245,"1,119.06",AGGREGATE INDUSTRIES UK LTD.
Neighbourhood Services,Technical Services,Supplies and Services,304221,Equipment and Materials,03-Jul-2014,2765974-19818888,679.20,AGGREGATE INDUSTRIES UK LTD.
Neighbourhood Services,Technical Services,Supplies and Services,304221,Equipment and Materials,03-Jul-2014,2765974-19839434,"5,906.12",AGGREGATE INDUSTRIES UK LTD.
Neighbourhood Services,Technical Services,Supplies and Services,304221,Equipment and Materials,03-Jul-2014,2765975-19610926,625.88,AGGREGATE INDUSTRIES UK LTD.
Neighbourhood Services,Technical Services,Supplies and Services,304221,Equipment and Materials,03-Jul-2014,2765975-19663734,"1,131.53",AGGREGATE INDUSTRIES UK LTD.
Neighbourhood Services,Technical Services,Supplies and Services,304221,Equipment and Materials,03-Jul-2014,2765975-19688873,"1,798.28",AGGREGATE INDUSTRIES UK LTD.
Neighbourhood Services,Technical Services,Supplies and Services,304221,Equipment and Materials,03-Jul-2014,2765975-19813041,557.83,AGGREGATE INDUSTRIES UK LTD.
Neighbourhood Services,Technical Services,Supplies and Services,304221,Equipment and Materials,03-Jul-2014,2765975-19818887,569.17,AGGREGATE INDUSTRIES UK LTD.
Neighbourhood Services,Technical Services,Supplies and Services,304221,Equipment and Materials,03-Jul-2014,2765975-19882862,"1,467.55",AGGREGATE INDUSTRIES UK LTD.
Neighbourhood Services,Technical Services,Supplies and Services,304221,Equipment and Materials,03-Jul-2014,2765975-19903377,502.18,AGGREGATE INDUSTRIES UK LTD.
Children and Adult Services,Childrens Services,Premises,108251,Service Repairs and Maintenance,03-Jul-2014,2765978-37582,"1,250.00",ALARM RADIO MONITORING LTD.
Children and Adult Services,Education,Fees,901002,Consultants fees,03-Jul-2014,2765996-14006615,"1,397.50",ATKINS GLOBAL.
Children and Adult Services,Education,Transport,230006,Contract Hire,03-Jul-2014,2765997-03155,711.96,ATLAS TAXIS CONSETT.
Children and Adult Services,Childrens Services,Premises,108099,Service Repairs and Maintenance,03-Jul-2014,2766000-28511,857.00,AYCLIFFE FABRICATIONS LTD.
Children and Adult Services,Education,Transport,230008,Contract Hire,03-Jul-2014,2766012-06555,"1,296.00",BIRDS TAXIS.
Children and Adult Services,Education,Transport,230008,Contract Hire,03-Jul-2014,2766012-06557,"1,616.00",BIRDS TAXIS.
Children and Adult Services,Education,Transport,230008,Contract Hire,03-Jul-2014,2766012-06559,"1,232.00",BIRDS TAXIS.
Regeneration & Economic Development,Economic Development and Housing,Supplies and Services,384437,Miscellaneous Expenses,03-Jul-2014,2766052-504573,"5,357.94",CLICK TRAVEL LTD.
Children and Adult Services,Childrens Services,Transport,235057,Public Transport,03-Jul-2014,2766052-509132,"5,041.60",CLICK TRAVEL LTD.
Children and Adult Services,Childrens Services,Third Party Payments,479101,Purchase of Care,03-Jul-2014,2766056-3910003988,"1,371.07",CO DURHAM & DARLINGTON NHS FOUNDATION TRUST.
Children and Adult Services,Childrens Services,Third Party Payments,479101,Purchase of Care,03-Jul-2014,2766056-3980004674,"1,391.41",CO DURHAM & DARLINGTON NHS FOUNDATION TRUST.
Neighbourhood Services,Technical Services,Stock,926900,Stock in hand-Inventory system,03-Jul-2014,2766059-152129,612.00,COLAS LTD.
Regeneration & Economic Development,Transport and Contracted Services,Supplies and Services,384199,Miscellaneous Expenses,03-Jul-2014,2766086-2489226,"4,455.00",DARLINGTON BOROUGH COUNCIL.
Neighbourhood Services,Direct Services,Transport,230005,Contract Hire,03-Jul-2014,2766092-673949,504.00,DAWSONRENTALS VANS LTD.
Neighbourhood Services,Direct Services,Transport,230005,Contract Hire,03-Jul-2014,2766092-673951,504.00,DAWSONRENTALS VANS LTD.
Neighbourhood Services,Direct Services,Transport,230005,Contract Hire,03-Jul-2014,2766092-673952,504.00,DAWSONRENTALS VANS LTD.
RED HRA,HRA Capital,Construction Work,908105,Construction work,03-Jul-2014,2766112-199738,"5,660.96",EDMUNDSON ELECTRICAL LTD.
RED HRA,HRA Capital,Construction Work,908105,Construction work,03-Jul-2014,2766121-0000130461,708.68,ENVIROVENT LTD.
RED HRA,HRA Capital,Construction Work,908105,Construction work,03-Jul-2014,2766121-0000130971,786.73,ENVIROVENT LTD.
RED HRA,HRA Capital,Construction Work,908105,Construction work,03-Jul-2014,2766121-0000134015,851.96,ENVIROVENT LTD.
RED HRA,HRA Capital,Construction Work,908105,Construction work,03-Jul-2014,2766121-0000134016,769.20,ENVIROVENT LTD.
Regeneration & Economic Development,Economic Development and Housing,Cap Exp on Grants & Other Financial Assistance (REFCUS),918401,Capital grants,03-Jul-2014,2766127-RED-06-2014-185,"1,400.00",F TIFFEN BUILDING SERVICES.
Regeneration & Economic Development,Economic Development and Housing,Cap Exp on Grants & Other Financial Assistance (REFCUS),918401,Capital grants,03-Jul-2014,2766127-RED-06-2014-190,"3,260.00",F TIFFEN BUILDING SERVICES.
Regeneration & Economic Development,Economic Development and Housing,Cap Exp on Grants & Other Financial Assistance (REFCUS),918401,Capital grants,03-Jul-2014,2766127-RED-06-2014-191,"3,025.00",F TIFFEN BUILDING SERVICES.
Neighbourhood Services,Technical Services,Supplies and Services,304358,Equipment and Materials,03-Jul-2014,2766147-9670,"1,057.50",GEORGE VARDY HAULAGE.
Neighbourhood Services,Direct Services,Transport,230005,Contract Hire,03-Jul-2014,2766147-9684,864.00,GEORGE VARDY HAULAGE.
Neighbourhood Services,Technical Services,Supplies and Services,304358,Equipment and Materials,03-Jul-2014,2766147-9688,690.00,GEORGE VARDY HAULAGE.
Neighbourhood Services,Direct Services,Transport,230005,Contract Hire,03-Jul-2014,2766147-9690,"2,030.00",GEORGE VARDY HAULAGE.
Neighbourhood Services,Technical Services,Supplies and Services,304358,Equipment and Materials,03-Jul-2014,2766147-9701,690.00,GEORGE VARDY HAULAGE.
Neighbourhood Services,Technical Services,Supplies and Services,304358,Equipment and Materials,03-Jul-2014,2766147-9702,"1,040.00",GEORGE VARDY HAULAGE.
Regeneration & Economic Development,Transport and Contracted Services,Third Party Payments,430106,Rendered by Private Contractors,03-Jul-2014,2766151-42785,"75,656.14",GO GATESHEAD LTD.
Regeneration & Economic Development,Transport and Contracted Services,Third Party Payments,430106,Rendered by Private Contractors,03-Jul-2014,2766151-42786,"65,496.59",GO GATESHEAD LTD.
Neighbourhood Services,Direct Services,Supplies and Services,304221,Equipment and Materials,03-Jul-2014,2766161-687927,583.89,HARVEST ENERGY LTD.
Neighbourhood Services,Direct Services,Supplies and Services,304221,Equipment and Materials,03-Jul-2014,2766171-B33/0068037,"1,093.35",HOWDENS JOINERY LTD.
Neighbourhood Services,Technical Services,Third Party Payments,460350,Contract Payments,03-Jul-2014,2766183-0215,630.00,J & JG GILL & SONS LTD.
Neighbourhood Services,Technical Services,Supplies and Services,304358,Equipment and Materials,03-Jul-2014,2766183-0216,708.00,J & JG GILL & SONS LTD.
Neighbourhood Services,Technical Services,Third Party Payments,430100,Rendered by Private Contractors,03-Jul-2014,2766184-5304668,"1,127.17",JA GILSON (AGRICULTURAL CONTRACTORS) LTD.
Neighbourhood Services,Technical Services,Supplies and Services,304358,Equipment and Materials,03-Jul-2014,2766184-5304669,951.05,JA GILSON (AGRICULTURAL CONTRACTORS) LTD.
Neighbourhood Services,Technical Services,Supplies and Services,304358,Equipment and Materials,03-Jul-2014,2766184-5304677,951.05,JA GILSON (AGRICULTURAL CONTRACTORS) LTD.
Neighbourhood Services,Technical Services,Supplies and Services,304358,Equipment and Materials,03-Jul-2014,2766184-5304680,951.05,JA GILSON (AGRICULTURAL CONTRACTORS) LTD.
Neighbourhood Services,Direct Services,Supplies and Services,304221,Equipment and Materials,03-Jul-2014,2766185-GI358718,713.08,JAMES BURRELL LTD.
Neighbourhood Services,Technical Services,Supplies and Services,304358,Equipment and Materials,03-Jul-2014,2766193-501,671.00,JOHN DOBSON PLANT HIRE LTD.
Neighbourhood Services,Technical Services,Supplies and Services,304358,Equipment and Materials,03-Jul-2014,2766195-21616,927.25,JOHN R BUTTERFIELD LTD.
Regeneration & Economic Development,Spatial Policy Planning Assets & Environment,Supplies and Services,338027,Services,03-Jul-2014,2766208-4139,"8,850.00",KNIGHT KAVANAGH & PAGE (KKP).
Children and Adult Services,Childrens Services,Transport,230005,Contract Hire,03-Jul-2014,2766226-1849,"1,320.00",LOCAL TRANSPORT LTD.
RED HRA,HRA Capital,Construction Work,908105,Construction work,03-Jul-2014,2766230-CCADD10614,"2,165.00",LYN COOK ART & DESIGN.
RED HRA,HRA Centrally Managed,Creditors,952191,Creditor-HRA-rents-refunds,03-Jul-2014,2766257-RENTREFUND3/7/14,769.44,REDACTED - PAYMENT TO INDIVIDUAL
Children and Adult Services,Education,Transport,230006,Contract Hire,03-Jul-2014,2766258-311,640.00,MR S BALL T/A ABBIE`S TAXIS..
Children and Adult Services,Education,Transport,230008,Contract Hire,03-Jul-2014,2766258-312,680.00,MR S BALL T/A ABBIE`S TAXIS..
Children and Adult Services,Education,Transport,230009,Contract Hire,03-Jul-2014,2766258-313,685.00,MR S BALL T/A ABBIE`S TAXIS..
Children and Adult Services,Education,Transport,230008,Contract Hire,03-Jul-2014,2766258-314,"1,120.00",MR S BALL T/A ABBIE`S TAXIS..
Regeneration & Economic Development,Economic Development and Housing,Cap Exp on Grants & Other Financial Assistance (REFCUS),918401,Capital grants,03-Jul-2014,2766263-RED-07-2014-010,"2,100.00",REDACTED - PAYMENT TO INDIVIDUAL
Neighbourhood Services,Technical Services,Supplies and Services,304221,Equipment and Materials,03-Jul-2014,2766274-NC32/C259/BW,"3,126.94",NEDCO CONTRACTS (NE) LTD.
Regeneration & Economic Development,Spatial Policy Planning Assets & Environment,Supplies and Services,312010,Newspapers Books and Periodicals,03-Jul-2014,2766281-Y32173565561705,936.00,NEWSQUEST (YORKSHIRE & NORTH EAST) LTD.
Regeneration & Economic Development,Spatial Policy Planning Assets & Environment,Supplies and Services,312010,Newspapers Books and Periodicals,03-Jul-2014,2766281-Y32173565561706,936.00,NEWSQUEST (YORKSHIRE & NORTH EAST) LTD.
Children and Adult Services,Education,Supplies and Services,384199,Miscellaneous Expenses,03-Jul-2014,2766285-100277,"1,416.66",NISAI VIRTUAL ACADEMY.
Neighbourhood Services,Direct Services,Transport,230005,Contract Hire,03-Jul-2014,2766287-70507,"4,875.00",NOBLET MUNICIPAL SERVICES LTD.
Children and Adult Services,Childrens Services,Supplies and Services,308013,Furniture,03-Jul-2014,2766295-S121354,850.00,NORTHERN FLOORCRAFT (GATESHEAD) LTD.
Children and Adult Services,Education,Third Party Payments,440999,Other Third Party Payments,03-Jul-2014,2766296-DCC46,"36,049.44",NORTHERN RIGHTS COMMUNITY INTEREST COMPANY (CIC)..
Neighbourhood Services,Culture & Sport,Premises,135005,Water Services,03-Jul-2014,2766301-313796730013003,762.50,NORTHUMBRIAN WATER LTD.
RED HRA,HRA Capital,Construction Work,908105,Construction work,03-Jul-2014,2766304-INVOICE1816,"2,914.50",OAKES ENERGY SERVICES LTD.
Children and Adult Services,Education,Transport,230008,Contract Hire,03-Jul-2014,2766322-439,672.00,PETERLEE EXECUTIVE CARS.
Children and Adult Services,Education,Transport,230006,Contract Hire,03-Jul-2014,2766322-440,"1,554.00",PETERLEE EXECUTIVE CARS.
Neighbourhood Services,Direct Services,Supplies and Services,304221,Equipment and Materials,03-Jul-2014,2766327-200182,"4,694.74",PLUMBING TRADE SUPPLIES LTD.
Children and Adult Services,Education,Transport,230006,Contract Hire,03-Jul-2014,2766333-140629,780.00,PRATTS TAXIS.
Children and Adult Services,Education,Transport,230008,Contract Hire,03-Jul-2014,2766333-140634,"1,417.50",PRATTS TAXIS.
Children and Adult Services,Education,Transport,230008,Contract Hire,03-Jul-2014,2766333-140636,"3,222.66",PRATTS TAXIS.
Assistant Chief Executive,Planning & Performance Division,Supplies and Services,384199,Miscellaneous Expenses,03-Jul-2014,2766351-3467,"2,850.00",READING ROOM MANCHESTER.
Neighbourhood Services,Technical Services,Third Party Payments,430100,Rendered by Private Contractors,03-Jul-2014,2766376-638,576.00,SCHMUCK WHORLTON LTD.
Regeneration & Economic Development,Transport and Contracted Services,Third Party Payments,430106,Rendered by Private Contractors,03-Jul-2014,2766414-9589,"12,271.06",STANLEY TRAVEL (NORTH EAST) LTD.
Neighbourhood Services,Technical Services,Supplies and Services,304221,Equipment and Materials,03-Jul-2014,2766417-063531,"1,212.72",STONEGRAVE AGGREGATES LTD.
RED HRA,HRA Capital,Construction Work,908105,Construction work,03-Jul-2014,2766420-200604,"2,954.98",SUNTER LTD.
Children and Adult Services,Education,Transport,230008,Contract Hire,03-Jul-2014,2766431-DCC/2014/27,"1,582.20",TAYLOR`S TAXIS.
Children and Adult Services,Education,Transport,230008,Contract Hire,03-Jul-2014,2766431-DCC/2014/28,"2,247.00",TAYLOR`S TAXIS.
Children and Adult Services,Education,Transport,230007,Contract Hire,03-Jul-2014,2766431-DCC/2014/29,"1,407.00",TAYLOR`S TAXIS.
Children and Adult Services,Education,Transport,230008,Contract Hire,03-Jul-2014,2766431-DCC/2014/31,"1,848.00",TAYLOR`S TAXIS.
Children and Adult Services,Childrens Services,Third Party Payments,486044,Service Level Agreements,03-Jul-2014,2766438-4810002692A,"3,560.67",TEES ESK & WEAR VALLEYS NHS FOUNDATION TRUST.
Children and Adult Services,Commissioning inc Supporting People,Third Party Payments,472112,Purchase of Care,03-Jul-2014,2766445-DRE4,"11,079.78",THE HUMAN SUPPORT GROUP.
Neighbourhood Services,Direct Services,Supplies and Services,304221,Equipment and Materials,03-Jul-2014,2766453-001425507,"4,591.14",THORLUX LIGHTING.
Children and Adult Services,Education,Transport,230007,Contract Hire,03-Jul-2014,2766460-4214,714.00,TRANSPORT.ADVENTURE.XI.
Children and Adult Services,Education,Transport,230009,Contract Hire,03-Jul-2014,2766460-4314,798.00,TRANSPORT.ADVENTURE.XI.
Children and Adult Services,Education,Transport,230008,Contract Hire,03-Jul-2014,2766464-21,"1,464.00",TT TAXIS.
Corporate Resources,Human Resources,Supplies and Services,338066,Services,03-Jul-2014,2766481-542729,"1,950.00",WARD HADAWAY.
Children and Adult Services,Education,Transport,230006,Contract Hire,03-Jul-2014,2766485-0614,"2,254.00",WEST AUCKLAND TOWN TRAVEL (WATT).
LATC - Transport,LATC - Transport,Third Party Payments,430100,Rendered by Private Contractors,04-Jul-2014,100205-252290093,634.14,DURHAM COUNTY COUNCIL.
Contributing Authorities,Murton Parish Council,Pensions Expenditure,801011,Pensions Expenditure,04-Jul-2014,2009432-LUMPSUM,"35,848.41",REDACTED - PAYMENT TO INDIVIDUAL
Contributing Authorities,Darlington Borough Council,Pensions Expenditure,801011,Pensions Expenditure,04-Jul-2014,2009433-LUMPSUM,"27,745.51",REDACTED - PAYMENT TO INDIVIDUAL
Contributing Authorities,Durham County Council,Pensions Expenditure,801011,Pensions Expenditure,04-Jul-2014,2009437-LUMPSUM,"51,562.79",REDACTED - PAYMENT TO INDIVIDUAL
Administration of Pension Fund,Financing,Creditors,952098,Creditor-salary reprovisions,04-Jul-2014,2009438-PENSIONEMERGENCYPAYMENT,673.93,REDACTED - PAYMENT TO INDIVIDUAL
Contributing Authorities,Darlington Borough Council,Pensions Expenditure,801011,Pensions Expenditure,04-Jul-2014,2009439-LUMPSUM,"4,639.08",REDACTED - PAYMENT TO INDIVIDUAL
Contributing Authorities,Durham County Council,Pensions Expenditure,801011,Pensions Expenditure,04-Jul-2014,2009440-LUMPSUM,"25,887.92",REDACTED - PAYMENT TO INDIVIDUAL
Contributing Authorities,Durham County Council,Pensions Expenditure,801011,Pensions Expenditure,04-Jul-2014,2009441-LUMPSUM,"1,340.65",REDACTED - PAYMENT TO INDIVIDUAL
Contributing Authorities,Durham County Council,Pensions Expenditure,801011,Pensions Expenditure,04-Jul-2014,2009442-LUMPSUM,"5,731.02",REDACTED - PAYMENT TO INDIVIDUAL
Contributing Authorities,Durham County Council,Pensions Expenditure,801202,Pensions Expenditure,04-Jul-2014,2009443-LUMPSUM,"7,773.31",SOVEREIGN TRUST INTERNATIONAL LTD.
Contributing Authorities,Durham County Council,Pensions Expenditure,801201,Pensions Expenditure,04-Jul-2014,2009444-LUMPSUM,"17,210.79",TEESSIDE PENSION FUND.
Regeneration & Economic Development,Economic Development and Housing,Supplies and Services,384700,Miscellaneous Expenses,04-Jul-2014,2766496-RED-07-2014-011,"32,174.41",4 COOL TECHNOLOGY LTD.
Regeneration & Economic Development,Economic Development and Housing,Supplies and Services,304337,Equipment and Materials,04-Jul-2014,2766497-227567E,601.91,ABACUS CARDS LTD.
Neighbourhood Services,Technical Services,Supplies and Services,304221,Equipment and Materials,04-Jul-2014,2766499-19961315,"1,220.00",AGGREGATE INDUSTRIES UK LTD.
Children and Adult Services,Commissioning inc Supporting People,Premises,145050,Cleaning and Domestic Supplies,04-Jul-2014,2766501-53079,"32,537.70",ANLABY OFFICE CLEANING SERVICES LTD.
Children and Adult Services,Childrens Services,Supplies and Services,342513,Computers and Communications,04-Jul-2014,2766502-172141,842.99,APEX RADIO SYSTEMS LTD.
Neighbourhood Services,Direct Services,Transport,210057,Repair and Maintenance of Vehicles,04-Jul-2014,2766505-45046461,717.43,BELL TRUCK SALES LTD.
Dedicated Schools Grant,Dedicated Schools Grant,Third Party Payments,440080,Other Third Party Payments,04-Jul-2014,2766508-SINV22439,"31,591.73",BISHOP AUCKLAND COLLEGE.
Neighbourhood Services,Culture & Sport,Supplies and Services,384199,Miscellaneous Expenses,04-Jul-2014,2766511-BSP2013/096,"5,000.00",BRITISH SEA POWER. T/A BSP TOURING LTD.
Regeneration & Economic Development,Economic Development and Housing,Supplies and Services,384700,Miscellaneous Expenses,04-Jul-2014,2766513-RED-07-2014-033,"1,000.00",CA GROUP LTD.
Neighbourhood Services,Direct Services,Transport,210057,Repair and Maintenance of Vehicles,04-Jul-2014,2766518-599278,800.00,CHATFIELDS.
Children and Adult Services,Redundant-LA,Supplies and Services,384199,Miscellaneous Expenses,04-Jul-2014,2766519-708/100,500.00,CHILDREN NORTH EAST.
Children and Adult Services,Childrens Services,Third Party Payments,479101,Purchase of Care,04-Jul-2014,2766525-3980004670,"4,898.48",CO DURHAM & DARLINGTON NHS FOUNDATION TRUST.
Regeneration & Economic Development,Economic Development and Housing,Supplies and Services,384700,Miscellaneous Expenses,04-Jul-2014,2766528-RED-07-2014-030,"1,000.00",CROFT BUSINESS SERVICES (UK) LTD T/A CROFT TAXIS.
RED HRA,Housing Revenue Account,Transport,235076,Public Transport,04-Jul-2014,2766529-80001850,959.93,DALE & VALLEY HOMES.
Neighbourhood Services,Direct Services,Transport,210057,Repair and Maintenance of Vehicles,04-Jul-2014,2766532-DE10796114,709.50,DENNIS EAGLE LTD.
Assistant Chief Executive,Partnerships & Community Engagement Div.,Transfer Payments,525030,Other,04-Jul-2014,2766544-VOUCHER13AB-WEAR004SGF104,"1,500.00",FROSTERLEY VILLAGE HALL & INSTITUTE.
Dedicated Schools Grant,Dedicated Schools Grant,Supplies and Services,338091,Services,04-Jul-2014,2766549-GSACIC/01/00119,660.00,GLOBAL SPORT ACADEMY CIC.
Dedicated Schools Grant,Dedicated Schools Grant,Supplies and Services,338091,Services,04-Jul-2014,2766549-GSACIC/01/00129,825.00,GLOBAL SPORT ACADEMY CIC.
Regeneration & Economic Development,Spatial Policy Planning Assets & Environment,Supplies and Services,338045,Services,04-Jul-2014,2766551-500/14,"4,587.50",GRAHAM PROPERTY CONSULTANTS.
Regeneration & Economic Development,Spatial Policy Planning Assets & Environment,Supplies and Services,338045,Services,04-Jul-2014,2766551-501/14,"1,587.50",GRAHAM PROPERTY CONSULTANTS.
Regeneration & Economic Development,Spatial Policy Planning Assets & Environment,Supplies and Services,338045,Services,04-Jul-2014,2766551-502/14,"1,087.50",GRAHAM PROPERTY CONSULTANTS.
Regeneration & Economic Development,Spatial Policy Planning Assets & Environment,Supplies and Services,338045,Services,04-Jul-2014,2766551-506/14,"3,087.50",GRAHAM PROPERTY CONSULTANTS.
Neighbourhood Services,Technical Services,Employees,040149,Recruitment Instruction and Training,04-Jul-2014,2766555-IOSINV9089,"4,080.00",INSTITUTE OF SWIMMING.
Children and Adult Services,Childrens Services,Supplies and Services,384540,Miscellaneous Expenses,04-Jul-2014,2766556-3-040614,"5,454.00",ITV BROADCASTING LTD T/A ITV PLC..
Neighbourhood Services,Technical Services,Supplies and Services,304357,Equipment and Materials,04-Jul-2014,2766557-5304647,"1,218.56",JA GILSON (AGRICULTURAL CONTRACTORS) LTD.
Neighbourhood Services,Direct Services,Third Party Payments,430100,Rendered by Private Contractors,04-Jul-2014,2766558-16181,"5,077.07",JDP CONTRACTING SERVICES LTD.
Assistant Chief Executive,Partnerships & Community Engagement Div.,Transfer Payments,525030,Other,04-Jul-2014,2766563-VOUCHER13AB-WEAR004SGF102,"1,350.00",KENNEDYHUGHES CIC.
Neighbourhood Services,Direct Services,Third Party Payments,430100,Rendered by Private Contractors,04-Jul-2014,2766565-14183,"28,412.55",LANGUARD LTD.
Children and Adult Services,Education,Transport,230008,Contract Hire,04-Jul-2014,2766568-081,"2,205.00",LEE`S TAXIS.
Neighbourhood Services,Culture & Sport,Third Party Payments,430100,Rendered by Private Contractors,04-Jul-2014,2766569-LCPMF15060,"1,007.43",LEISURE CONNECTION LTD.
Neighbourhood Services,Direct Services,Transport,210057,Repair and Maintenance of Vehicles,04-Jul-2014,2766571-107603,650.26,LONDONDERRY GARAGE LTD.
Neighbourhood Services,Culture & Sport,Supplies and Services,384199,Miscellaneous Expenses,04-Jul-2014,2766574-MGNMC31052014,"1,200.00",MENISHA GELA.
Children and Adult Services,Childrens Services,Third Party Payments,440037,Other Third Party Payments,04-Jul-2014,2766586-CAS-07-2014-015,756.00,REDACTED - PAYMENT TO INDIVIDUAL
Neighbourhood Services,Direct Services,Transport,210057,Repair and Maintenance of Vehicles,04-Jul-2014,2766592-INVDUR00311552,730.00,NE TRUCK SPARES LTD.
Neighbourhood Services,Direct Services,Supplies and Services,304221,Equipment and Materials,04-Jul-2014,2766594-062174,700.20,NEW ROW FARM NURSERIES.
Neighbourhood Services,Direct Services,Transport,210057,Repair and Maintenance of Vehicles,04-Jul-2014,2766596-21692883,850.00,NORTH EAST TRUCK & VAN LTD.
Neighbourhood Services,Technical Services,Supplies and Services,304221,Equipment and Materials,04-Jul-2014,2766597-DI20191447,826.30,NORTHERN POWERGRID (NORTHEAST) LTD.
Neighbourhood Services,Direct Services,Premises,135005,Water Services,04-Jul-2014,2766600-314886090017003,968.94,NORTHUMBRIAN WATER LTD.
Neighbourhood Services,Direct Services,Premises,135005,Water Services,04-Jul-2014,2766601-210364310102042,"2,408.09",NORTHUMBRIAN WATER LTD.
Neighbourhood Services,Technical Services,Third Party Payments,430100,Rendered by Private Contractors,04-Jul-2014,2766602-SIN3011847,"1,410.00",OWEN PUGH & CO LTD.
Neighbourhood Services,Direct Services,Third Party Payments,430100,Rendered by Private Contractors,04-Jul-2014,2766603-258,871.42,PARAMOUNT CEILINGS & PARTITIONS.
Neighbourhood Services,Culture & Sport,Supplies and Services,384540,Miscellaneous Expenses,04-Jul-2014,2766607-1450,585.00,PUBLIC UK LTD.
Children and Adult Services,Education,Transport,230007,Contract Hire,04-Jul-2014,2766610-21A,"1,344.00",RAYNERS COACHES.
Children and Adult Services,Education,Transport,230008,Contract Hire,04-Jul-2014,2766612-011,"1,530.00",RONS TAXIS.
Neighbourhood Services,Technical Services,Third Party Payments,430100,Rendered by Private Contractors,04-Jul-2014,2766616-597,864.00,SCHMUCK WHORLTON LTD.
Neighbourhood Services,Direct Services,Third Party Payments,430100,Rendered by Private Contractors,04-Jul-2014,2766620-WWB1065203,"1,328.20",SGS UNITED KINGDOM LTD.
Children and Adult Services,Childrens Services,Transport,230008,Contract Hire,04-Jul-2014,2766622-8887,779.47,STANLEY TRAVEL (NORTH EAST) LTD.
Children and Adult Services,Commissioning inc Supporting People,Third Party Payments,479111,Purchase of Care,04-Jul-2014,2766624-CRM5356,"35,051.00",STROKE ASSOCIATION.
Children and Adult Services,Education,Transport,230009,Contract Hire,04-Jul-2014,2766628-05/2014/050,544.00,TARNS TAXIS LTD.
Children and Adult Services,Education,Transport,230008,Contract Hire,04-Jul-2014,2766628-06/2014/049,"2,205.00",TARNS TAXIS LTD.
Children and Adult Services,Education,Transport,230008,Contract Hire,04-Jul-2014,2766628-06/2014/053,"1,365.00",TARNS TAXIS LTD.
Children and Adult Services,Education,Transport,230008,Contract Hire,04-Jul-2014,2766628-06/2014/054,880.00,TARNS TAXIS LTD.
Regeneration & Economic Development,Economic Development and Housing,Supplies and Services,344131,Telephones,04-Jul-2014,2766629-PSI-9094039,732.00,TECHNOLOGY SERVICES GROUP LTD.
Children and Adult Services,Education,Transport,230007,Contract Hire,04-Jul-2014,2766634-2016,"1,680.00",TRAPPA`S TRAVEL.
Children and Adult Services,Education,Transport,230008,Contract Hire,04-Jul-2014,2766635-30/6/14,"1,086.00",TRUDY`S.
Neighbourhood Services,Culture & Sport,Supplies and Services,312013,Newspapers Books and Periodicals,04-Jul-2014,2766636-1573818,708.96,ULVERSCROFT LARGE PRINT BOOKS LTD.
Neighbourhood Services,Direct Services,Supplies and Services,304358,Equipment and Materials,04-Jul-2014,2766637-37497,530.00,W MARLEY AGRICULTURAL CONTRACTORS LTD.
Children and Adult Services,Education,Transport,230007,Contract Hire,04-Jul-2014,2766639-5055,672.00,WEARDALE PRIVATE HIRE.
Children and Adult Services,Education,Transport,230007,Contract Hire,04-Jul-2014,2766639-5056,"5,061.00",WEARDALE PRIVATE HIRE.
Assistant Chief Executive,Partnerships & Community Engagement Div.,Transfer Payments,525030,Other,04-Jul-2014,2766640-VOUCHER13AB-WEAR004SGF105,"1,500.00",WEARHEAD VILLAGE HALL COMMUNITY ASSOCIATION.
Neighbourhood Services,Direct Services,Transport,210057,Repair and Maintenance of Vehicles,04-Jul-2014,2766642-900753708,"1,200.00",WIRTGEN LTD.
Neighbourhood Services,Technical Services,Stock,926900,Stock in hand-Inventory system,04-Jul-2014,2766643-13471562,528.99,WOLSELEY UK LTD.
Neighbourhood Services,Technical Services,Stock,926900,Stock in hand-Inventory system,04-Jul-2014,2766643-13514400,"1,647.72",WOLSELEY UK LTD.
Neighbourhood Services,Technical Services,Stock,926900,Stock in hand-Inventory system,04-Jul-2014,2766643-13514562,"1,347.41",WOLSELEY UK LTD.
Neighbourhood Services,Technical Services,Stock,926900,Stock in hand-Inventory system,04-Jul-2014,2766643-13514563,"4,299.97",WOLSELEY UK LTD.
Functions,Functions,Supplies and Services,384071,Miscellaneous Expenses,04-Jul-2014,400400-29773,850.50,T & I BELL.
Contributing Authorities,Durham County Council,Pensions Expenditure,801011,Pensions Expenditure,07-Jul-2014,2009446-LUMPSUM7/7/14,"66,057.03",REDACTED - PAYMENT TO INDIVIDUAL
Children and Adult Services,Education,Transport,230006,Contract Hire,07-Jul-2014,2766647-501,550.00,A BARKER.
Children and Adult Services,Education,Supplies and Services,377015,County Durham Development,07-Jul-2014,2766648-8347,629.17,A1 TROPHIES & ENGRAVING.
Children and Adult Services,Education,Transport,230006,Contract Hire,07-Jul-2014,2766650-V20/SEE,801.90,AABAT TAXIS.
Children and Adult Services,Education,Transport,230007,Contract Hire,07-Jul-2014,2766651-34,"1,092.00",AALPHA TAXIS.
Children and Adult Services,Education,Transport,230007,Contract Hire,07-Jul-2014,2766652-557,"1,428.00",AC TAXIS.
Children and Adult Services,Education,Transport,230008,Contract Hire,07-Jul-2014,2766654-W141-30/6/14,"1,470.00",ADAM BARNES T/A PAUL`S TAXIS.
Neighbourhood Services,Technical Services,Supplies and Services,304221,Equipment and Materials,07-Jul-2014,2766656-19913369,715.24,AGGREGATE INDUSTRIES UK LTD.
Neighbourhood Services,Technical Services,Supplies and Services,304221,Equipment and Materials,07-Jul-2014,2766656-19968195,679.88,AGGREGATE INDUSTRIES UK LTD.
Neighbourhood Services,Technical Services,Supplies and Services,304221,Equipment and Materials,07-Jul-2014,2766657-19860574,"1,645.48",AGGREGATE INDUSTRIES UK LTD.
Neighbourhood Services,Technical Services,Supplies and Services,304221,Equipment and Materials,07-Jul-2014,2766657-19903370,953.56,AGGREGATE INDUSTRIES UK LTD.
Neighbourhood Services,Technical Services,Supplies and Services,304221,Equipment and Materials,07-Jul-2014,2766657-19913366,641.81,AGGREGATE INDUSTRIES UK LTD.
Neighbourhood Services,Technical Services,Supplies and Services,304221,Equipment and Materials,07-Jul-2014,2766657-19933141,"1,251.16",AGGREGATE INDUSTRIES UK LTD.
Neighbourhood Services,Technical Services,Supplies and Services,304221,Equipment and Materials,07-Jul-2014,2766657-19933146,663.68,AGGREGATE INDUSTRIES UK LTD.
Dedicated Schools Grant,Dedicated Schools Grant,Transport,230010,Contract Hire,07-Jul-2014,2766658-506024,"1,582.00",ALANS CABS.
Children and Adult Services,Education,Transport,230007,Contract Hire,07-Jul-2014,2766659-025,880.00,ALANS TAXIS.
Children and Adult Services,Education,Transport,230007,Contract Hire,07-Jul-2014,2766659-026,800.00,ALANS TAXIS.
Neighbourhood Services,Direct Services,Third Party Payments,430100,Rendered by Private Contractors,07-Jul-2014,2766661-14578,"3,525.00",AMBIC LTD.
Neighbourhood Services,Culture & Sport,Supplies and Services,312013,Newspapers Books and Periodicals,07-Jul-2014,2766670-4333303,517.89,ASKEWS & HOLTS LIBRARY SERVICES LTD.
Children and Adult Services,Education,Transport,230007,Contract Hire,07-Jul-2014,2766673-5184-30/06/2014,620.00,AW TAXIS.
Neighbourhood Services,Direct Services,Third Party Payments,430100,Rendered by Private Contractors,07-Jul-2014,2766674-46035670,720.66,BELL TRUCK SALES LTD.
Children and Adult Services,Education,Transport,230006,Contract Hire,07-Jul-2014,2766676-015,"1,106.00",BG TAXIS.
Assistant Chief Executive,Partnerships & Community Engagement Div.,Transfer Payments,525030,Other,07-Jul-2014,2766677-VOUCHER13AB-GAMP0092ND,"10,000.00",BISHOP AUCKLAND COLLEGE.
Assistant Chief Executive,Partnerships & Community Engagement Div.,Supplies and Services,384086,Miscellaneous Expenses,07-Jul-2014,2766677-VOUCHER13NB-GAMP0042ND,"14,000.00",BISHOP AUCKLAND COLLEGE.
Assistant Chief Executive,Partnerships & Community Engagement Div.,Supplies and Services,384085,Miscellaneous Expenses,07-Jul-2014,2766678-ALEJ02-14,900.00,BISHOP AUCKLAND TOWN TEAM.
Neighbourhood Services,Projects and Business services,Supplies and Services,338027,Services,07-Jul-2014,2766680-4173836,"2,406.50",BOND DICKINSON LLP.
Children and Adult Services,Education,Transport,230008,Contract Hire,07-Jul-2014,2766697-0614,"2,686.32",BRIAN WAKE T/A BRIAN`S TAXIS.
Neighbourhood Services,Technical Services,Supplies and Services,304221,Equipment and Materials,07-Jul-2014,2766699-CRM/319742,897.85,BUILDBASE LTD.
Neighbourhood Services,Technical Services,Supplies and Services,304221,Equipment and Materials,07-Jul-2014,2766699-CRM/319919,826.65,BUILDBASE LTD.
Assistant Chief Executive,Partnerships & Community Engagement Div.,Supplies and Services,384086,Miscellaneous Expenses,07-Jul-2014,2766706-VOUCHER12NB-STAN069,"10,000.00",CATCHGATE & ANNFIELD PLAIN COMMUNITY SPORTS CLUB.
Neighbourhood Services,Technical Services,Stock,926900,Stock in hand-Inventory system,07-Jul-2014,2766708-9950/01598745,"2,485.20",CERAMIC TILE DISTRIBUTORS (CTD).
Corporate Resources,Centrally Administered Costs,Third Party Payments,440999,Other Third Party Payments,07-Jul-2014,2766713-RES-07-2014-014,"84,000.00",CIVICA UK LTD.
Regeneration & Economic Development,Spatial Policy Planning Assets & Environment,Supplies and Services,384199,Miscellaneous Expenses,07-Jul-2014,2766714-BURSARY2JUN14,510.59,CLAIRE HUTCHINSON.
Corporate Resources,Legal & Democratic Services,Supplies and Services,338025,Services,07-Jul-2014,2766715-S44995-00899,950.00,CO-OPERATIVE FUNERAL CARE.
Neighbourhood Services,Technical Services,Construction Work,908108,Capital - Surface Dressing,07-Jul-2014,2766718-10451,933.77,COUPE LINE LTD.
Neighbourhood Services,Technical Services,Construction Work,908108,Capital - Surface Dressing,07-Jul-2014,2766718-10452,"1,106.52",COUPE LINE LTD.
Dedicated Schools Grant,Dedicated Schools Grant,Transport,230011,Contract Hire,07-Jul-2014,2766719-129,"1,218.00",D MCDONNELL.
RED HRA,Housing Revenue Account,Third Party Payments,430100,Rendered by Private Contractors,07-Jul-2014,2766725-SINV/00003371,"940,417.00",EAST DURHAM HOMES.
RED HRA,HRA Capital,Fees,901001,Internal fees,07-Jul-2014,2766725-SINV/00003372,"112,500.00",EAST DURHAM HOMES.
Children and Adult Services,Education,Transport,230007,Contract Hire,07-Jul-2014,2766730-0298,889.56,FMR SILVA PITA.
Neighbourhood Services,Direct Services,Stock,926004,Stock,07-Jul-2014,2766742-682224,"1,850.40",HARVEST ENERGY LTD.
Neighbourhood Services,Direct Services,Stock,926004,Stock,07-Jul-2014,2766742-687926,"2,714.85",HARVEST ENERGY LTD.
Neighbourhood Services,Direct Services,Stock,926004,Stock,07-Jul-2014,2766742-687928,"7,868.29",HARVEST ENERGY LTD.
Neighbourhood Services,Direct Services,Stock,926004,Stock,07-Jul-2014,2766742-687929,"1,619.10",HARVEST ENERGY LTD.
Neighbourhood Services,Direct Services,Stock,926004,Stock,07-Jul-2014,2766742-688619,"13,305.00",HARVEST ENERGY LTD.
Children and Adult Services,Education,Construction Work,908105,Construction work,07-Jul-2014,2766743-SIN7039830,569.50,HCS DRAIN SERVICES LTD.
Dedicated Schools Grant,Dedicated Schools Grant,Transport,230010,Contract Hire,07-Jul-2014,2766746-INV24,"2,520.00",HORNDALE AJ`S TAXIS.
Neighbourhood Services,Direct Services,Stock,926004,Stock,07-Jul-2014,2766748-224806,"1,072.56",HYDRAQUIP.
Children and Adult Services,Education,Transport,230008,Contract Hire,07-Jul-2014,2766750-10,"1,050.00",IAN SHEPLEY T/A SHEPPA`S TAXIS.
Corporate Resources,Legal & Democratic Services,Supplies and Services,342051,Computers and Communications,07-Jul-2014,2766751-IK23412,"47,250.00",IKEN BUSINESS LTD.
Neighbourhood Services,Sport & Leisure,Construction Work,908105,Construction work,07-Jul-2014,2766755-25357,865.00,INTERPLAN SIGN SYSTEMS LTD.
Children and Adult Services,Education,Transport,230007,Contract Hire,07-Jul-2014,2766759-742,787.50,J YOUNG T/A VIP TAXIS.
Children and Adult Services,Education,Transport,230008,Contract Hire,07-Jul-2014,2766759-743,"2,100.00",J YOUNG T/A VIP TAXIS.
Children and Adult Services,Education,Transport,230007,Contract Hire,07-Jul-2014,2766759-745,"1,386.00",J YOUNG T/A VIP TAXIS.
Children and Adult Services,Education,Transport,230008,Contract Hire,07-Jul-2014,2766759-746,"1,200.00",J YOUNG T/A VIP TAXIS.
Children and Adult Services,Education,Transport,230007,Contract Hire,07-Jul-2014,2766759-747,840.00,J YOUNG T/A VIP TAXIS.
Children and Adult Services,Education,Transport,230008,Contract Hire,07-Jul-2014,2766759-748,"1,764.00",J YOUNG T/A VIP TAXIS.
Neighbourhood Services,Technical Services,Supplies and Services,304358,Equipment and Materials,07-Jul-2014,2766766-21618,628.60,JOHN R BUTTERFIELD LTD.
Neighbourhood Services,Technical Services,Supplies and Services,304358,Equipment and Materials,07-Jul-2014,2766766-21657,756.00,JOHN R BUTTERFIELD LTD.
Neighbourhood Services,Technical Services,Supplies and Services,304358,Equipment and Materials,07-Jul-2014,2766766-21662,"1,050.25",JOHN R BUTTERFIELD LTD.
Neighbourhood Services,Technical Services,Supplies and Services,304358,Equipment and Materials,07-Jul-2014,2766766-21666,914.20,JOHN R BUTTERFIELD LTD.
Neighbourhood Services,Technical Services,Supplies and Services,304358,Equipment and Materials,07-Jul-2014,2766766-21670,588.60,JOHN R BUTTERFIELD LTD.
Neighbourhood Services,Technical Services,Supplies and Services,304358,Equipment and Materials,07-Jul-2014,2766766-21714,725.40,JOHN R BUTTERFIELD LTD.
Children and Adult Services,Education,Transport,230008,Contract Hire,07-Jul-2014,2766770-28,"1,470.00",K & B TAXIS.
Children and Adult Services,Education,Transport,230007,Contract Hire,07-Jul-2014,2766771-1887-,840.00,KEN HINDS.
Neighbourhood Services,Technical Services,Construction Work,908108,Capital - Surface Dressing,07-Jul-2014,2766773-14384,"633,391.85",KIELY BROS LTD.
Neighbourhood Services,Technical Services,Supplies and Services,304221,Equipment and Materials,07-Jul-2014,2766774-9031153185,619.83,LAFARGE TARMAC TRADING LTD.
Neighbourhood Services,Technical Services,Supplies and Services,304221,Equipment and Materials,07-Jul-2014,2766774-9031161848,818.15,LAFARGE TARMAC TRADING LTD.
Neighbourhood Services,Culture & Sport,Third Party Payments,430100,Rendered by Private Contractors,07-Jul-2014,2766778-LTC0152,"2,075.26",LEISURE IN THE COMMUNITY LTD.
Neighbourhood Services,Direct Services,Stock,926004,Stock,07-Jul-2014,2766779-SI1630001,650.00,LINDEN FLUID POWER LTD.
Neighbourhood Services,Direct Services,Transport,210057,Repair and Maintenance of Vehicles,07-Jul-2014,2766782-619206,609.47,LLOYD LTD.
Children and Adult Services,Education,Transport,230008,Contract Hire,07-Jul-2014,2766787-1853,"3,621.66",LOCAL TRANSPORT LTD.
Children and Adult Services,Education,Transport,230008,Contract Hire,07-Jul-2014,2766787-1854,"2,100.00",LOCAL TRANSPORT LTD.
Children and Adult Services,Education,Transport,230008,Contract Hire,07-Jul-2014,2766787-1855,"1,596.00",LOCAL TRANSPORT LTD.
Children and Adult Services,Education,Transport,230008,Contract Hire,07-Jul-2014,2766787-1856,"1,721.00",LOCAL TRANSPORT LTD.
Neighbourhood Services,Direct Services,Third Party Payments,430100,Rendered by Private Contractors,07-Jul-2014,2766789-107898,"2,743.70",LONDONDERRY GARAGE LTD.
Children and Adult Services,Education,Transport,230008,Contract Hire,07-Jul-2014,2766793-60,"2,475.00",M BUTCHER.
Neighbourhood Services,Technical Services,Supplies and Services,304358,Equipment and Materials,07-Jul-2014,2766797-1690,"1,054.50",MARTIN JEWITT PLANT HIRE.
Neighbourhood Services,Technical Services,Supplies and Services,304358,Equipment and Materials,07-Jul-2014,2766797-1697,933.00,MARTIN JEWITT PLANT HIRE.
Children and Adult Services,Education,Transport,230008,Contract Hire,07-Jul-2014,2766801-KDC010614,"2,735.00",MJ TIMNEY T/A KDC & C&M TAXIS.
Children and Adult Services,Education,Transport,230008,Contract Hire,07-Jul-2014,2766808-315,900.00,MR S BALL T/A ABBIE`S TAXIS..
Children and Adult Services,Education,Transport,230008,Contract Hire,07-Jul-2014,2766809-AA280,"2,360.00",MR T GUNN.
Children and Adult Services,Education,Supplies and Services,338027,Services,07-Jul-2014,2766813-CCOT0514,939.80,MRS CHRISTINE COTTAM.
Neighbourhood Services,Direct Services,Third Party Payments,430100,Rendered by Private Contractors,07-Jul-2014,2766821-NC36/C259/BW,560.00,NEDCO CONTRACTS (NE) LTD.
Neighbourhood Services,Direct Services,Third Party Payments,430100,Rendered by Private Contractors,07-Jul-2014,2766821-NC38/C259/BW,560.00,NEDCO CONTRACTS (NE) LTD.
Children and Adult Services,Public Health,Premises,125009,Rents,07-Jul-2014,2766824-48328607,"13,336.48",NHS PROPERTY SERVICES LTD.
Neighbourhood Services,Culture & Sport,Supplies and Services,304259,Equipment and Materials,07-Jul-2014,2766825-3024001199,743.01,NILFISK ADVANCE LTD.
Neighbourhood Services,Direct Services,Transport,230005,Contract Hire,07-Jul-2014,2766827-70883,"3,100.00",NOBLET MUNICIPAL SERVICES LTD.
Neighbourhood Services,Direct Services,Third Party Payments,430100,Rendered by Private Contractors,07-Jul-2014,2766828-17003,569.05,NORTH EAST CAB & CHASSIS LTD.
Neighbourhood Services,Direct Services,Third Party Payments,430100,Rendered by Private Contractors,07-Jul-2014,2766828-27649,658.67,NORTH EAST CAB & CHASSIS LTD.
Neighbourhood Services,Technical Services,Supplies and Services,304337,Equipment and Materials,07-Jul-2014,2766831-DI20191116,"21,849.07",NORTHERN POWERGRID (NORTHEAST) LTD.
Neighbourhood Services,Technical Services,Supplies and Services,304337,Equipment and Materials,07-Jul-2014,2766831-DI20191117,"3,545.81",NORTHERN POWERGRID (NORTHEAST) LTD.
Regeneration & Economic Development,Economic Development and Housing,Premises,120009,Energy Costs,07-Jul-2014,2766834-NN07K25Q,"10,745.74",NPOWER.
Regeneration & Economic Development,Economic Development and Housing,Premises,120009,Energy Costs,07-Jul-2014,2766834-NN07K25W,"1,307.81",NPOWER.
Regeneration & Economic Development,Economic Development and Housing,Premises,120009,Energy Costs,07-Jul-2014,2766834-NN07K26H,"3,406.71",NPOWER.
Regeneration & Economic Development,Economic Development and Housing,Premises,120009,Energy Costs,07-Jul-2014,2766834-NN07K26Q,"11,336.57",NPOWER.
Regeneration & Economic Development,Economic Development and Housing,Premises,120009,Energy Costs,07-Jul-2014,2766834-NN07K26W,"1,267.81",NPOWER.
Regeneration & Economic Development,Economic Development and Housing,Premises,120009,Energy Costs,07-Jul-2014,2766834-NNO7K25V,"2,177.53",NPOWER.
Regeneration & Economic Development,Economic Development and Housing,Premises,120009,Energy Costs,07-Jul-2014,2766834-NNO7K26V,"1,941.46",NPOWER.
Neighbourhood Services,Direct Services,Transport,210057,Repair and Maintenance of Vehicles,07-Jul-2014,2766835-10002278,510.97,NTM LINKTIP LTD.
Neighbourhood Services,Direct Services,Supplies and Services,304221,Equipment and Materials,07-Jul-2014,2766840-555644,"2,585.00",P & N ASSOCIATES LTD.
Dedicated Schools Grant,Dedicated Schools Grant,Transport,230010,Contract Hire,07-Jul-2014,2766844-7-JUNE2014,728.50,PAUL SMITH T/A LANGLEY TAXIS.
Children and Adult Services,Education,Transport,230007,Contract Hire,07-Jul-2014,2766845-1322,"2,730.00",PAUL WATSON TRAVEL.
Neighbourhood Services,Direct Services,Stock,926004,Stock,07-Jul-2014,2766852-709217,530.90,RICKERBY LTD.
Neighbourhood Services,Direct Services,Transport,210057,Repair and Maintenance of Vehicles,07-Jul-2014,2766852-709247,723.03,RICKERBY LTD.
Neighbourhood Services,Direct Services,Third Party Payments,430100,Rendered by Private Contractors,07-Jul-2014,2766853-2983,"2,790.00",RINGLAND SCAFFOLDING.
Children and Adult Services,Education,Transport,230007,Contract Hire,07-Jul-2014,2766855-22,561.60,RJB & KE GAIR T/A ROBS PRIVATE HIRE.
Children and Adult Services,Education,Transport,230008,Contract Hire,07-Jul-2014,2766856-1588,"2,035.00",RONS TAXIS.
Children and Adult Services,Education,Transport,230008,Contract Hire,07-Jul-2014,2766856-NUMBER1589,"2,360.00",RONS TAXIS.
Children and Adult Services,Education,Transport,230007,Contract Hire,07-Jul-2014,2766857-ROXMAY1C,"1,600.00",ROXBYS BUS HIRE.
Children and Adult Services,Education,Transport,230008,Contract Hire,07-Jul-2014,2766860-SA041,"1,029.00",S & A TAXIS.
Neighbourhood Services,Direct Services,Supplies and Services,338027,Services,07-Jul-2014,2766867-DCC/03,"1,890.00",SANDRA BROCKLEBANK WICKES.
Children and Adult Services,Education,Transport,230008,Contract Hire,07-Jul-2014,2766868-66,"1,800.00",SAZ CABS.
Children and Adult Services,Education,Transport,230008,Contract Hire,07-Jul-2014,2766871-23,"1,680.00",SHARON`S TAXI.
Neighbourhood Services,Direct Services,Supplies and Services,304259,Equipment and Materials,07-Jul-2014,2766872-CD970071967,"1,742.76",SHERRIFF AMENITY.
Corporate Resources,I.C.T. Services,Construction Work,908105,Construction work,07-Jul-2014,2766877-INV00957474,"2,804.00",SOFTCAT LTD.
Neighbourhood Services,Technical Services,Stock,926900,Stock in hand-Inventory system,07-Jul-2014,2766878-270044564,902.83,SOVEREIGN CHEMICALS LTD.
Regeneration & Economic Development,Transport and Contracted Services,Supplies and Services,338045,Services,07-Jul-2014,2766880-549526,"5,928.60",STOCKTON ON TEES BOROUGH COUNCIL.
Children and Adult Services,Education,Transport,230008,Contract Hire,07-Jul-2014,2766883-1169-23/05/2014,"2,060.00",TAILORMADE TRAVEL.
Neighbourhood Services,Direct Services,Transport,210057,Repair and Maintenance of Vehicles,07-Jul-2014,2766886-96298707,639.48,TERBERG MATEC (UK) LTD.
Children and Adult Services,Education,Transport,230008,Contract Hire,07-Jul-2014,2766890-127,892.00,THE TAXI COMPANY (MURTON) LTD.
Children and Adult Services,Education,Transport,230008,Contract Hire,07-Jul-2014,2766890-130,"1,207.80",THE TAXI COMPANY (MURTON) LTD.
Dedicated Schools Grant,Dedicated Schools Grant,Transport,230010,Contract Hire,07-Jul-2014,2766893-TS14-21,"2,000.00",TOP STAR TRAVEL.
Dedicated Schools Grant,Dedicated Schools Grant,Transport,230010,Contract Hire,07-Jul-2014,2766895-13010,"1,130.00",TRAVEL 6.
Children and Adult Services,Education,Transport,230007,Contract Hire,07-Jul-2014,2766895-16004,500.00,TRAVEL 6.
Neighbourhood Services,Technical Services,Supplies and Services,304221,Equipment and Materials,07-Jul-2014,2766896-137338,"1,181.70",TYNEDALE ROADSTONE LTD.
Neighbourhood Services,Technical Services,Supplies and Services,304221,Equipment and Materials,07-Jul-2014,2766896-137339,979.11,TYNEDALE ROADSTONE LTD.
Neighbourhood Services,Technical Services,Supplies and Services,304221,Equipment and Materials,07-Jul-2014,2766896-137341,"1,191.06",TYNEDALE ROADSTONE LTD.
Neighbourhood Services,Technical Services,Supplies and Services,304221,Equipment and Materials,07-Jul-2014,2766896-137342,"1,194.57",TYNEDALE ROADSTONE LTD.
Regeneration & Economic Development,Strategy Programmes and Performance,Supplies and Services,384899,Miscellaneous Expenses,07-Jul-2014,2766898-FEDF013/01,"3,266.67",VALLUM BAKERY LTD.
Children and Adult Services,Education,Transport,230006,Contract Hire,07-Jul-2014,2766899-889,"1,248.00",WAYNE`S TAXIS.
Children and Adult Services,Education,Transport,230008,Contract Hire,07-Jul-2014,2766899-891,"2,000.00",WAYNE`S TAXIS.
Children and Adult Services,Education,Transport,230008,Contract Hire,07-Jul-2014,2766899-892,"2,244.00",WAYNE`S TAXIS.
Children and Adult Services,Education,Transport,230007,Contract Hire,07-Jul-2014,2766900-5057,"4,283.79",WEARDALE PRIVATE HIRE.
Children and Adult Services,Education,Transport,230006,Contract Hire,07-Jul-2014,2766900-5060,"1,812.72",WEARDALE PRIVATE HIRE.
Neighbourhood Services,Technical Services,Stock,926900,Stock in hand-Inventory system,07-Jul-2014,2766907-13514568,"1,157.91",WOLSELEY UK LTD.
Neighbourhood Services,Technical Services,Stock,926900,Stock in hand-Inventory system,07-Jul-2014,2766907-13609360,"4,502.32",WOLSELEY UK LTD.
Neighbourhood Services,Technical Services,Stock,926900,Stock in hand-Inventory system,07-Jul-2014,2766907-13609387,806.96,WOLSELEY UK LTD.
Neighbourhood Services,Direct Services,Stock,926004,Stock,07-Jul-2014,2766910-SVI27813,603.78,ZOELLER WASTE SYSTEMS LTD.
Neighbourhood Services,Direct Services,Stock,926004,Stock,07-Jul-2014,2766910-SVI28079,"1,025.93",ZOELLER WASTE SYSTEMS LTD.
Fire and Rescue Service,Community Protection Directorate,Other Expenses,914001,Other capital expenses,08-Jul-2014,2016561-IA670,"1,800.00",ANTHONY DAVIES ASSOCIATES.
Fire and Rescue Service,OD Directorate,Supplies and Services,324117,Provisions,08-Jul-2014,2016563-II5000513,"7,534.14",BABCOCK CIVIL INFRASTRUCTURE LTD.
Fire and Rescue Service,Management and Support Services,Premises,108099,Service Repairs and Maintenance,08-Jul-2014,2016563-II5000553,"1,349.16",BABCOCK CIVIL INFRASTRUCTURE LTD.
Fire and Rescue Service,OD Directorate,Supplies and Services,324117,Provisions,08-Jul-2014,2016563-II5000554,"7,433.09",BABCOCK CIVIL INFRASTRUCTURE LTD.
Fire and Rescue Service,OD Directorate,Employees,040149,Recruitment Instruction and Training,08-Jul-2014,2016567-22/06/14,"1,625.00",BROWNBER HALL COUNTRY HALL.
Fire and Rescue Service,OD Directorate,Employees,040149,Recruitment Instruction and Training,08-Jul-2014,2016567-27/07/14,975.00,BROWNBER HALL COUNTRY HALL.
Fire and Rescue Service,Management and Support Services,Creditors,952093,Creditor-childcare vouchers,08-Jul-2014,2016568-IN090534586,"2,552.31",CHILDCARE VOUCHERS LTD.
Fire and Rescue Service,Management and Support Services,Employees,080025,Agency Staff,08-Jul-2014,2016570-00269915,817.70,COREPEOPLE RECRUITMENT.
Fire and Rescue Service,OD Directorate,Employees,080025,Agency Staff,08-Jul-2014,2016570-00269917,769.23,COREPEOPLE RECRUITMENT.
Fire and Rescue Service,Management and Support Services,Supplies and Services,342525,Computers and Communications,08-Jul-2014,2016571-1800019716,"28,175.68",DEPARTMENT FOR COMMUNITIES & LOCAL GOVERNMENT.
Fire and Rescue Service,Management and Support Services,Supplies and Services,342525,Computers and Communications,08-Jul-2014,2016571-1800019829,"28,175.68",DEPARTMENT FOR COMMUNITIES & LOCAL GOVERNMENT.
Fire and Rescue Service,OD Directorate,Other Expenses,914001,Other capital expenses,08-Jul-2014,2016573-216710,750.00,E BOX LTD.
Fire and Rescue Service,Management and Support Services,Stock,926900,Stock in hand-Inventory system,08-Jul-2014,2016578-06/516744,555.60,GREENHAM TRADING LTD.
Fire and Rescue Service,Management and Support Services,Transport,230701,Contract Hire,08-Jul-2014,2016581-MRI2708192,"3,884.04",LEX AUTOLEASE LTD.
Fire and Rescue Service,OD Directorate,Employees,040149,Recruitment Instruction and Training,08-Jul-2014,2016582-0088,"2,980.00",MEDIA FRIENDLY LTD.
Fire and Rescue Service,Management and Support Services,Supplies and Services,342051,Computers and Communications,08-Jul-2014,2016583-500073544,"1,800.00",MESSAGELABS LTD.
Fire and Rescue Service,Management and Support Services,Supplies and Services,342051,Computers and Communications,08-Jul-2014,2016583-500073545,"4,500.00",MESSAGELABS LTD.
Fire and Rescue Service,Management and Support Services,Supplies and Services,342007,Computers and Communications,08-Jul-2014,2016586-025205,"3,920.00",NCC GROUP SECURITY SERVICES LTD.
Fire and Rescue Service,Management and Support Services,Premises,120009,Energy Costs,08-Jul-2014,2016589-LGUPWPC5,"19,595.13",NPOWER.
Fire and Rescue Service,Management and Support Services,Premises,120009,Energy Costs,08-Jul-2014,2016589-LGUPWPC6,"15,945.35",NPOWER.
Fire and Rescue Service,Management and Support Services,Premises,120009,Energy Costs,08-Jul-2014,2016589-LGUPWPC7,"15,861.02",NPOWER.
Fire and Rescue Service,Community Protection Directorate,Premises,120009,Energy Costs,08-Jul-2014,2016589-NNO7KW2W,"1,069.69",NPOWER.
Fire and Rescue Service,Community Protection Directorate,Premises,120009,Energy Costs,08-Jul-2014,2016589-NNO7KWW3,725.15,NPOWER.
Fire and Rescue Service,Community Protection Directorate,Premises,120009,Energy Costs,08-Jul-2014,2016589-NNO7KWWR,716.67,NPOWER.
Fire and Rescue Service,Community Protection Directorate,Premises,120009,Energy Costs,08-Jul-2014,2016589-NNO7KWWS,692.77,NPOWER.
Fire and Rescue Service,Community Protection Directorate,Premises,120009,Energy Costs,08-Jul-2014,2016589-NNO7KWWY,"1,406.08",NPOWER.
Fire and Rescue Service,Management and Support Services,Supplies and Services,344014,Telephones,08-Jul-2014,2016590-01104210866,"2,447.44",ORANGE PERSONAL COMMUNICATIONS SERVICES LTD.
Fire and Rescue Service,Management and Support Services,Supplies and Services,384199,Miscellaneous Expenses,08-Jul-2014,2016591-900673661,"2,199.18",PORTAKABIN LTD.
Fire and Rescue Service,Management and Support Services,Supplies and Services,342225,Computers and Communications,08-Jul-2014,2016592-OP/I476062,597.20,PROBRAND LTD.
Fire and Rescue Service,Management and Support Services,Stock,926900,Stock in hand-Inventory system,08-Jul-2014,2016594-1062599,"30,500.00",SPRUE SAFETY PRODUCTS LTD.
Children and Adult Services,Childrens Services,Third Party Payments,440001,Other Third Party Payments,08-Jul-2014,2767002-959487,791.82,REDACTED - PAYMENT TO INDIVIDUAL
Children and Adult Services,Childrens Services,Third Party Payments,440027,Other Third Party Payments,08-Jul-2014,2767082-960647,605.34,REDACTED - PAYMENT TO INDIVIDUAL
Children and Adult Services,Childrens Services,Third Party Payments,440016,Other Third Party Payments,08-Jul-2014,2767149-960052,508.51,REDACTED - PAYMENT TO INDIVIDUAL
Children and Adult Services,Childrens Services,Third Party Payments,440001,Other Third Party Payments,08-Jul-2014,2767154-959657,517.05,REDACTED - PAYMENT TO INDIVIDUAL
Children and Adult Services,Childrens Services,Third Party Payments,440027,Other Third Party Payments,08-Jul-2014,2767317-960481,571.71,REDACTED - PAYMENT TO INDIVIDUAL
Neighbourhood Services,Projects and Business services,Third Party Payments,430115,Rendered by Private Contractors,08-Jul-2014,2767524-2014046,"16,631.16",A & E THOMPSON.
Children and Adult Services,Education,Transport,230008,Contract Hire,08-Jul-2014,2767525-09,"1,260.00",A & P TAXIS.
Children and Adult Services,Education,Transport,230008,Contract Hire,08-Jul-2014,2767528-S023,"1,239.00",ABA TAXIS.
Children and Adult Services,Education,Transport,230006,Contract Hire,08-Jul-2014,2767529-558,525.00,AC TAXIS.
Neighbourhood Services,Direct Services,Supplies and Services,304221,Equipment and Materials,08-Jul-2014,2767530-13384,"1,134.40",ACCESS TRAINING SERVICES.
Regeneration & Economic Development,Economic Development and Housing,Other Expenses,914001,Other capital expenses,08-Jul-2014,2767532-RED-07-2014-057,"2,974.00",ACORN PLUMBING & HEATING SERVICES LTD.
Neighbourhood Services,Technical Services,Supplies and Services,304221,Equipment and Materials,08-Jul-2014,2767537-19752328,594.52,AGGREGATE INDUSTRIES UK LTD.
Neighbourhood Services,Technical Services,Supplies and Services,304221,Equipment and Materials,08-Jul-2014,2767538-19813044,"5,566.36",AGGREGATE INDUSTRIES UK LTD.
Neighbourhood Services,Technical Services,Supplies and Services,304221,Equipment and Materials,08-Jul-2014,2767538-19818889,"7,581.60",AGGREGATE INDUSTRIES UK LTD.
Neighbourhood Services,Technical Services,Supplies and Services,304221,Equipment and Materials,08-Jul-2014,2767538-19825517,"7,131.60",AGGREGATE INDUSTRIES UK LTD.
Neighbourhood Services,Technical Services,Supplies and Services,304221,Equipment and Materials,08-Jul-2014,2767538-19844998,"2,011.00",AGGREGATE INDUSTRIES UK LTD.
Neighbourhood Services,Technical Services,Supplies and Services,304221,Equipment and Materials,08-Jul-2014,2767538-19920066,756.83,AGGREGATE INDUSTRIES UK LTD.
Children and Adult Services,Education,Transport,230006,Contract Hire,08-Jul-2014,2767540-388024,798.00,ALANS CABS.
Dedicated Schools Grant,Dedicated Schools Grant,Transport,230010,Contract Hire,08-Jul-2014,2767550-L063-JUNE2014,592.00,ARMSTRONG`S TAXIS.
Neighbourhood Services,Culture & Sport,Supplies and Services,312013,Newspapers Books and Periodicals,08-Jul-2014,2767553-4331776,571.52,ASKEWS & HOLTS LIBRARY SERVICES LTD.
Neighbourhood Services,Culture & Sport,Supplies and Services,312013,Newspapers Books and Periodicals,08-Jul-2014,2767553-4332318,603.48,ASKEWS & HOLTS LIBRARY SERVICES LTD.
Children and Adult Services,Head of Adults,Transport,230005,Contract Hire,08-Jul-2014,2767556-DCC7MAY14,599.95,ATLAS TAXIS BISHOP AUCKLAND.
Children and Adult Services,Education,Transport,230006,Contract Hire,08-Jul-2014,2767560-F538/1,640.00,B&C YELLOWCAB TAXI`S.
Children and Adult Services,Head of Adults,Supplies and Services,308013,Furniture,08-Jul-2014,2767561-58582,"1,352.03",BAILEYS BLINDS CO LTD.
Regeneration & Economic Development,Transport and Contracted Services,Construction Work,908105,Construction work,08-Jul-2014,2767565-27394,"14,824.44",BAYDALE CONTROL SYSTEMS LTD.
Regeneration & Economic Development,Transport and Contracted Services,Construction Work,908105,Construction work,08-Jul-2014,2767565-27395,"56,978.00",BAYDALE CONTROL SYSTEMS LTD.
Children and Adult Services,Education,Transport,230008,Contract Hire,08-Jul-2014,2767567-SMITH/1/JUNE14,"2,092.23",BEELINE PRIVATE HIRE.
Children and Adult Services,Education,Transport,230008,Contract Hire,08-Jul-2014,2767568-33,"1,800.00",BEELINE TAXIS.
Children and Adult Services,Head of Adults,Third Party Payments,473101,Purchase of Care,08-Jul-2014,2767570-SIN017666,858.00,BID SERVICES WITH DEAF PEOPLE.
Children and Adult Services,Education,Transport,230008,Contract Hire,08-Jul-2014,2767586-BIL0045,"1,449.00",CA MUSGROVE.
Assistant Chief Executive,Partnerships & Community Engagement Div.,Supplies and Services,384700,Miscellaneous Expenses,08-Jul-2014,2767609-3980004661,558.00,CO DURHAM & DARLINGTON NHS FOUNDATION TRUST.
Children and Adult Services,Public Health,Third Party Payments,460803,Contract Payments,08-Jul-2014,2767610-FQR60/APR/NRT,555.72,CO-OPERATIVE PHARMACY.
Children and Adult Services,Education,Transport,230007,Contract Hire,08-Jul-2014,2767613-0001279,840.00,COLORS TAXIS LTD.
Neighbourhood Services,Direct Services,Third Party Payments,430100,Rendered by Private Contractors,08-Jul-2014,2767636-K15723,"2,275.00",DELTA ELECTRICAL & MECHANICAL SERVICES.
Neighbourhood Services,Direct Services,Third Party Payments,430100,Rendered by Private Contractors,08-Jul-2014,2767636-K15724,"2,395.00",DELTA ELECTRICAL & MECHANICAL SERVICES.
Neighbourhood Services,Direct Services,Third Party Payments,430100,Rendered by Private Contractors,08-Jul-2014,2767636-K15844,"2,395.00",DELTA ELECTRICAL & MECHANICAL SERVICES.
Neighbourhood Services,Direct Services,Third Party Payments,430100,Rendered by Private Contractors,08-Jul-2014,2767636-K15845,"2,275.00",DELTA ELECTRICAL & MECHANICAL SERVICES.
Neighbourhood Services,Direct Services,Third Party Payments,430100,Rendered by Private Contractors,08-Jul-2014,2767636-K15846,"2,275.00",DELTA ELECTRICAL & MECHANICAL SERVICES.
Neighbourhood Services,Direct Services,Third Party Payments,430100,Rendered by Private Contractors,08-Jul-2014,2767636-K15847,"2,275.00",DELTA ELECTRICAL & MECHANICAL SERVICES.
Neighbourhood Services,Culture & Sport,Supplies and Services,304252,Equipment and Materials,08-Jul-2014,2767644-039,"3,398.00",DURHAM SCENIC WORKSHOPS LTD.
Children and Adult Services,Childrens Services,Supplies and Services,384491,Miscellaneous Expenses,08-Jul-2014,2767667-14C/125B,960.00,EMERALD NURSERY.
Children and Adult Services,Childrens Services,Supplies and Services,384491,Miscellaneous Expenses,08-Jul-2014,2767667-14C/125D,960.00,EMERALD NURSERY.
Children and Adult Services,Redundant-LA,Supplies and Services,384491,Miscellaneous Expenses,08-Jul-2014,2767667-14C/135B,960.00,EMERALD NURSERY.
Children and Adult Services,Redundant-LA,Supplies and Services,384491,Miscellaneous Expenses,08-Jul-2014,2767667-14C/136B,"1,608.00",EMERALD NURSERY.
Children and Adult Services,Redundant-LA,Supplies and Services,384491,Miscellaneous Expenses,08-Jul-2014,2767667-14C/149,720.00,EMERALD NURSERY.
Neighbourhood Services,Direct Services,Supplies and Services,304259,Equipment and Materials,08-Jul-2014,2767673-2457,728.99,FG MARSHALL LTD.
Neighbourhood Services,Technical Services,Supplies and Services,304357,Equipment and Materials,08-Jul-2014,2767690-DCC290614,"13,525.67",GAP GROUP LTD.
Children and Adult Services,Education,Transport,230008,Contract Hire,08-Jul-2014,2767699-35B,609.00,GRAEME AGNEW T/A STREETCARS.
Regeneration & Economic Development,Economic Development and Housing,Supplies and Services,384700,Miscellaneous Expenses,08-Jul-2014,2767711-RED-05-2014-099,"1,000.00",HBP MONPELLIER LTD.
Dedicated Schools Grant,Dedicated Schools Grant,Transport,230010,Contract Hire,08-Jul-2014,2767718-PRU025,"1,685.00",IAN SOULSBY.
Children and Adult Services,Childrens Services,Premises,125009,Rents,08-Jul-2014,2767726-CAS-07-2014-046,"4,066.32",ISOS HOUSING LTD FORMERLY NOMADE5 HOUSING GROUP LTD.
Corporate Resources,Internal Audit and Insurance,Premises,108135,Service Repairs and Maintenance,08-Jul-2014,2767730-16439,"4,222.00",JC APPLICATIONS DEVELOPMENT LTD.
Children and Adult Services,Head of Adults,Supplies and Services,324117,Provisions,08-Jul-2014,2767735-126607,734.75,JR HOLLAND FOOD SERVICES LTD.
Children and Adult Services,Education,Transport,230008,Contract Hire,08-Jul-2014,2767738-A033,"1,155.00",K & R TAXIS.
Neighbourhood Services,Technical Services,Supplies and Services,304221,Equipment and Materials,08-Jul-2014,2767744-9031006437,540.00,LAFARGE TARMAC TRADING LTD.
Children and Adult Services,Education,Transport,230008,Contract Hire,08-Jul-2014,2767751-083,744.00,LEE`S TAXIS.
Neighbourhood Services,Direct Services,Supplies and Services,304221,Equipment and Materials,08-Jul-2014,2767755-4985296,952.03,LINDAB LTD.
Neighbourhood Services,Direct Services,Supplies and Services,304221,Equipment and Materials,08-Jul-2014,2767758-3347707,950.04,LONDON GENERAL SALES LTD.
Dedicated Schools Grant,Dedicated Schools Grant,Transport,230010,Contract Hire,08-Jul-2014,2767761-006,"1,874.00",M BEHAN T/A M & M`S TAXIS.
Neighbourhood Services,Culture & Sport,Supplies and Services,312013,Newspapers Books and Periodicals,08-Jul-2014,2767765-1076006,"1,281.12",MAGNA LARGE PRINT BOOKS.
Neighbourhood Services,Culture & Sport,Supplies and Services,312013,Newspapers Books and Periodicals,08-Jul-2014,2767765-1076024,936.12,MAGNA LARGE PRINT BOOKS.
Children and Adult Services,Education,Transport,230008,Contract Hire,08-Jul-2014,2767775-10,"1,890.00",MARTIN`S TAXIS.
Dedicated Schools Grant,Dedicated Schools Grant,Transport,230005,Contract Hire,08-Jul-2014,2767777-INV-54,701.00,MICHAEL COBB (T/A HAIL TAXIS).
Children and Adult Services,Education,Transport,230008,Contract Hire,08-Jul-2014,2767778-00674,"1,575.00",MICHAELS TRAVEL.
Corporate Resources,Financial Services,Income,740299,Other Income,08-Jul-2014,2767780-6295210,"13,789.00",MIDDLESBROUGH BOROUGH COUNCIL.
Children and Adult Services,Education,Transport,230008,Contract Hire,08-Jul-2014,2767787-454,"2,420.00",MOLLYS TAXIS.
Children and Adult Services,Education,Transport,230007,Contract Hire,08-Jul-2014,2767798-TN010,756.00,MR THOMAS G GRIFFITHS T/A TNL TAXIS.
Children and Adult Services,Education,Supplies and Services,338066,Services,08-Jul-2014,2767802-DCC-1521-0614-NL,"25,625.08",NEPRO LTD.
Neighbourhood Services,Technical Services,Supplies and Services,304337,Equipment and Materials,08-Jul-2014,2767816-DI20190348,527.76,NORTHERN POWERGRID (NORTHEAST) LTD.
Neighbourhood Services,Technical Services,Supplies and Services,304221,Equipment and Materials,08-Jul-2014,2767816-NDC/SB/66585,"1,120.48",NORTHERN POWERGRID (NORTHEAST) LTD.
Neighbourhood Services,Direct Services,Supplies and Services,304357,Equipment and Materials,08-Jul-2014,2767817-314886090017007,632.82,NORTHUMBRIAN WATER LTD.
Corporate Resources,I.C.T. Services,Employees,040149,Recruitment Instruction and Training,08-Jul-2014,2767825-INV-0112,"1,566.60",ON BRAND PARTNERS UK LTD.
Corporate Resources,I.C.T. Services,Employees,040149,Recruitment Instruction and Training,08-Jul-2014,2767825-INV-0114,"1,500.00",ON BRAND PARTNERS UK LTD.
Neighbourhood Services,Direct Services,Third Party Payments,430100,Rendered by Private Contractors,08-Jul-2014,2767832-RTS10394084,970.00,OTIS LTD.
Children and Adult Services,Head of Adults,Supplies and Services,304259,Equipment and Materials,08-Jul-2014,2767834-555646,"2,345.00",P & N ASSOCIATES LTD.
Neighbourhood Services,Culture & Sport,Third Party Payments,430105,Rendered by Private Contractors,08-Jul-2014,2767849-61264945,"1,414.85",PHS GROUP PLC.
Neighbourhood Services,Direct Services,Third Party Payments,430100,Rendered by Private Contractors,08-Jul-2014,2767859-66797,"1,152.09",PROTECTOR SECURITY GROUP LTD.
Children and Adult Services,Public Health,Supplies and Services,384199,Miscellaneous Expenses,08-Jul-2014,2767862-20/6/14,588.50,R ONEILL.
Neighbourhood Services,Technical Services,Third Party Payments,430100,Rendered by Private Contractors,08-Jul-2014,2767864-2655H40525,"79,849.06",RAINTON CONSTRUCTION LTD.
Children and Adult Services,Education,Transport,230008,Contract Hire,08-Jul-2014,2767871-2150,"1,386.00",RICHIES TAXIS.
Neighbourhood Services,Direct Services,Third Party Payments,430100,Rendered by Private Contractors,08-Jul-2014,2767873-2969,770.00,RINGLAND SCAFFOLDING.
Children and Adult Services,Public Health,Third Party Payments,460803,Contract Payments,08-Jul-2014,2767878-FL345/METH0514,645.00,ROBERTS & ROBERTS LTD T/A HIGGINBOTTOM PHARMACY.
Corporate Resources,I.C.T. Services,Supplies and Services,340001,Postages,08-Jul-2014,2767882-9047424520,"11,462.98",ROYAL MAIL GROUP PLC.
Children and Adult Services,Education,Transport,230007,Contract Hire,08-Jul-2014,2767886-3080/02,"1,680.00",S & S TRAVEL LTD.
Children and Adult Services,Education,Transport,230007,Contract Hire,08-Jul-2014,2767886-4079/02,"1,300.00",S & S TRAVEL LTD.
Children and Adult Services,Education,Transport,230008,Contract Hire,08-Jul-2014,2767886-S011/21,"1,890.00",S & S TRAVEL LTD.
Children and Adult Services,Education,Transport,230008,Contract Hire,08-Jul-2014,2767886-W052/10,"2,760.00",S & S TRAVEL LTD.
Children and Adult Services,Education,Transport,230008,Contract Hire,08-Jul-2014,2767886-W075/21,"1,764.00",S & S TRAVEL LTD.
Children and Adult Services,Education,Transport,230008,Contract Hire,08-Jul-2014,2767899-012,"1,400.00",SHOEY`S TAXIS.
Children and Adult Services,Public Health,Third Party Payments,460803,Contract Payments,08-Jul-2014,2767900-FJW29/MAY2014/METH,536.00,SHOTTON PHARMACY.
Children and Adult Services,Education,Transport,230008,Contract Hire,08-Jul-2014,2767901-71428,"2,200.00",SHOTTON PRIVATE HIRE.
Children and Adult Services,Education,Transport,230008,Contract Hire,08-Jul-2014,2767901-71429,"1,890.00",SHOTTON PRIVATE HIRE.
Children and Adult Services,Education,Transport,230006,Contract Hire,08-Jul-2014,2767904-F536-06-14,"2,242.00",SIMON ELLIFF.
Children and Adult Services,Education,Transport,230008,Contract Hire,08-Jul-2014,2767910-124,966.00,SODA TAXIS.
Children and Adult Services,Education,Transport,230008,Contract Hire,08-Jul-2014,2767913-0015,644.91,SOUTH MOOR TAXIS.
Neighbourhood Services,Technical Services,Stock,926900,Stock in hand-Inventory system,08-Jul-2014,2767914-270014238,"1,225.00",SOVEREIGN CHEMICALS LTD.
Children and Adult Services,Education,Transport,230008,Contract Hire,08-Jul-2014,2767917-NUBAAK12456,"1,640.00",SPENNYMOOR TAXIS.
Children and Adult Services,Education,Transport,230008,Contract Hire,08-Jul-2014,2767917-NUBJJJC241,"1,575.00",SPENNYMOOR TAXIS.
Children and Adult Services,Education,Transport,230007,Contract Hire,08-Jul-2014,2767922-243,"2,095.80",STEPHEN MAUDE LTD T/A MAUDES COACHES.
Children and Adult Services,Education,Transport,230006,Contract Hire,08-Jul-2014,2767929-1883,"1,195.00",TALBOTS TAXIS.
Children and Adult Services,Childrens Services,Third Party Payments,486044,Service Level Agreements,08-Jul-2014,2767938-4810002361,"3,560.67",TEES ESK & WEAR VALLEYS NHS FOUNDATION TRUST.
Children and Adult Services,Childrens Services,Third Party Payments,410037,Rendered by Other Local Authorities,08-Jul-2014,2767942-SII006396,"11,039.00",THE YOUTH JUSTICE BOARD.
Neighbourhood Services,Culture & Sport,Supplies and Services,336005,Advertising,08-Jul-2014,2767944-05062014BRASSDURH,"1,500.00",TINY COW PR & CREATIVE LTD.
Children and Adult Services,Public Health,Supplies and Services,384199,Miscellaneous Expenses,08-Jul-2014,2767949-INV0830,660.00,TRIANGLE CONSULTING SOCIAL ENTERPRISE LTD.
Children and Adult Services,Education,Transport,230008,Contract Hire,08-Jul-2014,2767950-011,873.60,TRIDENT TAXIS.
Neighbourhood Services,Technical Services,Supplies and Services,304221,Equipment and Materials,08-Jul-2014,2767957-137115,735.84,TYNEDALE ROADSTONE LTD.
Neighbourhood Services,Technical Services,Supplies and Services,304221,Equipment and Materials,08-Jul-2014,2767957-137337,"1,180.53",TYNEDALE ROADSTONE LTD.
Neighbourhood Services,Culture & Sport,Supplies and Services,312013,Newspapers Books and Periodicals,08-Jul-2014,2767960-1574021,"1,384.89",ULVERSCROFT LARGE PRINT BOOKS LTD.
Neighbourhood Services,Culture & Sport,Supplies and Services,312013,Newspapers Books and Periodicals,08-Jul-2014,2767960-1574022,"1,683.29",ULVERSCROFT LARGE PRINT BOOKS LTD.
Children and Adult Services,Education,Transport,230008,Contract Hire,08-Jul-2014,2767974-890,"1,890.00",WAYNE`S TAXIS.
Children and Adult Services,Education,Transport,230007,Contract Hire,08-Jul-2014,2767976-CONS/JUN/14,"3,532.20",WEARDALE MOTOR SERVICES LTD.
Children and Adult Services,Education,Transport,230007,Contract Hire,08-Jul-2014,2767976-CONS/JUN/142,"3,549.00",WEARDALE MOTOR SERVICES LTD.
Neighbourhood Services,Technical Services,Stock,926900,Stock in hand-Inventory system,08-Jul-2014,2767977-12252737,"3,902.00",WOLSELEY UK LTD.
Neighbourhood Services,Direct Services,Third Party Payments,430100,Rendered by Private Contractors,08-Jul-2014,2767985-31284,"8,022.52",YWC GROUP LTD.
Regeneration & Economic Development,Economic Development and Housing,Supplies and Services,377015,County Durham Development,09-Jul-2014,232857-AMTI9891,886.00,AMT MARKETING.
Corporate Resources,Legal & Democratic Services,Supplies and Services,338042,Services,09-Jul-2014,232880-305702/INVSW120,780.00,DERE STREET BARRISTERS.
Children and Adult Services,Commissioning inc Supporting People,Third Party Payments,479111,Purchase of Care,09-Jul-2014,232881-1/7/14,"3,244.95",DERWENTSIDE MIND.
Children and Adult Services,Head of Adults,Cap Exp on Grants & Other Financial Assistance (REFCUS),918401,Capital grants,09-Jul-2014,232881-CAS07-2014-002,"1,348.98",DERWENTSIDE MIND.
Neighbourhood Services,Direct Services,Transport,230005,Contract Hire,09-Jul-2014,232894-067017,830.00,FIVEWAYS MUNICIPAL VEHICLE HIRE LTD.
Neighbourhood Services,Projects and Business services,Supplies and Services,304252,Equipment and Materials,09-Jul-2014,232898-SI/62399,"1,320.00",GEOTECHNICAL INSTRUMENTS (U K) LTD.
Dedicated Schools Grant,Dedicated Schools Grant,Third Party Payments,440080,Other Third Party Payments,09-Jul-2014,232900-OP/I017839,"2,167.50",HARTLEPOOL COLLEGE OF FURTHER EDUCATION.
Children and Adult Services,Childrens Services,Supplies and Services,338040,Services,09-Jul-2014,232903-RES-06-2014-032,"2,055.00",HMCTS.
Children and Adult Services,Childrens Services,Supplies and Services,338040,Services,09-Jul-2014,232903-RES-07-2014-009,"10,275.00",HMCTS.
Regeneration & Economic Development,Economic Development and Housing,Cap Exp on Grants & Other Financial Assistance (REFCUS),918401,Capital grants,09-Jul-2014,232917-RED-06-2014-192,700.00,REDACTED - PAYMENT TO INDIVIDUAL
RED HRA,HRA Centrally Managed,Creditors,952191,Creditor-HRA-rents-refunds,09-Jul-2014,232924-RENTREFUND3/7/14,600.00,REDACTED - PAYMENT TO INDIVIDUAL
RED HRA,HRA Centrally Managed,Supplies and Services,384999,Miscellaneous Expenses,09-Jul-2014,232933-1029320,600.00,REDACTED - PAYMENT TO INDIVIDUAL
Regeneration & Economic Development,Economic Development and Housing,Supplies and Services,352001,Conference Expenses,09-Jul-2014,232954-10937,500.00,NEPIC.
Children and Adult Services,Education,Transport,230008,Contract Hire,09-Jul-2014,232964-995,"1,690.00",PETERLEE TAXIS.
Neighbourhood Services,Direct Services,Premises,108251,Service Repairs and Maintenance,09-Jul-2014,232979-12790,920.00,STEADFAST SECURITY SYSTEMS LTD.
Neighbourhood Services,Culture & Sport,Supplies and Services,384199,Miscellaneous Expenses,09-Jul-2014,232982-4893,500.00,STOCKTON ARTS CENTRE LTD.
Children and Adult Services,Public Health,Third Party Payments,460802,Contract Payments,09-Jul-2014,232984-A83016/Q1/2014,"2,028.95",TANFIELD VIEW SURGERY.
Children and Adult Services,Public Health,Third Party Payments,460802,Contract Payments,09-Jul-2014,232984-A83016/Q2/2013,"1,669.46",TANFIELD VIEW SURGERY.
Children and Adult Services,Public Health,Third Party Payments,460802,Contract Payments,09-Jul-2014,232984-A83016/Q4/2014,"2,649.93",TANFIELD VIEW SURGERY.
Neighbourhood Services,Direct Services,Third Party Payments,430100,Rendered by Private Contractors,09-Jul-2014,232985-5162,975.00,TEAM VALLEY TRANSMISSIONS LTD.
Regeneration & Economic Development,Economic Development and Housing,Supplies and Services,304337,Equipment and Materials,09-Jul-2014,232990-110041,651.34,TRANSOMNIA LTD.
Neighbourhood Services,EnvironmentHealth & Consumer Protection,Supplies and Services,304259,Equipment and Materials,09-Jul-2014,232997-157,"5,000.00",WEIGHBRIDGE TESTING SERVICES.
Children and Adult Services,Education,Transport,230008,Contract Hire,09-Jul-2014,2767992-0196,"1,932.00",ABC & OUSTON CABS.
Children and Adult Services,Education,Transport,230008,Contract Hire,09-Jul-2014,2767992-0197,882.00,ABC & OUSTON CABS.
Children and Adult Services,Childrens Services,Transport,230008,Contract Hire,09-Jul-2014,2767992-0199,"1,120.00",ABC & OUSTON CABS.
Children and Adult Services,Education,Transport,230008,Contract Hire,09-Jul-2014,2767994-112A,570.80,ADAMSONS TAXIS.
Children and Adult Services,Education,Transport,230008,Contract Hire,09-Jul-2014,2767995-1414,"1,092.00",ADVANCE TRAVEL.
Neighbourhood Services,Technical Services,Employees,080025,Agency Staff,09-Jul-2014,2767997-28193552,"7,568.00",AECOM LTD.
Neighbourhood Services,Technical Services,Supplies and Services,304221,Equipment and Materials,09-Jul-2014,2767998-19975288,521.26,AGGREGATE INDUSTRIES UK LTD.
Neighbourhood Services,Technical Services,Supplies and Services,304221,Equipment and Materials,09-Jul-2014,2767999-19889568,610.67,AGGREGATE INDUSTRIES UK LTD.
Neighbourhood Services,Technical Services,Supplies and Services,304221,Equipment and Materials,09-Jul-2014,2767999-19896258,684.20,AGGREGATE INDUSTRIES UK LTD.
Neighbourhood Services,Technical Services,Supplies and Services,304221,Equipment and Materials,09-Jul-2014,2767999-19954702,765.20,AGGREGATE INDUSTRIES UK LTD.
Neighbourhood Services,Technical Services,Supplies and Services,304221,Equipment and Materials,09-Jul-2014,2767999-19954706,781.94,AGGREGATE INDUSTRIES UK LTD.
Neighbourhood Services,Technical Services,Supplies and Services,304221,Equipment and Materials,09-Jul-2014,2767999-19954707,520.71,AGGREGATE INDUSTRIES UK LTD.
Neighbourhood Services,Technical Services,Supplies and Services,304221,Equipment and Materials,09-Jul-2014,2767999-19961313,665.84,AGGREGATE INDUSTRIES UK LTD.
Neighbourhood Services,Technical Services,Supplies and Services,304221,Equipment and Materials,09-Jul-2014,2767999-19961317,"2,688.58",AGGREGATE INDUSTRIES UK LTD.
Neighbourhood Services,Technical Services,Supplies and Services,304221,Equipment and Materials,09-Jul-2014,2767999-19975285,953.12,AGGREGATE INDUSTRIES UK LTD.
Neighbourhood Services,Technical Services,Supplies and Services,304221,Equipment and Materials,09-Jul-2014,2767999-19984301,"2,542.00",AGGREGATE INDUSTRIES UK LTD.
Children and Adult Services,Education,Transport,230008,Contract Hire,09-Jul-2014,2768003-0288,"1,155.00",AJS PRIVATE HIRE.
Regeneration & Economic Development,Economic Development and Housing,Supplies and Services,384199,Miscellaneous Expenses,09-Jul-2014,2768004-CTH/1-JULY2014,845.00,ALAN HALL REMOVALS.
Neighbourhood Services,Projects and Business services,Supplies and Services,338027,Services,09-Jul-2014,2768006-HL163129,909.07,ALCONTROL LABORATORIES.
Neighbourhood Services,Projects and Business services,Supplies and Services,338027,Services,09-Jul-2014,2768006-HL163799,"1,280.80",ALCONTROL LABORATORIES.
Children and Adult Services,Education,Transport,230008,Contract Hire,09-Jul-2014,2768012-47,"1,428.00",ANDY CABS.
Corporate Resources,I.C.T. Services,Supplies and Services,304245,Equipment and Materials,09-Jul-2014,2768013-WJ3891891,867.88,ANTALIS LTD.
Children and Adult Services,Public Health,Third Party Payments,460803,Contract Payments,09-Jul-2014,2768019-FDE75/JUNE/14,905.00,ASDA PHARMACY.
Neighbourhood Services,Technical Services,Stock,926900,Stock in hand-Inventory system,09-Jul-2014,2768023-SIN220847,"1,087.60",ATF SUPPLIES LTD.
Children and Adult Services,Education,Transport,230007,Contract Hire,09-Jul-2014,2768024-03168,588.00,ATLAS TAXIS CONSETT.
Children and Adult Services,Education,Transport,230007,Contract Hire,09-Jul-2014,2768024-03169,504.00,ATLAS TAXIS CONSETT.
Children and Adult Services,Education,Transport,230007,Contract Hire,09-Jul-2014,2768024-03171,720.00,ATLAS TAXIS CONSETT.
Children and Adult Services,Education,Transport,230006,Contract Hire,09-Jul-2014,2768024-03172,742.56,ATLAS TAXIS CONSETT.
Neighbourhood Services,Technical Services,Stock,926900,Stock in hand-Inventory system,09-Jul-2014,2768027-INV089171,"1,400.00",AZTEC CHEMICALS LTD.
Dedicated Schools Grant,Dedicated Schools Grant,Third Party Payments,440080,Other Third Party Payments,09-Jul-2014,2768029-0000000050,"2,257.00",BARBARA PRIESTMAN ACADEMY.
RED HRA,HRA Capital,Construction Work,908105,Construction work,09-Jul-2014,2768030-056011963,"2,415.82",BARCHESTER HEALTHCARE HOMES LTD.
RED HRA,HRA Capital,Construction Work,908105,Construction work,09-Jul-2014,2768030-056011968,"1,777.76",BARCHESTER HEALTHCARE HOMES LTD.
Regeneration & Economic Development,Transport and Contracted Services,Third Party Payments,440999,Other Third Party Payments,09-Jul-2014,2768033-26850,"4,087.50",BAYDALE CONTROL SYSTEMS LTD.
Regeneration & Economic Development,Spatial Policy Planning Assets & Environment,Supplies and Services,338066,Services,09-Jul-2014,2768034-02/113003,604.36,BEAUMONT BROWN ARCHITECTS LLP.
Children and Adult Services,Education,Transport,230008,Contract Hire,09-Jul-2014,2768035-SMITH/9JUNE14,"1,155.00",BEE LINE PROMOTIONAL PRODUCTS LLP.
Children and Adult Services,Education,Transport,230008,Contract Hire,09-Jul-2014,2768036-426,"1,662.36",BEELINE MINI BUSES.
Children and Adult Services,Education,Transport,230008,Contract Hire,09-Jul-2014,2768036-427,"1,575.00",BEELINE MINI BUSES.
Children and Adult Services,Education,Transport,230008,Contract Hire,09-Jul-2014,2768037-SMITH/10/JUNE14,"1,600.00",BEELINE PRIVATE HIRE.
Children and Adult Services,Public Health,Third Party Payments,460802,Contract Payments,09-Jul-2014,2768039-A83014/Q4/2014,"2,332.35",BELMONT & SHERBURN MEDICAL GROUP.
Children and Adult Services,Commissioning inc Supporting People,Third Party Payments,442002,Supporting People,09-Jul-2014,2768040-1957952,"26,964.04",BID SERVICES WITH DEAF PEOPLE.
Children and Adult Services,Education,Transport,230007,Contract Hire,09-Jul-2014,2768041-15,798.00,BILL`S TAXIS.
Neighbourhood Services,Culture & Sport,Supplies and Services,384199,Miscellaneous Expenses,09-Jul-2014,2768042-00035,"9,910.14",BISHOP CATERING LTD.
Children and Adult Services,Public Health,Third Party Payments,460803,Contract Payments,09-Jul-2014,2768048-A83009JAN-MAR2014,730.00,BRIDGE END SURGERY.
Children and Adult Services,Education,Transport,230008,Contract Hire,09-Jul-2014,2768054-PS082,"1,386.00",BURNDALE PRIVATE HIRE.
Neighbourhood Services,Direct Services,Transport,230005,Contract Hire,09-Jul-2014,2768055-NEW8109798,"1,097.65",BURNT TREE GROUP LTD.
Neighbourhood Services,Direct Services,Transport,230005,Contract Hire,09-Jul-2014,2768055-NEW8109831,559.12,BURNT TREE GROUP LTD.
Neighbourhood Services,Direct Services,Transport,230005,Contract Hire,09-Jul-2014,2768055-NEW8109857,908.40,BURNT TREE GROUP LTD.
Neighbourhood Services,Direct Services,Transport,230005,Contract Hire,09-Jul-2014,2768055-NEW8110653,"1,135.50",BURNT TREE GROUP LTD.
Neighbourhood Services,Direct Services,Transport,230005,Contract Hire,09-Jul-2014,2768055-NEW8110702,832.70,BURNT TREE GROUP LTD.
Children and Adult Services,Education,Transport,230007,Contract Hire,09-Jul-2014,2768056-205208,630.00,C & R TAXIS.
Dedicated Schools Grant,Dedicated Schools Grant,Transport,230010,Contract Hire,09-Jul-2014,2768056-P048010,"1,000.00",C & R TAXIS.
Dedicated Schools Grant,Dedicated Schools Grant,Transport,230010,Contract Hire,09-Jul-2014,2768056-P05208,"1,000.00",C & R TAXIS.
Regeneration & Economic Development,Transport and Contracted Services,Third Party Payments,430109,Rendered by Private Contractors,09-Jul-2014,2768057-106625,"1,797.00",CA TRAFFIC LTD.
Neighbourhood Services,Technical Services,Stock,926900,Stock in hand-Inventory system,09-Jul-2014,2768061-851401718,"2,616.00",CARLISLE CONSTRUCTION MATERIALS LTD.
Neighbourhood Services,Culture & Sport,Supplies and Services,324001,Provisions,09-Jul-2014,2768062-840389247,"1,221.04",CARLSBERG UK LTD.
Neighbourhood Services,Culture & Sport,Supplies and Services,324117,Provisions,09-Jul-2014,2768062-840399573,987.48,CARLSBERG UK LTD.
Neighbourhood Services,Direct Services,Transport,210057,Repair and Maintenance of Vehicles,09-Jul-2014,2768064-283255,532.90,CARRS BILLINGTON AGRICULTURE.
Neighbourhood Services,Direct Services,Stock,926004,Stock,09-Jul-2014,2768064-283306,684.76,CARRS BILLINGTON AGRICULTURE.
Neighbourhood Services,Direct Services,Stock,926004,Stock,09-Jul-2014,2768064-283309,570.82,CARRS BILLINGTON AGRICULTURE.
Neighbourhood Services,Direct Services,Stock,926004,Stock,09-Jul-2014,2768064-283885,500.99,CARRS BILLINGTON AGRICULTURE.
Children and Adult Services,Public Health,Third Party Payments,460803,Contract Payments,09-Jul-2014,2768068-APRIL2014METHADONE,663.00,CENTRECHEM DISPENSING CHEMIST.
Children and Adult Services,Public Health,Third Party Payments,460803,Contract Payments,09-Jul-2014,2768068-MAY2014,592.00,CENTRECHEM DISPENSING CHEMIST.
Children and Adult Services,Public Health,Third Party Payments,460803,Contract Payments,09-Jul-2014,2768069-FRW33/JUNE/2014,691.00,CHAMBERS CHEMIST.
Corporate Resources,Financial Services,Supplies and Services,384199,Miscellaneous Expenses,09-Jul-2014,2768074-C/RB124630,"14,450.00",CIVICA UK LTD.
Neighbourhood Services,Technical Services,Premises,150015,Apportioned Exps of Operational Blds,09-Jul-2014,2768077-256732,862.47,CLEE HILL PLANT LTD.
Neighbourhood Services,Technical Services,Premises,150015,Apportioned Exps of Operational Blds,09-Jul-2014,2768077-256733,862.47,CLEE HILL PLANT LTD.
Neighbourhood Services,Technical Services,Premises,150015,Apportioned Exps of Operational Blds,09-Jul-2014,2768077-256734,862.47,CLEE HILL PLANT LTD.
Neighbourhood Services,Technical Services,Premises,150015,Apportioned Exps of Operational Blds,09-Jul-2014,2768077-256735,862.47,CLEE HILL PLANT LTD.
Neighbourhood Services,Technical Services,Premises,150015,Apportioned Exps of Operational Blds,09-Jul-2014,2768077-256736,862.47,CLEE HILL PLANT LTD.
Corporate Resources,I.C.T. Services,Income,720089,Fees and Charges,09-Jul-2014,2768078-CAS-07-2014-029,659.60,CLEVES CROSS ACADEMY.
Children and Adult Services,Public Health,Third Party Payments,460803,Contract Payments,09-Jul-2014,2768081-200436/5117/06,510.00,CO-OPERATIVE PHARMACY.
Neighbourhood Services,Technical Services,Stock,926900,Stock in hand-Inventory system,09-Jul-2014,2768083-153213,"1,109.52",COLAS LTD.
Regeneration & Economic Development,Economic Development and Housing,Construction Work,908105,Construction work,09-Jul-2014,2768084-0463,900.00,COMMERCIAL ENERGY ASSESSMENT NORTH EAST LTD.
Regeneration & Economic Development,Economic Development and Housing,Income,720721,Fees and Charges,09-Jul-2014,2768085-0000000315,"3,900.00",COMMUNITY PARTNERS LTD.
Children and Adult Services,Public Health,Third Party Payments,460803,Contract Payments,09-Jul-2014,2768087-0032014,"7,560.00",COUNTY DURHAM & DARLINGTON LOCAL PHARMACEUTICAL COMMITTEE.
Children and Adult Services,Commissioning inc Supporting People,Third Party Payments,442002,Supporting People,09-Jul-2014,2768090-1957863,"19,868.48",CREATIVE SUPPORT LTD.
Children and Adult Services,Education,Transport,230007,Contract Hire,09-Jul-2014,2768092-B/MIDD003,504.00,D IRVING T/A BJ TAXIS.
Children and Adult Services,Education,Transport,230008,Contract Hire,09-Jul-2014,2768092-OAK028,"1,390.20",D IRVING T/A BJ TAXIS.
RED HRA,HRA Capital,Other Expenses,914001,Other capital expenses,09-Jul-2014,2768093-80001845,607.00,DALE & VALLEY HOMES.
Children and Adult Services,Education,Supplies and Services,338027,Services,09-Jul-2014,2768094-2555386,699.96,DARLINGTON BOROUGH COUNCIL.
Regeneration & Economic Development,Economic Development and Housing,Other Expenses,914001,Other capital expenses,09-Jul-2014,2768097-RED-07-2014-008,"4,234.00",DAVID WHITE PLUMBING & HEATING.
Corporate Resources,I.C.T. Services,Stock,926900,Stock in hand-Inventory system,09-Jul-2014,2768100-7402130350,"1,645.00",DELL COMPUTER CORPORATION LTD.
Children and Adult Services,Public Health,Third Party Payments,460803,Contract Payments,09-Jul-2014,2768103-22/2014,"4,550.00",DENESIDE MEDICAL CENTRE.
Neighbourhood Services,Direct Services,Supplies and Services,338066,Services,09-Jul-2014,2768104-11204,549.00,DERWENTSIDE FUNERAL SERVICE.
Neighbourhood Services,Direct Services,Supplies and Services,338066,Services,09-Jul-2014,2768104-11205,549.00,DERWENTSIDE FUNERAL SERVICE.
Children and Adult Services,Commissioning inc Supporting People,Third Party Payments,442002,Supporting People,09-Jul-2014,2768105-1957672,"5,668.48",DISC LTD.
Children and Adult Services,Commissioning inc Supporting People,Third Party Payments,442002,Supporting People,09-Jul-2014,2768105-1957891,"27,885.68",DISC LTD.
Regeneration & Economic Development,Transport and Contracted Services,Supplies and Services,377015,County Durham Development,09-Jul-2014,2768106-14/166,"4,999.00",DIVA CREATIVE LTD.
Children and Adult Services,Public Health,Third Party Payments,460803,Contract Payments,09-Jul-2014,2768107-FG51/Q4/SSS/MAY14,745.50,DIXON & HALL LTD.
Children and Adult Services,Public Health,Third Party Payments,460803,Contract Payments,09-Jul-2014,2768108-FWL23/Q4/SSS/MAY14,"1,125.50",DIXON & HALL LTD.
Children and Adult Services,Public Health,Third Party Payments,460803,Contract Payments,09-Jul-2014,2768109-471,"1,104.17",DMP ARENA TRAINING LTD.
Regeneration & Economic Development,Transport and Contracted Services,Premises,108099,Service Repairs and Maintenance,09-Jul-2014,2768111-9100684489,"4,994.96",DORMA UK LTD.
Children and Adult Services,Public Health,Third Party Payments,460803,Contract Payments,09-Jul-2014,2768114-A83644/Q4/2014,565.00,DR PHILIP LE DUNE.
Children and Adult Services,Public Health,Third Party Payments,460803,Contract Payments,09-Jul-2014,2768115-DISCUSJUNE2014,700.00,DR RT DAWSON.
Dedicated Schools Grant,Dedicated Schools Grant,Transport,230005,Contract Hire,09-Jul-2014,2768118-DC09,"1,140.00",DUNCAN G CUMMINGS T/A DC TAXIS.
Children and Adult Services,Commissioning inc Supporting People,Third Party Payments,441001,Supporting People,09-Jul-2014,2768119-1957892,"20,819.76",DURHAM ACTION ON SINGLE HOUSING.
Children and Adult Services,Commissioning inc Supporting People,Third Party Payments,443001,Supporting People,09-Jul-2014,2768119-1957893,"3,689.80",DURHAM ACTION ON SINGLE HOUSING.
Children and Adult Services,Commissioning inc Supporting People,Third Party Payments,443001,Supporting People,09-Jul-2014,2768119-1957898,737.96,DURHAM ACTION ON SINGLE HOUSING.
Neighbourhood Services,Culture & Sport,Supplies and Services,384700,Miscellaneous Expenses,09-Jul-2014,2768120-NEI-EXP-07-2014-006,"1,980.00",DURHAM AMATEUR ROWING CLUB.
Neighbourhood Services,Culture & Sport,Supplies and Services,384700,Miscellaneous Expenses,09-Jul-2014,2768121-NEI-EXP-07-2014-007,702.00,DURHAM CITY CRICKET CLUB.
Regeneration & Economic Development,Spatial Policy Planning Assets & Environment,Supplies and Services,338099,Services,09-Jul-2014,2768123-14074,"1,054.00",DURHAM WILDLIFE TRUST LTD.
Children and Adult Services,Commissioning inc Supporting People,Third Party Payments,441001,Supporting People,09-Jul-2014,2768124-1957751,"5,483.40",EAST DURHAM COMMUNITY INITIATIVES LTD.
Children and Adult Services,Commissioning inc Supporting People,Third Party Payments,441001,Supporting People,09-Jul-2014,2768133-1957680,"26,571.84",FABRICK HOUSING GROUP LTD.
Children and Adult Services,Commissioning inc Supporting People,Third Party Payments,442002,Supporting People,09-Jul-2014,2768133-1957688,"9,851.44",FABRICK HOUSING GROUP LTD.
Neighbourhood Services,Direct Services,Stock,926004,Stock,09-Jul-2014,2768135-104818,896.00,FILTERMECH PLANT SALES LTD.
Neighbourhood Services,Projects and Business services,Third Party Payments,430120,Rendered by Private Contractors,09-Jul-2014,2768136-CTIN06424696,"1,391.60",FINNING (UK) LTD.
Children and Adult Services,Childrens Services,Supplies and Services,364999,Grants to Voluntary Organisations,09-Jul-2014,2768137-CAS-07-2014-020,"4,000.00",FISHBURN YOUTH & COMMUNITY CENTRE.
Children and Adult Services,Childrens Services,Supplies and Services,364999,Grants to Voluntary Organisations,09-Jul-2014,2768137-CAS-07-2014-023,"2,880.00",FISHBURN YOUTH & COMMUNITY CENTRE.
Neighbourhood Services,Direct Services,Supplies and Services,304221,Equipment and Materials,09-Jul-2014,2768139-OP/I279943,592.00,FLEMING & CO (MACHINERY) LTD.
Children and Adult Services,Commissioning inc Supporting People,Third Party Payments,442002,Supporting People,09-Jul-2014,2768140-1957865,"30,071.20",FOUNDATION HOUSING.
Children and Adult Services,Public Health,Third Party Payments,460803,Contract Payments,09-Jul-2014,2768143-FVI65/JUN/14,883.00,G WHITFIELD LTD.
Corporate Resources,Human Resources,Supplies and Services,372009,Subscriptions,09-Jul-2014,2768147-103009218,"5,000.00",GATESHEAD COUNCIL.
Neighbourhood Services,Direct Services,Third Party Payments,430100,Rendered by Private Contractors,09-Jul-2014,2768149-B95910,599.40,GEESINK NORBA LTD.
Corporate Resources,I.C.T. Services,Supplies and Services,344137,Telephones,09-Jul-2014,2768150-276300891,"1,410.00",GETRONICS UNIFIED COMMUNICATIONS.
Neighbourhood Services,Direct Services,Third Party Payments,430100,Rendered by Private Contractors,09-Jul-2014,2768151-104407,"7,582.03",GIACOMINI UK LTD.
Regeneration & Economic Development,Transport and Contracted Services,Third Party Payments,430106,Rendered by Private Contractors,09-Jul-2014,2768153-43136,"64,886.32",GO NORTH EAST LTD.
Neighbourhood Services,Direct Services,Premises,145023,Cleaning and Domestic Supplies,09-Jul-2014,2768159-06/516825,589.50,GREENHAM TRADING LTD.
Neighbourhood Services,Direct Services,Premises,145023,Cleaning and Domestic Supplies,09-Jul-2014,2768159-06/516826,"1,342.40",GREENHAM TRADING LTD.
Neighbourhood Services,Direct Services,Premises,145023,Cleaning and Domestic Supplies,09-Jul-2014,2768159-06/516842,972.60,GREENHAM TRADING LTD.
Children and Adult Services,Childrens Services,Employees,040001,Recruitment Instruction and Training,09-Jul-2014,2768161-914684,900.00,GUARDIAN NEWS & MEDIA LTD.
Children and Adult Services,Childrens Services,Employees,040001,Recruitment Instruction and Training,09-Jul-2014,2768161-915092,"1,865.00",GUARDIAN NEWS & MEDIA LTD.
Neighbourhood Services,Direct Services,Premises,115125,Repairs to Grounds,09-Jul-2014,2768162-0340/14,900.00,H BRADLEY.
Children and Adult Services,Commissioning inc Supporting People,Third Party Payments,442002,Supporting People,09-Jul-2014,2768163-1957871,"5,995.44",HANOVER HOUSING ASSOCIATION.
Children and Adult Services,Commissioning inc Supporting People,Third Party Payments,441001,Supporting People,09-Jul-2014,2768164-1957866,"8,938.68",HARBOUR SUPPORT SERVICES.
Neighbourhood Services,Direct Services,Supplies and Services,304221,Equipment and Materials,09-Jul-2014,2768165-SI-2102,594.90,HARELAW SAWMILL LTD.
Neighbourhood Services,Direct Services,Supplies and Services,304221,Equipment and Materials,09-Jul-2014,2768167-688200,807.04,HARVEST ENERGY LTD.
Neighbourhood Services,Direct Services,Supplies and Services,304221,Equipment and Materials,09-Jul-2014,2768167-688204,"2,432.83",HARVEST ENERGY LTD.
Corporate Resources,I.C.T. Services,Supplies and Services,332029,Printing Stationery and Gen Off Exps,09-Jul-2014,2768170-70127,"1,030.00",HILLPRINT MEDIA LTD.
Children and Adult Services,Commissioning inc Supporting People,Third Party Payments,443001,Supporting People,09-Jul-2014,2768173-1957835,794.08,HOME HOUSING ASSOCIATION LTD.
Children and Adult Services,Commissioning inc Supporting People,Third Party Payments,443001,Supporting People,09-Jul-2014,2768173-1957849,528.34,HOME HOUSING ASSOCIATION LTD.
Children and Adult Services,Public Health,Third Party Payments,460803,Contract Payments,09-Jul-2014,2768175-A83044/Q4/2014,"1,064.50",HORDEN GROUP PRACTICE.
Neighbourhood Services,Direct Services,Premises,115125,Repairs to Grounds,09-Jul-2014,2768177-B33/0068980,818.76,HOWDENS JOINERY LTD.
Neighbourhood Services,Direct Services,Premises,115125,Repairs to Grounds,09-Jul-2014,2768177-B33/0068981,977.61,HOWDENS JOINERY LTD.
Regeneration & Economic Development,Spatial Policy Planning Assets & Environment,Third Party Payments,430105,Rendered by Private Contractors,09-Jul-2014,2768179-117980,576.00,HUTCHINSON ENVIRONMENTAL SOLUTIONS LTD.
Children and Adult Services,Education,Transport,230008,Contract Hire,09-Jul-2014,2768181-0106,"1,400.00",I CLYDESDALE T/A BURNOPFIELD TAXIS.
Neighbourhood Services,Technical Services,Stock,926900,Stock in hand-Inventory system,09-Jul-2014,2768182-/753625,798.90,ICI DULUX DECORATOR CENTRES.
Regeneration & Economic Development,Spatial Policy Planning Assets & Environment,Vehicles Equipment Furniture and Fittings,912701,Computer equipment,09-Jul-2014,2768183-7003126,"5,110.00",IDOX SOFTWARE LTD.
Corporate Resources,I.C.T. Services,Supplies and Services,304259,Equipment and Materials,09-Jul-2014,2768186-1903912,727.64,INSIGHT DIRECT (UK) LTD.
Neighbourhood Services,Technical Services,Stock,926900,Stock in hand-Inventory system,09-Jul-2014,2768187-453188,"1,384.32",INSTARMAC GROUP PLC.
Neighbourhood Services,Technical Services,Employees,040149,Recruitment Instruction and Training,09-Jul-2014,2768188-V12241,"1,250.00",INSTITUTION OF LIGHTING PROFESSIONALS (ILP).
RED HRA,Housing Revenue Account,Supplies and Services,338027,Services,09-Jul-2014,2768191-11173,"4,250.00",IPB COMMUNICATIONS LTD.
RED HRA,Housing Revenue Account,Supplies and Services,338027,Services,09-Jul-2014,2768192-ITL1167,"14,331.10",ITL NORTH EAST LTD.
Children and Adult Services,Education,Transport,230008,Contract Hire,09-Jul-2014,2768195-740,"1,040.00",J YOUNG T/A VIP TAXIS.
Children and Adult Services,Education,Transport,230008,Contract Hire,09-Jul-2014,2768195-744,"2,226.00",J YOUNG T/A VIP TAXIS.
Regeneration & Economic Development,Economic Development and Housing,Other Expenses,914001,Other capital expenses,09-Jul-2014,2768196-RED-07-2014-007,"3,120.00",JAMES KIRWIN PLUMBING & HEATING.
Regeneration & Economic Development,Economic Development and Housing,Other Expenses,914001,Other capital expenses,09-Jul-2014,2768196-RED-07-2014-009,"2,335.00",JAMES KIRWIN PLUMBING & HEATING.
Children and Adult Services,Education,Transport,230008,Contract Hire,09-Jul-2014,2768199-2288,"1,962.66",JEFF ANDERSON COACHES LTD.
Children and Adult Services,Education,Transport,230008,Contract Hire,09-Jul-2014,2768199-2289,"2,004.66",JEFF ANDERSON COACHES LTD.
Neighbourhood Services,Technical Services,Stock,926900,Stock in hand-Inventory system,09-Jul-2014,2768205-NI025259,"122,916.00",JOHN MACLEAN & SONS ELECTRICAL (DINGWALL) LTD.
Neighbourhood Services,Technical Services,Supplies and Services,304358,Equipment and Materials,09-Jul-2014,2768206-21527,606.00,JOHN R BUTTERFIELD LTD.
Neighbourhood Services,Technical Services,Supplies and Services,304358,Equipment and Materials,09-Jul-2014,2768206-21568,884.00,JOHN R BUTTERFIELD LTD.
Neighbourhood Services,Technical Services,Supplies and Services,304358,Equipment and Materials,09-Jul-2014,2768206-21605,975.00,JOHN R BUTTERFIELD LTD.
Neighbourhood Services,Technical Services,Supplies and Services,304358,Equipment and Materials,09-Jul-2014,2768206-21621,759.00,JOHN R BUTTERFIELD LTD.
Neighbourhood Services,Technical Services,Supplies and Services,304358,Equipment and Materials,09-Jul-2014,2768206-21655,975.00,JOHN R BUTTERFIELD LTD.
Neighbourhood Services,Technical Services,Supplies and Services,304358,Equipment and Materials,09-Jul-2014,2768206-21665,892.00,JOHN R BUTTERFIELD LTD.
Neighbourhood Services,Technical Services,Supplies and Services,304358,Equipment and Materials,09-Jul-2014,2768206-21667,814.00,JOHN R BUTTERFIELD LTD.
Neighbourhood Services,Technical Services,Supplies and Services,304358,Equipment and Materials,09-Jul-2014,2768206-21668,"1,127.50",JOHN R BUTTERFIELD LTD.
Neighbourhood Services,Technical Services,Supplies and Services,304358,Equipment and Materials,09-Jul-2014,2768206-21701,610.00,JOHN R BUTTERFIELD LTD.
Neighbourhood Services,Technical Services,Supplies and Services,304358,Equipment and Materials,09-Jul-2014,2768206-21706,955.00,JOHN R BUTTERFIELD LTD.
Neighbourhood Services,Technical Services,Supplies and Services,304358,Equipment and Materials,09-Jul-2014,2768206-21711,770.00,JOHN R BUTTERFIELD LTD.
Neighbourhood Services,Technical Services,Supplies and Services,304358,Equipment and Materials,09-Jul-2014,2768206-21712,"1,017.50",JOHN R BUTTERFIELD LTD.
Neighbourhood Services,Technical Services,Supplies and Services,304358,Equipment and Materials,09-Jul-2014,2768207-0000078282,795.00,JOHN WADE (HAULAGE) LTD.
Neighbourhood Services,Technical Services,Supplies and Services,304358,Equipment and Materials,09-Jul-2014,2768207-0000078284,910.00,JOHN WADE (HAULAGE) LTD.
RED HRA,HRA Capital,Construction Work,908105,Construction work,09-Jul-2014,2768208-201410,"1,650.91",JOINERY & TIMBER CREATIONS (65) LTD.
Regeneration & Economic Development,Economic Development and Housing,Other Expenses,914001,Other capital expenses,09-Jul-2014,2768213-RED-07-2014-006,"1,107.73",KASON CONSTRUCTION LTD.
Children and Adult Services,Education,Transport,230008,Contract Hire,09-Jul-2014,2768216-10A,"2,295.00",KD TAXIS.
RED HRA,HRA Capital,Construction Work,908105,Construction work,09-Jul-2014,2768217-B50365-7,"35,131.98",KEEPMOAT HOMES LTD.
Children and Adult Services,Education,Transport,230008,Contract Hire,09-Jul-2014,2768218-010614,"1,260.00",KEVIN EDMUNDSON.
Neighbourhood Services,Technical Services,Construction Work,908108,Capital - Surface Dressing,09-Jul-2014,2768219-14401,"4,024.35",KIELY BROS LTD.
Children and Adult Services,Education,Transport,230008,Contract Hire,09-Jul-2014,2768221-9-29/6/14,"1,890.00",L & R PRIVATE HIRE.
Neighbourhood Services,Technical Services,Supplies and Services,304221,Equipment and Materials,09-Jul-2014,2768222-9030603116,"1,114.40",LAFARGE TARMAC TRADING LTD.
Neighbourhood Services,Technical Services,Supplies and Services,304221,Equipment and Materials,09-Jul-2014,2768223-9030966382,577.75,LAFARGE TARMAC TRADING LTD.
Dedicated Schools Grant,Dedicated Schools Grant,Transport,230010,Contract Hire,09-Jul-2014,2768225-1022-30/6/14,"1,814.00",LD TAXIS.
Children and Adult Services,Education,Transport,230008,Contract Hire,09-Jul-2014,2768225-1023A,"1,470.00",LD TAXIS.
Children and Adult Services,Childrens Services,Supplies and Services,364999,Grants to Voluntary Organisations,09-Jul-2014,2768227-CAS-07-2014-019,"5,070.00",LEADGATE YOUTH CENTRE.
RED HRA,Housing Revenue Account,Supplies and Services,384199,Miscellaneous Expenses,09-Jul-2014,2768228-00859,870.00,LEE DOBSON PHOTOGRAPHY.
Neighbourhood Services,Direct Services,Transport,230005,Contract Hire,09-Jul-2014,2768229-4338699,"1,700.00",LEEDS COMMERCIAL LTD.
Neighbourhood Services,Direct Services,Transport,230005,Contract Hire,09-Jul-2014,2768229-4338700,"2,800.00",LEEDS COMMERCIAL LTD.
Children and Adult Services,Education,Transport,230008,Contract Hire,09-Jul-2014,2768230-082,"1,617.00",LEE`S TAXIS.
Corporate Resources,Legal & Democratic Services,Supplies and Services,372009,Subscriptions,09-Jul-2014,2768232-DI4L18967,949.00,LEXISNEXIS BUTTERWORTHS.
Neighbourhood Services,Technical Services,Stock,926900,Stock in hand-Inventory system,09-Jul-2014,2768233-LFP/14/1793,740.50,LIFELINE FIRE PREVENTION LTD.
Neighbourhood Services,Technical Services,Supplies and Services,304221,Equipment and Materials,09-Jul-2014,2768234-700382,"3,185.00",LIGHTING & ILLUMINATION TECHNOLOGY EXPERIENCE LTD (LITE).
Regeneration & Economic Development,Spatial Policy Planning Assets & Environment,Supplies and Services,342051,Computers and Communications,09-Jul-2014,2768235-LUK000802,"7,551.80",LIMEHOUSE SOFTWARE LTD.
Children and Adult Services,Public Health,Third Party Payments,460803,Contract Payments,09-Jul-2014,2768240-FHM85JUNE/14,802.00,LLOYDS PHARMACY.
Assistant Chief Executive,Planning & Performance Division,Supplies and Services,342053,Computers and Communications,09-Jul-2014,2768241-40136675,"1,237.50",LOCAL GOVERNMENT ASSOCIATION.
Corporate Resources,Legal & Democratic Services,Supplies and Services,338045,Services,09-Jul-2014,2768241-40137502,"1,726.99",LOCAL GOVERNMENT ASSOCIATION.
Neighbourhood Services,Technical Services,Supplies and Services,304221,Equipment and Materials,09-Jul-2014,2768242-10568,"1,792.40",LOGIC STREET & PARK FURNITURE LTD.
Neighbourhood Services,Direct Services,Supplies and Services,304221,Equipment and Materials,09-Jul-2014,2768244-240307,"1,616.92",LORD HIRE CENTRES.
Children and Adult Services,Education,Transport,230008,Contract Hire,09-Jul-2014,2768245-71,"1,760.00",LORRAINES TAXIS.
Children and Adult Services,Education,Transport,230008,Contract Hire,09-Jul-2014,2768245-72,"1,660.00",LORRAINES TAXIS.
Neighbourhood Services,Technical Services,Supplies and Services,304358,Equipment and Materials,09-Jul-2014,2768246-3A,"2,064.08",M & E & MR WALTON.
Children and Adult Services,Education,Transport,230008,Contract Hire,09-Jul-2014,2768248-AL1,"1,890.00",MA BODDY.
Children and Adult Services,Education,Transport,230007,Contract Hire,09-Jul-2014,2768248-CONNOR10,"1,050.00",MA BODDY.
Children and Adult Services,Education,Transport,230008,Contract Hire,09-Jul-2014,2768248-EV14,"1,859.55",MA BODDY.
Neighbourhood Services,Culture & Sport,Supplies and Services,312013,Newspapers Books and Periodicals,09-Jul-2014,2768249-1076292,633.31,MAGNA LARGE PRINT BOOKS.
Children and Adult Services,Commissioning inc Supporting People,Third Party Payments,479101,Purchase of Care,09-Jul-2014,2768250-5136,"7,897.12",MAIN PROJECT.
Children and Adult Services,Education,Transport,230008,Contract Hire,09-Jul-2014,2768254-480614,966.00,MARKS TAXIS.
Corporate Resources,Centrally Administered Costs,Supplies and Services,338013,Services,09-Jul-2014,2768259-963099,"33,318.00",MAZARS LLP.
Children and Adult Services,Childrens Services,Supplies and Services,304259,Equipment and Materials,09-Jul-2014,2768260-0577,740.80,MC PRODUCTS UK LTD.
Children and Adult Services,Education,Transport,230008,Contract Hire,09-Jul-2014,2768262-1700,"2,289.00",MCDONALD TRAVEL.
Children and Adult Services,Education,Transport,230008,Contract Hire,09-Jul-2014,2768262-MCD1701,"2,079.00",MCDONALD TRAVEL.
Children and Adult Services,Education,Transport,230008,Contract Hire,09-Jul-2014,2768262-MCD1702,"2,322.00",MCDONALD TRAVEL.
Children and Adult Services,Education,Transport,230008,Contract Hire,09-Jul-2014,2768262-MCD1703,"1,323.00",MCDONALD TRAVEL.
Children and Adult Services,Commissioning inc Supporting People,Third Party Payments,442002,Supporting People,09-Jul-2014,2768265-1957867,"5,469.72",MENTAL HEALTH MATTERS.
Neighbourhood Services,Technical Services,Stock,926900,Stock in hand-Inventory system,09-Jul-2014,2768266-001/98613,"2,503.00",MH SOUTHERN & CO LTD.
Regeneration & Economic Development,Economic Development and Housing,Premises,145050,Cleaning and Domestic Supplies,09-Jul-2014,2768267-076,672.00,MIKE TINKLER.
Corporate Resources,I.C.T. Services,Stock,926900,Stock in hand-Inventory system,09-Jul-2014,2768268-0000082645,"2,880.00",MILLENNIUM BUSINESS SYSTEMS LTD.
Children and Adult Services,Commissioning inc Supporting People,Third Party Payments,442002,Supporting People,09-Jul-2014,2768271-1957868,"5,240.36",MOVING ON.
Children and Adult Services,Education,Transport,230008,Contract Hire,09-Jul-2014,2768273-BRECK06-14,"3,045.00",MR CT WALKER T/A COLIN`S TAXIS.
Children and Adult Services,Education,Transport,230008,Contract Hire,09-Jul-2014,2768274-1-183,"1,890.00",MR D KEMP T/A ACE EXECUTIVE.
Children and Adult Services,Education,Transport,230008,Contract Hire,09-Jul-2014,2768276-AFINNISJUNE2014,"1,530.00",MR GORDON SCOTT T/A WHARFEDALE TAXIS.
Neighbourhood Services,Direct Services,Premises,108135,Service Repairs and Maintenance,09-Jul-2014,2768288-DL1722,676.00,NBC BIRD & PEST SOLUTIONS LTD.
Neighbourhood Services,Direct Services,Premises,108135,Service Repairs and Maintenance,09-Jul-2014,2768288-DL1723,676.00,NBC BIRD & PEST SOLUTIONS LTD.
Neighbourhood Services,Direct Services,Premises,108135,Service Repairs and Maintenance,09-Jul-2014,2768288-DL1751,572.00,NBC BIRD & PEST SOLUTIONS LTD.
Neighbourhood Services,Direct Services,Premises,108135,Service Repairs and Maintenance,09-Jul-2014,2768288-DL1752,572.00,NBC BIRD & PEST SOLUTIONS LTD.
Neighbourhood Services,Direct Services,Premises,108135,Service Repairs and Maintenance,09-Jul-2014,2768288-DL1782,520.00,NBC BIRD & PEST SOLUTIONS LTD.
Neighbourhood Services,Direct Services,Premises,108135,Service Repairs and Maintenance,09-Jul-2014,2768288-DL1783,520.00,NBC BIRD & PEST SOLUTIONS LTD.
Children and Adult Services,Childrens Services,Supplies and Services,340001,Postages,09-Jul-2014,2768290-269473-1/5/14,"1,000.00",NEOPOST LTD CREDIFON RCB ACCOUNT.
Children and Adult Services,Childrens Services,Supplies and Services,340001,Postages,09-Jul-2014,2768290-CAS-06-2014-220,"1,000.00",NEOPOST LTD CREDIFON RCB ACCOUNT.
Regeneration & Economic Development,Economic Development and Housing,Supplies and Services,340001,Postages,09-Jul-2014,2768290-RED-07-2014-019,"1,000.00",NEOPOST LTD CREDIFON RCB ACCOUNT.
Neighbourhood Services,Culture & Sport,Supplies and Services,340001,Postages,09-Jul-2014,2768291-NEI-HCL-06-2014-003,"1,000.00",NEOPOST LTD.
Regeneration & Economic Development,Economic Development and Housing,Other Expenses,914001,Other capital expenses,09-Jul-2014,2768294-RED-07-2014-024,"4,248.00",NEW AGE PLUMBING & HEATING SERVICES.
Children and Adult Services,Education,Supplies and Services,384199,Miscellaneous Expenses,09-Jul-2014,2768295-SLINV/00000786,"1,120.00",NEW COLLEGE DURHAM.
Neighbourhood Services,Direct Services,Supplies and Services,304221,Equipment and Materials,09-Jul-2014,2768299-SI/02395785,"1,571.25",NOMIX ENVIRO A DIVISION OF FRONTIER AGRICULTURE LTD.
Children and Adult Services,Commissioning inc Supporting People,Third Party Payments,441001,Supporting People,09-Jul-2014,2768300-1957872,"7,791.04",NORCARE LTD.
Children and Adult Services,Commissioning inc Supporting People,Third Party Payments,441001,Supporting People,09-Jul-2014,2768300-1957873,"10,205.64",NORCARE LTD.
Children and Adult Services,Commissioning inc Supporting People,Third Party Payments,442002,Supporting People,09-Jul-2014,2768300-1957874,"1,800.52",NORCARE LTD.
Neighbourhood Services,Technical Services,Supplies and Services,304221,Equipment and Materials,09-Jul-2014,2768304-1225007,775.00,NORTHERN TOOLS & ACCESSORIES.
RED HRA,Housing Revenue Account,Supplies and Services,358002,Housing Revenue Account,09-Jul-2014,2768305-91311893,"1,875.00",NORTHGATE INFORMATION SOLUTIONS UK LTD.
Neighbourhood Services,Culture & Sport,Supplies and Services,384199,Miscellaneous Expenses,09-Jul-2014,2768312-GENERATIONS-1,"5,000.00",OWL PROJECT ARTS LTD.
Regeneration & Economic Development,Spatial Policy Planning Assets & Environment,Supplies and Services,338066,Services,09-Jul-2014,2768313-SIN018113,"2,610.00",OXFORD ARCHAEOLOGY LTD.
Neighbourhood Services,Direct Services,Supplies and Services,304221,Equipment and Materials,09-Jul-2014,2768314-555645,"5,270.00",P & N ASSOCIATES LTD.
Children and Adult Services,Education,Supplies and Services,384540,Miscellaneous Expenses,09-Jul-2014,2768315-9609,"2,490.90",PA PROMOTIONS LTD.
Neighbourhood Services,Technical Services,Stock,926900,Stock in hand-Inventory system,09-Jul-2014,2768316-XL117699,735.00,PARK ELECTRICAL DISTRIBUTORS LTD.
Neighbourhood Services,Technical Services,Stock,926900,Stock in hand-Inventory system,09-Jul-2014,2768316-XL117702,"3,385.50",PARK ELECTRICAL DISTRIBUTORS LTD.
Neighbourhood Services,Technical Services,Stock,926900,Stock in hand-Inventory system,09-Jul-2014,2768316-XL117841,"1,755.48",PARK ELECTRICAL DISTRIBUTORS LTD.
Neighbourhood Services,Technical Services,Stock,926900,Stock in hand-Inventory system,09-Jul-2014,2768316-XL117935,"1,507.00",PARK ELECTRICAL DISTRIBUTORS LTD.
Children and Adult Services,Education,Transport,230007,Contract Hire,09-Jul-2014,2768317-1323,"2,520.00",PAUL WATSON TRAVEL.
Corporate Resources,I.C.T. Services,Construction Work,908105,Construction work,09-Jul-2014,2768318-C293/CS/VAT/001,"2,195.00",PBU (UK) LTD.
Children and Adult Services,Public Health,Third Party Payments,460803,Contract Payments,09-Jul-2014,2768319-9055,"2,154.50",PEASEWAY PARTNERSHIP.
Children and Adult Services,Childrens Services,Supplies and Services,364999,Grants to Voluntary Organisations,09-Jul-2014,2768320-CAS-07-2014-018,"2,580.00",PELTON COMMUNITY CENTRE.
Neighbourhood Services,Projects and Business services,Supplies and Services,342051,Computers and Communications,09-Jul-2014,2768326-OP/1729469,"7,950.00",PHOENIX SOFTWARE LTD.
Regeneration & Economic Development,Transport and Contracted Services,Supplies and Services,342051,Computers and Communications,09-Jul-2014,2768329-90280,"1,821.50",PINDAR TRAVEL INFORMATION SYSTEMS LTD T/A PINDAR CREATIVE.
Regeneration & Economic Development,Transport and Contracted Services,Supplies and Services,342051,Computers and Communications,09-Jul-2014,2768329-90281,"1,098.90",PINDAR TRAVEL INFORMATION SYSTEMS LTD T/A PINDAR CREATIVE.
Neighbourhood Services,Direct Services,Supplies and Services,304221,Equipment and Materials,09-Jul-2014,2768331-4120167537,"1,045.14",PLUMBING TRADE SUPPLIES LTD.
Neighbourhood Services,Direct Services,Supplies and Services,304221,Equipment and Materials,09-Jul-2014,2768332-201530,"9,065.84",PLUMBING TRADE SUPPLIES LTD.
Neighbourhood Services,Direct Services,Supplies and Services,304221,Equipment and Materials,09-Jul-2014,2768332-201629,"1,219.92",PLUMBING TRADE SUPPLIES LTD.
Neighbourhood Services,Direct Services,Supplies and Services,304221,Equipment and Materials,09-Jul-2014,2768332-4120167467,"1,000.18",PLUMBING TRADE SUPPLIES LTD.
Children and Adult Services,Education,Transport,230008,Contract Hire,09-Jul-2014,2768333-993,"1,330.00",PODA LTD.
Children and Adult Services,Education,Transport,230008,Contract Hire,09-Jul-2014,2768333-997,"1,045.00",PODA LTD.
Neighbourhood Services,Direct Services,Supplies and Services,304221,Equipment and Materials,09-Jul-2014,2768334-INV206039,"1,317.77",POINTER LTD.
Neighbourhood Services,Direct Services,Supplies and Services,304357,Equipment and Materials,09-Jul-2014,2768336-129902,"15,400.00",PREMIER TRAFFIC MANAGEMENT LTD.
Neighbourhood Services,Culture & Sport,Supplies and Services,352001,Conference Expenses,09-Jul-2014,2768341-6080800,"1,200.00",PUBLIC HEALTH ENGLAND (PHE).
Neighbourhood Services,Culture & Sport,Supplies and Services,336005,Advertising,09-Jul-2014,2768342-1449,840.00,PUBLIC UK LTD.
Children and Adult Services,Education,Transport,230008,Contract Hire,09-Jul-2014,2768344-002,"1,333.50",R&R PRIVATE HIRE.
Children and Adult Services,Childrens Services,Supplies and Services,338094,Services,09-Jul-2014,2768345-INV26449,"3,179.17",RAMSIDE HALL HOTEL & GOLF CLUB.
Neighbourhood Services,Direct Services,Supplies and Services,304357,Equipment and Materials,09-Jul-2014,2768347-8892,"1,245.00",RD KEARTON & SONS LTD.
Corporate Resources,I.C.T. Services,Construction Work,908105,Construction work,09-Jul-2014,2768348-INV-0117,"2,815.40",REDWOOD CABLE PROJECTS.
Neighbourhood Services,Redundant Direct Services,Supplies and Services,304221,Equipment and Materials,09-Jul-2014,2768350-R169,"1,975.00",RICHARD THEW T/A PONDGURU.
Children and Adult Services,Education,Transport,230008,Contract Hire,09-Jul-2014,2768351-2149,950.00,RICHIES TAXIS.
Children and Adult Services,Commissioning inc Supporting People,Third Party Payments,441001,Supporting People,09-Jul-2014,2768352-1957707,"9,423.88",RICHMOND FELLOWSHIP.
Children and Adult Services,Commissioning inc Supporting People,Third Party Payments,442002,Supporting People,09-Jul-2014,2768352-1957877,"18,038.14",RICHMOND FELLOWSHIP.
Children and Adult Services,Commissioning inc Supporting People,Third Party Payments,444002,Supporting People,09-Jul-2014,2768352-1957878,"4,438.08",RICHMOND FELLOWSHIP.
Neighbourhood Services,Direct Services,Third Party Payments,430100,Rendered by Private Contractors,09-Jul-2014,2768355-2972,"5,213.00",RINGLAND SCAFFOLDING.
Neighbourhood Services,Direct Services,Third Party Payments,430100,Rendered by Private Contractors,09-Jul-2014,2768355-2982,642.00,RINGLAND SCAFFOLDING.
Neighbourhood Services,Technical Services,Stock,926900,Stock in hand-Inventory system,09-Jul-2014,2768357-229896,"1,911.00",RITHERDON & CO LTD.
Children and Adult Services,Commissioning inc Supporting People,Employees,080025,Agency Staff,09-Jul-2014,2768359-DACT06/14,"1,110.33",RJH DEVELOPMENT DURHAM.
Children and Adult Services,Education,Transport,230007,Contract Hire,09-Jul-2014,2768361-221,924.00,ROAD RUNNERS (NE) LTD.
Children and Adult Services,Education,Transport,230008,Contract Hire,09-Jul-2014,2768361-222,"1,596.00",ROAD RUNNERS (NE) LTD.
Children and Adult Services,Education,Transport,230006,Contract Hire,09-Jul-2014,2768361-224,"1,225.00",ROAD RUNNERS (NE) LTD.
Dedicated Schools Grant,Dedicated Schools Grant,Transport,230010,Contract Hire,09-Jul-2014,2768361-225,"1,292.00",ROAD RUNNERS (NE) LTD.
Children and Adult Services,Public Health,Third Party Payments,460803,Contract Payments,09-Jul-2014,2768363-FL345/METH0614,640.00,ROBERTS & ROBERTS LTD T/A HIGGINBOTTOM PHARMACY.
Children and Adult Services,Education,Transport,230008,Contract Hire,09-Jul-2014,2768365-4,"1,260.00",ROUTE 1.
Neighbourhood Services,Projects and Business services,Supplies and Services,340001,Postages,09-Jul-2014,2768366-9047572856,"2,945.63",ROYAL MAIL GROUP PLC.
Children and Adult Services,Planning & Service Strategy,Supplies and Services,340001,Postages,09-Jul-2014,2768366-9047614214,987.48,ROYAL MAIL GROUP PLC.
Neighbourhood Services,Projects and Business services,Supplies and Services,340001,Postages,09-Jul-2014,2768367-9047619224,"2,292.08",ROYAL MAIL GROUP PLC.
Neighbourhood Services,Direct Services,Transport,230005,Contract Hire,09-Jul-2014,2768368-SLINV/00076997,"3,272.64",RTR RIVERSIDE TRUCK RENTAL LTD.
Neighbourhood Services,Direct Services,Transport,230005,Contract Hire,09-Jul-2014,2768368-SLINV/00076998,"4,410.00",RTR RIVERSIDE TRUCK RENTAL LTD.
Neighbourhood Services,Direct Services,Transport,230005,Contract Hire,09-Jul-2014,2768368-SLINV/00076999,"3,990.00",RTR RIVERSIDE TRUCK RENTAL LTD.
Neighbourhood Services,Direct Services,Transport,230005,Contract Hire,09-Jul-2014,2768368-SLINV/00077000,"3,990.00",RTR RIVERSIDE TRUCK RENTAL LTD.
Neighbourhood Services,Direct Services,Transport,230005,Contract Hire,09-Jul-2014,2768368-SLINV/00077001,"3,990.00",RTR RIVERSIDE TRUCK RENTAL LTD.
Neighbourhood Services,Direct Services,Transport,230005,Contract Hire,09-Jul-2014,2768368-SLINV/00077003,"3,171.00",RTR RIVERSIDE TRUCK RENTAL LTD.
Neighbourhood Services,Direct Services,Transport,230005,Contract Hire,09-Jul-2014,2768368-SLINV/00077004,"3,171.00",RTR RIVERSIDE TRUCK RENTAL LTD.
Neighbourhood Services,Direct Services,Transport,230005,Contract Hire,09-Jul-2014,2768368-SLINV/00077008,"3,272.64",RTR RIVERSIDE TRUCK RENTAL LTD.
Neighbourhood Services,Direct Services,Transport,230005,Contract Hire,09-Jul-2014,2768368-SLINV/00077009,"3,272.64",RTR RIVERSIDE TRUCK RENTAL LTD.
Neighbourhood Services,Direct Services,Transport,230005,Contract Hire,09-Jul-2014,2768368-SLINV/00077082,"3,171.00",RTR RIVERSIDE TRUCK RENTAL LTD.
Neighbourhood Services,Direct Services,Third Party Payments,430100,Rendered by Private Contractors,09-Jul-2014,2768370-JUN03014,"1,238.08",RW CHICKEN (SCAFFOLDING) LTD.
Neighbourhood Services,Direct Services,Third Party Payments,430100,Rendered by Private Contractors,09-Jul-2014,2768370-JUN03114,790.46,RW CHICKEN (SCAFFOLDING) LTD.
Neighbourhood Services,Direct Services,Transport,230005,Contract Hire,09-Jul-2014,2768375-28361,770.00,SALFORD VAN HIRE LTD.
Neighbourhood Services,Culture & Sport,Supplies and Services,384199,Miscellaneous Expenses,09-Jul-2014,2768376-2014,660.00,SALLYANNE FLEMONS.
Corporate Resources,Internal Audit and Insurance,Supplies and Services,342053,Computers and Communications,09-Jul-2014,2768378-S8509,"2,779.00",SCISYS UK LTD.
Neighbourhood Services,Technical Services,Third Party Payments,430100,Rendered by Private Contractors,09-Jul-2014,2768380-SIL/D262/2418,"22,400.00",SEALANE INSHORE LTD.
RED HRA,HRA Capital,Construction Work,908105,Construction work,09-Jul-2014,2768381-75245,600.00,SGS MIS ENVIRONMENTAL LTD.
RED HRA,HRA Capital,Construction Work,908105,Construction work,09-Jul-2014,2768381-75442,552.00,SGS MIS ENVIRONMENTAL LTD.
Neighbourhood Services,Technical Services,Supplies and Services,372009,Subscriptions,09-Jul-2014,2768382-WWB1065742,"3,057.60",SGS UNITED KINGDOM LTD.
Children and Adult Services,Commissioning inc Supporting People,Third Party Payments,442002,Supporting People,09-Jul-2014,2768383-1957869,"9,044.36",SHAID.
Neighbourhood Services,Direct Services,Transport,230005,Contract Hire,09-Jul-2014,2768384-10496375,"1,050.00",SHB HIRE LTD.
Neighbourhood Services,Direct Services,Transport,230005,Contract Hire,09-Jul-2014,2768384-10496378,574.00,SHB HIRE LTD.
Regeneration & Economic Development,Transport and Contracted Services,Supplies and Services,384899,Miscellaneous Expenses,09-Jul-2014,2768386-RED-07-2014-020,617.50,SHERBURN VILLAGE PARISH COUNCIL.
Regeneration & Economic Development,Transport and Contracted Services,Supplies and Services,384899,Miscellaneous Expenses,09-Jul-2014,2768386-RED-07-2014-021,850.00,SHERBURN VILLAGE PARISH COUNCIL.
Neighbourhood Services,Direct Services,Supplies and Services,304259,Equipment and Materials,09-Jul-2014,2768387-CD970086780,"1,981.96",SHERRIFF AMENITY.
Neighbourhood Services,Technical Services,Supplies and Services,304358,Equipment and Materials,09-Jul-2014,2768388-2014037,"1,558.75",SHIREHAVEN LTD.
Neighbourhood Services,Technical Services,Supplies and Services,304358,Equipment and Materials,09-Jul-2014,2768388-2014038,"1,143.75",SHIREHAVEN LTD.
Neighbourhood Services,Technical Services,Stock,926900,Stock in hand-Inventory system,09-Jul-2014,2768391-274937/120259,776.25,SIGNATURE LTD T/A POST & COLUMN CO LTD.
Children and Adult Services,Education,Transport,230008,Contract Hire,09-Jul-2014,2768392-35-JUNE14,"1,522.50",SIMONS TAXIS.
Neighbourhood Services,Technical Services,Stock,926900,Stock in hand-Inventory system,09-Jul-2014,2768395-184476,"5,297.76",SNAPFAST.
